{"text_format":"1","workbook":"xlsx","n_sheets":6,"sheets":["Formato Caracterización","Hoja1","Recomendaciones","Consulta de Grupos de Valor","Listas Desplegables","Consulta Listas Desplegables"],"not_rendered":{"charts":0,"images":3,"macros":1,"external_links":0,"defined_names":10,"comments":0,"pivot_tables":0},"unopened":[],"bounds":{"document_bytes":16777216,"sheet_cells":100000,"rows_first":2000,"rows_last":500,"rows_between":2000,"halvings":0,"cell_chars":16384,"cell_head_chars":4096},"cells_cut":0,"cells_raw":0,"read":"whole","date_system":"1900"}

{"sheet":"Formato Caracterización","index":0,"n_rows":126,"n_cols":95,"rows_kept":126,"cut":false,"hidden":false,"merged":[[6,1,6,7],[6,8,6,15],[6,94,6,96],[6,90,6,93],[1,1,4,97],[6,38,6,52],[42,1,47,19],[39,61,39,80],[39,57,39,60],[38,57,38,60],[38,20,38,28],[39,20,39,28],[38,1,41,19],[45,29,47,36],[39,29,39,36],[41,29,41,36],[40,29,40,36],[41,57,41,60],[41,20,41,28],[40,57,40,60],[45,20,47,28],[24,1,24,24],[24,26,24,96],[25,1,25,24],[25,26,25,96],[42,20,44,28],[42,37,47,56],[48,20,48,28],[48,29,48,36],[59,20,62,28],[59,57,62,60],[62,61,62,80],[62,89,62,96],[54,57,54,60],[54,61,54,80],[54,89,54,96],[56,57,56,60],[56,61,56,80],[56,29,57,36],[56,20,57,28],[62,81,62,88],[51,89,51,96],[53,61,53,80],[59,29,62,36],[59,37,62,56],[59,81,59,88],[61,81,61,88],[54,37,57,56],[54,29,55,36],[65,1,67,19],[65,20,65,28],[65,29,65,36],[65,37,67,56],[65,57,66,60],[66,20,66,28],[66,29,66,36],[67,20,67,28],[67,29,67,36],[67,57,67,60],[42,29,44,36],[61,89,61,96],[63,29,64,36],[63,20,64,28],[64,61,64,80],[64,81,64,88],[60,81,60,88],[60,89,60,96],[47,89,47,96],[64,89,64,96],[63,81,63,88],[56,81,56,88],[63,61,63,80],[59,61,59,80],[57,89,57,96],[59,89,59,96],[61,61,61,80],[54,81,54,88],[53,81,53,88],[56,89,56,96],[55,89,55,96],[53,89,53,96],[58,1,58,96],[57,81,57,88],[89,49,89,96],[84,1,84,47],[85,1,85,47],[86,1,86,47],[75,74,75,96],[76,74,76,96],[75,49,75,72],[76,49,76,72],[78,1,78,47],[79,1,79,47],[79,49,79,72],[82,49,82,96],[76,1,76,47],[80,1,80,47],[77,49,77,72],[77,1,77,47],[78,74,78,96],[79,74,79,96],[80,74,80,96],[78,49,78,72],[87,1,87,47],[88,1,88,47],[89,1,89,47],[84,49,84,96],[63,89,63,96],[63,37,64,56],[57,61,57,80],[63,1,64,19],[63,57,64,60],[54,1,57,19],[59,1,62,19],[123,72,123,96],[125,65,125,70],[125,72,125,96],[119,1,119,32],[121,9,121,32],[123,9,123,32],[125,9,125,32],[119,34,119,63],[121,34,121,39],[125,1,125,7],[123,1,123,7],[121,1,121,7],[121,41,121,63],[123,34,123,39],[123,41,123,63],[125,34,125,39],[125,41,125,63],[119,65,119,96],[121,72,121,96],[123,65,123,70],[121,65,121,70],[11,70,11,96],[11,18,11,55],[11,56,11,69],[11,1,11,17],[8,1,8,96],[6,31,6,37],[6,81,6,87],[10,1,10,17],[10,18,10,69],[10,70,10,82],[10,83,10,96],[12,1,12,17],[13,18,13,96],[14,18,14,96],[13,1,13,17],[29,1,29,96],[31,20,31,36],[31,81,31,96],[18,1,18,24],[18,26,18,96],[20,1,20,24],[22,1,22,24],[23,1,23,24],[26,1,26,24],[12,18,12,96],[26,26,26,96],[27,1,27,24],[31,1,33,19],[33,20,33,28],[28,1,28,96],[16,1,16,96],[20,26,20,96],[21,26,21,96],[22,26,22,96],[23,26,23,96],[27,26,27,96],[21,1,21,24],[14,1,14,17],[85,49,85,96],[86,49,86,96],[87,49,87,96],[88,49,88,96],[77,74,77,96],[80,49,80,72],[82,1,82,47],[33,29,33,36],[31,37,33,56],[31,57,33,60],[31,61,33,80],[37,61,37,80],[36,61,36,80],[40,89,41,96],[33,81,33,88],[33,89,33,96],[35,1,35,96],[71,49,71,96],[40,81,41,88],[39,81,39,88],[57,57,57,60],[60,61,60,80],[54,20,55,28],[51,37,53,56],[112,32,113,77],[93,1,93,96],[91,1,91,96],[103,1,103,3],[101,1,101,3],[102,1,102,3],[97,83,97,96],[97,5,97,82],[95,1,95,96],[97,1,97,3],[99,5,99,82],[103,83,103,96],[102,83,102,96],[100,5,100,82],[101,5,101,82],[102,5,102,82],[103,5,103,82],[112,18,113,30],[117,1,117,96],[99,1,99,3],[106,1,106,96],[110,79,111,96],[108,79,108,96],[108,1,108,17],[108,18,108,30],[108,32,108,77],[100,1,100,3],[110,1,111,17],[110,18,111,30],[110,32,111,77],[104,1,104,3],[99,83,99,96],[100,83,100,96],[101,83,101,96],[104,83,104,96],[112,79,113,96],[114,1,115,17],[114,18,115,30],[114,32,115,77],[114,79,115,96],[104,5,104,82],[112,1,113,17],[45,61,45,80],[43,61,43,80],[52,61,52,80],[52,81,52,88],[52,89,52,96],[43,89,44,96],[55,61,55,80],[55,57,55,60],[55,81,55,88],[42,57,47,60],[42,61,42,80],[42,89,42,96],[44,61,44,80],[44,81,44,88],[43,81,43,88],[46,89,46,96],[42,81,42,88],[65,81,67,88],[65,61,67,80],[65,89,67,96],[69,1,69,96],[48,37,49,56],[39,89,39,96],[38,89,38,96],[38,81,38,88],[38,37,41,56],[40,20,40,28],[38,61,38,80],[40,61,41,80],[38,29,38,36],[50,1,50,96],[51,1,53,19],[51,81,51,88],[45,89,45,96],[46,61,46,80],[45,81,45,88],[46,81,46,88],[47,81,47,88],[48,81,48,88],[49,81,49,88],[47,61,47,80],[36,37,37,56],[36,57,37,60],[36,1,36,19],[36,89,37,96],[36,81,37,88],[37,1,37,19],[36,20,37,28],[36,29,37,36],[75,1,75,47],[71,1,73,47],[73,74,73,96],[73,49,73,72],[48,57,49,60],[51,57,53,60],[51,20,53,28],[51,29,53,36],[48,61,48,80],[48,89,48,96],[48,1,49,19],[49,20,49,28],[49,29,49,36],[49,61,49,80],[49,89,49,96],[51,61,51,80]]}
[]
[null,"CARACTERIZACIÓN DE PROCESO"]
[]
[]
[]
[]
[null,"Código: ",null,null,null,null,null,null,{"$f":"CONCATENATE(CF11,\".\",\"CP\")","v":"Mis.2.1.CP"},null,null,null,null,null,null,null,null,null,null,null,null,null,null,null,null,null,null,null,null,null,null,"Fecha: ",null,null,null,null,null,null,"2023-06-21",null,null,null,null,null,null,null,null,null,null,null,null,null,null,null,null,null,null,null,null,null,null,null,null,null,null,null,null,null,null,null,null,null,null,null,null,null,null,null,null,null,null,null,null,null,null,null,null,null,null,null,"Versión",null,null,null,9]
[]
[null,"1. INFORMACIÓN GENERAL DEL PROCESO"]
[]
[null,"1.1 Nombre del proceso:",null,null,null,null,null,null,null,null,null,null,null,null,null,null,null,null,"Mis.2.1 Programación Presupuestal de los recursos de la Nación",null,null,null,null,null,null,null,null,null,null,null,null,null,null,null,null,null,null,null,null,null,null,null,null,null,null,null,null,null,null,null,null,null,null,null,null,null,null,null,null,null,null,null,null,null,null,null,null,null,null,null,"Código del Proceso:",null,null,null,null,null,null,null,null,null,null,null,null,{"$f":"IFERROR(VLOOKUP(S11,Hoja1!A2:E44,2,),\"\")","v":"Mis.2.1"}]
[null,"1.2 Líder (es):",null,null,null,null,null,null,null,null,null,null,null,null,null,null,null,null,{"$f":"IFERROR(VLOOKUP(S11,Hoja1!A2:E44,3,),\"\")","v":"Director General de Presupuesto Público Nacional"},null,null,null,null,null,null,null,null,null,null,null,null,null,null,null,null,null,null,null,null,null,null,null,null,null,null,null,null,null,null,null,null,null,null,null,null,null,"1.3 Tipo de Proceso: ",null,null,null,null,null,null,null,null,null,null,null,null,null,{"$f":"IFERROR(VLOOKUP(S11,Hoja1!A2:E44,4,),\"\")","v":"Misional"}]
[null,"1.4 Dependencia responsable",null,null,null,null,null,null,null,null,null,null,null,null,null,null,null,null,{"$f":"IFERROR(VLOOKUP(S11,Hoja1!A2:E44,5,),\"\")","v":"Dirección General de Presupuesto Público Nacional"}]
[null,"1.5 Objetivo:",null,null,null,null,null,null,null,null,null,null,null,null,null,null,null,null,"Gestionar la programación presupuestal de las Entidades Públicas que hacen parte del Presupuesto General de la Nación, de las Empresas Industriales y Comerciales del Estado, de las Sociedades de Economía Mixta con el régimen de aquellas dedicadas a actividades no financieras y de los órganos y entidades beneficiarios del Sistema General de Regalías; mediante la elaboración de los Presupuestos que respondan a las necesidades de los organismos, el tramite para su presentación y el desarrollo complementario de las demás actividades necesarias para su posterior aprobación, ello con el fin de garantizar la operatividad de las entidades y organismos públicos, y el debido cumplimiento de su función social."]
[null,"1.6 Alcance",null,null,null,null,null,null,null,null,null,null,null,null,null,null,null,null,"Inicia con la recepción de los anteproyectos de presupuesto de las entidades que hacen parte del Presupuesto General de la Nación, del Sistema General de Regalías, las Empresas Industriales y Comerciales del Estado, y las Sociedades de Economía Mixta  dedicadas a actividades no financieras. Estas actividades finalizan con la expedición  de la Ley Anual de Apropiaciones, el Decreto de Liquidación del Presupuesto General de la Nación, la Resolución anual del Presupuesto de las Empresas Industriales y Comerciales del Estado, y de las Sociedades de Economía Mixta dedicadas a actividades no financieras y la Ley Bienal de Presupuesto del Sistema General de Regalías. Cubre la presentación de los proyectos ante el legislativo y la revisión de las modificaciones propuestas por el congreso de la república."]
[]
[null,"2. PRODUCTOS FINALES"]
[]
[null,"2.1 Nombre",null,null,null,null,null,null,null,null,null,null,null,null,null,null,null,null,null,null,null,null,null,null,null,null,"2.2 Descripción"]
[]
[null,"Proyecto de Ley de Presupuesto General de la Nación",null,null,null,null,null,null,null,null,null,null,null,null,null,null,null,null,null,null,null,null,null,null,null,null,"El Ministerio de Hacienda y Crédito Público, en representación del gobierno, cada vigencia pone el proyecto de Presupuesto General de la Nación a consideración del Congreso de la República dentro de los diez primeros días de cada legislatura. El proyecto de ley anual, contiene el monto total de las apropiaciones y los limites máximos de gasto para las entidades y organismos que hacen parte Presupuesto General de la Nación.   El proyecto de ley anual del Presupuesto General de la Nación se acompaña del Mensaje Presidencial, el cual contiene: La exposición de motivos del proyecto de ley, que justifica el monto, composición y distribución de la propuesta de gasto , la asignación de recursos a los distintos sectores y rubros, así como las decisiones de política económica y los supuestos macroeconómicos que las sustentan."]
[null,"Decreto de Liquidación PGN y anexos.",null,null,null,null,null,null,null,null,null,null,null,null,null,null,null,null,null,null,null,null,null,null,null,null,"Una vez el Congreso de la República aprueba la Ley anual de presupuesto, sancionada por la  presidencia de la República, se procede a su liquidación mediante decreto antes de que inicie la vigencia fiscal respectiva, para su ejecución por los órganos que conforman el Presupuesto General de la Nación. El Decreto de Liquidación contiene un Anexo con el detalle desagregado de las rentas y apropiaciones aprobados por el Congreso de la República, con el cual las entidades iniciarán la ejecución presupuestal en la siguiente vigencia fiscal."]
[null,"Resolución CONFIS - Presupuesto de las Empresas Industriales y Comerciales del Estado.",null,null,null,null,null,null,null,null,null,null,null,null,null,null,null,null,null,null,null,null,null,null,null,null,"El presupuesto de Ingresos y Gastos de las empresas industriales y comerciales del Estado, y las sociedades de economía mixta sujetas al régimen de aquéllas del orden nacional, dedicadas a actividades no financieras, y aquellas entidades del orden nacional que la ley les establezca para efectos presupuestales el régimen de empresas industriales y comerciales del Estado, contiene el monto total de las apropiaciones y los limites máximos de gasto para esta clase de entidades y organismos. Este, es aprobado mediante resolución por el Consejo Superior de Política Económica y Fiscal - CONFIS, antes de finalizar cada vigencia fiscal. Este es acompañado de un anexo informativo el cuál contiene: Razón social, norma de creación, objeto, composición de capital, número de funcionarios y régimen laboral."]
[null,"Proyecto de Ley de Presupuesto del Sistema General de Regalías y sus anexos",null,null,null,null,null,null,null,null,null,null,null,null,null,null,null,null,null,null,null,null,null,null,null,null,"Corresponde al Ministerio de Hacienda y Crédito Público (MHCP) – Dirección General de Presupuesto Público de la Nación (DGPPN) preparar en coordinación con el Departamento Nacional de Planeación (DNP) y el Ministerio de Minas y Energía (MME) y según las definiciones adelantadas por los Órganos Colegiados de Administración y Decisión el proyecto de presupuesto del Sistema General de Regalías. Este, contiene la totalidad de las autorizaciones de gasto y  la estimación de los ingresos que se esperan recaudar durante una bienalidad como contraprestación económica a la explotación de los recursos naturales no renovables para las entidades territoriales y organismos que hacen parte del Sistema General de Regalías. Los Ministros de Hacienda y Crédito Público y de Minas y Energía presentarán, cada dos años, durante el primer día hábil del mes de octubre, el Proyecto de ley de Presupuesto del Sistema General de Regalías, de conformidad con las definiciones adelantadas por los Órganos Colegiados de Administración y Decisión.\n"]
[null,"Proyecciones a Largo Plazo",null,null,null,null,null,null,null,null,null,null,null,null,null,null,null,null,null,null,null,null,null,null,null,null,"Estimaciones -a partir de criterios legales, jurídicos y económicos de gasto público-, a reconocer dentro del presupuesto, se considera esta información como base para la toma de decisiones directivas (Documento de trabajo interno de la DGPPN)."]
[null,"Proyecto Plan Financiero",null,null,null,null,null,null,null,null,null,null,null,null,null,null,null,null,null,null,null,null,null,null,null,null,"Corresponde al primer año de las proyecciones de largo plazo, tiene como base las operaciones efectivas de caja de las entidades con mayor peso en materia fiscal, monetaria y cambiaria para el ámbito presupuestario a nivel nacional. Adicionalmente contiene aspectos y criterios conocidos por la DGPPN de algunos rubros específicos (Documento de trabajo interno de la DGPPN)."]
[null,"Documento CONPES del Marco de Gasto de Mediano Plazo.",null,null,null,null,null,null,null,null,null,null,null,null,null,null,null,null,null,null,null,null,null,null,null,null,"El Marco de Gasto de Mediano Plazo MGMP es la proyección y priorización de gasto para un periodo de 4 años a nivel sectorial, a través del cual las decisiones presupuestales anuales son conducidas por prioridades de política y disciplinadas por una restricción de recursos de mediano plazo. Ello, como resultado de un proceso iterativo de toma de decisiones a través del cual se concilian las restricciones agregadas con la proyección de los costos sectoriales por parte del gobierno nacional.\n\nPermite construir un escenario más predecible para la asignación y ejecución de los recursos públicos, al hacer explícitos los efectos y restricciones que las decisiones de gasto anual pueden tener en el mediano y largo plazo. "]
[]
[]
[null,"3. DESARROLLO DEL PROCESO"]
[]
[null,"3.1 Salidas\n(Productos / Servicios)",null,null,null,null,null,null,null,null,null,null,null,null,null,null,null,null,null,null,"3.2 Grupos de valor - Destinatarios",null,null,null,null,null,null,null,null,null,null,null,null,null,null,null,null,"3.3 Principales Actividades",null,null,null,null,null,null,null,null,null,null,null,null,null,null,null,null,null,null,null,"3.4\nPHVM",null,null,null,"3.5. Entradas",null,null,null,null,null,null,null,null,null,null,null,null,null,null,null,null,null,null,null,"3.6 Grupos de valor - Proveedores"]
[]
[null,null,null,null,null,null,null,null,null,null,null,null,null,null,null,null,null,null,null,null,"Int. o Ext.",null,null,null,null,null,null,null,null,"Destinatarios ",null,null,null,null,null,null,null,null,null,null,null,null,null,null,null,null,null,null,null,null,null,null,null,null,null,null,null,null,null,null,null,null,null,null,null,null,null,null,null,null,null,null,null,null,null,null,null,null,null,null,null,"Int. o Ext.",null,null,null,null,null,null,null,"Proveedores"]
[]
[null,"A. PROGRAMACION MACROFISCAL"]
[null,"Proyecciones a Largo Plazo",null,null,null,null,null,null,null,null,null,null,null,null,null,null,null,null,null,null,"Interno",null,null,null,null,null,null,null,null,"a. Mis.1.1 Coordinación y seguimiento de la Política Macroeconómica y Fiscal                                                           b. Dirección de Política Macroeconómica  ",null,null,null,null,null,null,null,"Calcular las proyecciones presupuestales a Largo Plazo y el proyecto de Plan Financiero estableciendo el universo de entidades con mayor peso en materia cambiaria, fiscal y monetaria a nivel nacional ",null,null,null,null,null,null,null,null,null,null,null,null,null,null,null,null,null,null,null,"Hacer",null,null,null,"Supuestos macroeconómicos",null,null,null,null,null,null,null,null,null,null,null,null,null,null,null,null,null,null,null,"Interno",null,null,null,null,null,null,null,"Mis.1.1 Coordinación y seguimiento de la Política Macroeconómica y Fiscal"]
[null,"Proyecto de Plan Financiero\n",null,null,null,null,null,null,null,null,null,null,null,null,null,null,null,null,null,null,null,null,null,null,null,null,null,null,null,null,null,null,null,null,null,null,null,null,null,null,null,null,null,null,null,null,null,null,null,null,null,null,null,null,null,null,null,null,null,null,null,"Recursos de capital proyectados"]
[null,"Documento CONPES del Marco de Gasto de Mediano Plazo.",null,null,null,null,null,null,null,null,null,null,null,null,null,null,null,null,null,null,"Externo",null,null,null,null,null,null,null,null,"Consejo Superior de Política Fiscal - CONFIS",null,null,null,null,null,null,null,"Elaborar proyecto de documento CONPES del Marco de Gasto de Mediano Plazo.",null,null,null,null,null,null,null,null,null,null,null,null,null,null,null,null,null,null,null,"Hacer",null,null,null,"Propuesta de Proyección de gastos en el mediano plazo a nivel sectorial ",null,null,null,null,null,null,null,null,null,null,null,null,null,null,null,null,null,null,null,"Externo",null,null,null,null,null,null,null,"Líderes sectoriales de los Órganos que hacen parte del Presupuesto General de la Nación"]
[null,null,null,null,null,null,null,null,null,null,null,null,null,null,null,null,null,null,null,null,"Externo",null,null,null,null,null,null,null,null,"Consejo de Ministros",null,null,null,null,null,null,null,null,null,null,null,null,null,null,null,null,null,null,null,null,null,null,null,null,null,null,null,"Hacer",null,null,null,"Cupos de Inversión sectorial de Mediano Plazo",null,null,null,null,null,null,null,null,null,null,null,null,null,null,null,null,null,null,null,"Externo",null,null,null,null,null,null,null,"Departamento Nacional de Planeación"]
[null,null,null,null,null,null,null,null,null,null,null,null,null,null,null,null,null,null,null,null,"Externo",null,null,null,null,null,null,null,null,"Consejo Nacional de Política Económica y Social – CONPES",null,null,null,null,null,null,null,null,null,null,null,null,null,null,null,null,null,null,null,null,null,null,null,null,null,null,null,"Hacer",null,null,null,"Marco Fiscal de Mediano Plazo",null,null,null,null,null,null,null,null,null,null,null,null,null,null,null,null,null,null,null,"Interno",null,null,null,null,null,null,null,"Mis.1.1 Coordinación y seguimiento de la Política Macroeconómica y Fiscal"]
[null,null,null,null,null,null,null,null,null,null,null,null,null,null,null,null,null,null,null,null,"Interno",null,null,null,null,null,null,null,null,"Alta Dirección del MHCP\n",null,null,null,null,null,null,null,null,null,null,null,null,null,null,null,null,null,null,null,null,null,null,null,null,null,null,null,"Hacer"]
[null,"Proyecto de Ley de Presupuesto General de la Nación",null,null,null,null,null,null,null,null,null,null,null,null,null,null,null,null,null,null,"Interno",null,null,null,null,null,null,null,null,"Ministro de Hacienda y Crédito Publico",null,null,null,null,null,null,null,"\nElaborar el Proyecto del Presupuesto General de la Nación y el anexo del Mensaje Presidencial.",null,null,null,null,null,null,null,null,null,null,null,null,null,null,null,null,null,null,null,"Hacer",null,null,null,"Anteproyectos de Presupuesto.\n\nModificaciones para el Proyecto de PGN",null,null,null,null,null,null,null,null,null,null,null,null,null,null,null,null,null,null,null,"Externo",null,null,null,null,null,null,null,"Órganos que hacen parte del Presupuesto General de la Nación"]
[null,null,null,null,null,null,null,null,null,null,null,null,null,null,null,null,null,null,null,null,null,null,null,null,null,null,null,null,null,null,null,null,null,null,null,null,null,null,null,null,null,null,null,null,null,null,null,null,null,null,null,null,null,null,null,null,null,null,null,null,null,"Proyecto de Plan Financiero",null,null,null,null,null,null,null,null,null,null,null,null,null,null,null,null,null,null,null,"Interno ",null,null,null,null,null,null,null,"Mis.1.1 Coordinación y seguimiento de la Política Macroeconómica y Fiscal"]
[null,null,null,null,null,null,null,null,null,null,null,null,null,null,null,null,null,null,null,null,null,null,null,null,null,null,null,null,null,null,null,null,null,null,null,null,null,null,null,null,null,null,null,null,null,null,null,null,null,null,null,null,null,null,null,null,null,null,null,null,null,"Supuestos macroeconómicos",null,null,null,null,null,null,null,null,null,null,null,null,null,null,null,null,null,null,null,"Interno"]
[null,null,null,null,null,null,null,null,null,null,null,null,null,null,null,null,null,null,null,null,"Externo",null,null,null,null,null,null,null,null,"Congreso de la República ",null,null,null,null,null,null,null,null,null,null,null,null,null,null,null,null,null,null,null,null,null,null,null,null,null,null,null,null,null,null,null,"Marco Fiscal de Mediano Plazo\n\nPlan Operativo Anual de Inversiones",null,null,null,null,null,null,null,null,null,null,null,null,null,null,null,null,null,null,null,"Externo",null,null,null,null,null,null,null,"Departamento Nacional de Planeación"]
[null,null,null,null,null,null,null,null,null,null,null,null,null,null,null,null,null,null,null,null,null,null,null,null,null,null,null,null,null,null,null,null,null,null,null,null,null,null,null,null,null,null,null,null,null,null,null,null,null,null,null,null,null,null,null,null,null,null,null,null,null,"Programación anual de Servicio de la Deuda.",null,null,null,null,null,null,null,null,null,null,null,null,null,null,null,null,null,null,null,"Interno",null,null,null,null,null,null,null,"Mis.3.5 Gestión de Ingresos, Pagos y Presentación de Estados Financieros"]
[null,null,null,null,null,null,null,null,null,null,null,null,null,null,null,null,null,null,null,null,null,null,null,null,null,null,null,null,null,null,null,null,null,null,null,null,null,null,null,null,null,null,null,null,null,null,null,null,null,null,null,null,null,null,null,null,null,null,null,null,null,"Documento CONPES del Marco de Gasto de Mediano Plazo aprobado por el Consejo de Ministros",null,null,null,null,null,null,null,null,null,null,null,null,null,null,null,null,null,null,null,"Externo",null,null,null,null,null,null,null,"Consejo de Ministros"]
[null,"Decreto de Liquidación y anexos.",null,null,null,null,null,null,null,null,null,null,null,null,null,null,null,null,null,null,"Externo",null,null,null,null,null,null,null,null,"Órganos que hacen parte del Presupuesto General de la Nación.",null,null,null,null,null,null,null,"Preparar el Decreto de Liquidación del PGN y anexos documentales.\n",null,null,null,null,null,null,null,null,null,null,null,null,null,null,null,null,null,null,null,"Hacer",null,null,null,"Modificaciones al Decreto de Liquidación.",null,null,null,null,null,null,null,null,null,null,null,null,null,null,null,null,null,null,null,"Externo",null,null,null,null,null,null,null,"Congreso de la República"]
[null,null,null,null,null,null,null,null,null,null,null,null,null,null,null,null,null,null,null,null,"Externo",null,null,null,null,null,null,null,null,"Departamento Nacional de Planeación",null,null,null,null,null,null,null,null,null,null,null,null,null,null,null,null,null,null,null,null,null,null,null,null,null,null,null,null,null,null,null,"Desagregaciones de gasto correspondientes al anexo del decreto de liquidación, de los órganos que hacen parte del presupuesto general de la Nación a nivel general",null,null,null,null,null,null,null,null,null,null,null,null,null,null,null,null,null,null,null,"Externo",null,null,null,null,null,null,null,"Órganos que hacen parte del Presupuesto General de la Nación"]
[null,"B. PROGRAMACIÓN PRESUPUESTAL DE LAS ENTIDADES INDUSTRIALES Y COMERCIALES DEL ESTADO Y SOCIEDADES DE ECONOMÍA MIXTA CON EL RÈGIMEN DE AQUELLAS DEDICADAS A ACTIVIDADES NO FINANCIERAS "]
[null,"Circular de Programación Presupuestal de las EICE y SEM.",null,null,null,null,null,null,null,null,null,null,null,null,null,null,null,null,null,null,"Externo",null,null,null,null,null,null,null,null,"Empresas Industriales y Comerciales del Estado y Sociedades de Economía Mixta con el régimen de aquellas",null,null,null,null,null,null,null,"Preparar la circular de programación presupuestal.",null,null,null,null,null,null,null,null,null,null,null,null,null,null,null,null,null,null,null,"Planear",null,null,null,"Supuestos macroeconómicos.",null,null,null,null,null,null,null,null,null,null,null,null,null,null,null,null,null,null,null,"Interno",null,null,null,null,null,null,null,"Mis.1.1 Coordinación y seguimiento de la Política Macroeconómica y Fiscal"]
[null,null,null,null,null,null,null,null,null,null,null,null,null,null,null,null,null,null,null,null,null,null,null,null,null,null,null,null,null,null,null,null,null,null,null,null,null,null,null,null,null,null,null,null,null,null,null,null,null,null,null,null,null,null,null,null,null,null,null,null,null,"Lineamientos generales para la elaboración del anteproyectos de presupuesto del EICE y SEM ",null,null,null,null,null,null,null,null,null,null,null,null,null,null,null,null,null,null,null,"Interno",null,null,null,null,null,null,null,"Dirección General de Presupuesto Público Nacional"]
[null,null,null,null,null,null,null,null,null,null,null,null,null,null,null,null,null,null,null,null,null,null,null,null,null,null,null,null,null,null,null,null,null,null,null,null,null,null,null,null,null,null,null,null,null,null,null,null,null,null,null,null,null,null,null,null,null,null,null,null,null,"Supuestos macroeconómicos.",null,null,null,null,null,null,null,null,null,null,null,null,null,null,null,null,null,null,null,"Externo",null,null,null,null,null,null,null,"Departamento Nacional de Planeación"]
[null,"Resolución CONFIS - Presupuesto de las Empresas Industriales y Comerciales del Estado.",null,null,null,null,null,null,null,null,null,null,null,null,null,null,null,null,null,null,"Externo",null,null,null,null,null,null,null,null,"Empresas Industriales y Comerciales del Estado y Sociedades de Economía Mixta",null,null,null,null,null,null,null,"Recibir anteproyectos y elaborar Resolución  para aprobación del CONFIS del presupuesto de las EICE y SEM.",null,null,null,null,null,null,null,null,null,null,null,null,null,null,null,null,null,null,null,"Hacer",null,null,null,"Anteproyectos de presupuesto.",null,null,null,null,null,null,null,null,null,null,null,null,null,null,null,null,null,null,null,"Externo",null,null,null,null,null,null,null,"Empresas Industriales y Comerciales del Estado y Sociedades de Economía Mixta"]
[null,null,null,null,null,null,null,null,null,null,null,null,null,null,null,null,null,null,null,null,null,null,null,null,null,null,null,null,null,null,null,null,null,null,null,null,null,null,null,null,null,null,null,null,null,null,null,null,null,null,null,null,null,null,null,null,null,"Hacer",null,null,null,"Concepto de los ministerios a los cuales se encuentran adscritas las EICE y SEM sobre proyecto de presupuesto de regalías ",null,null,null,null,null,null,null,null,null,null,null,null,null,null,null,null,null,null,null,"Externo ",null,null,null,null,null,null,null,"Ministerios a los que se encuentren adscritas las EICE y SEM"]
[null,null,null,null,null,null,null,null,null,null,null,null,null,null,null,null,null,null,null,null,"Externo",null,null,null,null,null,null,null,null,"Departamento Nacional de Planeación",null,null,null,null,null,null,null,null,null,null,null,null,null,null,null,null,null,null,null,null,null,null,null,null,null,null,null,"Hacer",null,null,null,"Información de inversión.",null,null,null,null,null,null,null,null,null,null,null,null,null,null,null,null,null,null,null,"Externo",null,null,null,null,null,null,null,"Departamento Nacional de Planeación"]
[null,null,null,null,null,null,null,null,null,null,null,null,null,null,null,null,null,null,null,null,null,null,null,null,null,null,null,null,null,null,null,null,null,null,null,null,null,null,null,null,null,null,null,null,null,null,null,null,null,null,null,null,null,null,null,null,null,"Hacer",null,null,null,"Supuestos macroeconómicos.\n\nMarco Fiscal de Mediano Plazo.\n",null,null,null,null,null,null,null,null,null,null,null,null,null,null,null,null,null,null,null,"Interno",null,null,null,null,null,null,null,"a. Dirección General de Política Macroeconómica                                                                                         b. Mis.1.1 Coordinación y seguimiento de la Política Macroeconómica y Fiscal"]
[null,"C. PROGRAMACIÓN PRESUPUESTAL DEL SISTEMA GENERAL DE REGALÍAS"]
[null,"Proyecto de Ley de Presupuesto del Sistema General de Regalías y sus anexos.",null,null,null,null,null,null,null,null,null,null,null,null,null,null,null,null,null,null,"Externo",null,null,null,null,null,null,null,null,"Órganos, Entidades Territoriales y demás beneficiarios del SGR.",null,null,null,null,null,null,null,"Elaborar el Proyecto de Ley de Presupuesto del Sistema General de Regalías y sus anexos",null,null,null,null,null,null,null,null,null,null,null,null,null,null,null,null,null,null,null,"Hacer",null,null,null,"Plan de Recursos del Sistema General de Regalías",null,null,null,null,null,null,null,null,null,null,null,null,null,null,null,null,null,null,null,"Interno",null,null,null,null,null,null,null,"Dirección General de Política Macroeconómica\n\n"]
[null,null,null,null,null,null,null,null,null,null,null,null,null,null,null,null,null,null,null,null,null,null,null,null,null,null,null,null,null,null,null,null,null,null,null,null,null,null,null,null,null,null,null,null,null,null,null,null,null,null,null,null,null,null,null,null,null,null,null,null,null,"Proyecciones a 10 años de los ingresos del Sistema General de Regalías ",null,null,null,null,null,null,null,null,null,null,null,null,null,null,null,null,null,null,null,"Externo ",null,null,null,null,null,null,null,"Ministerio de Minas y Energía "]
[null,null,null,null,null,null,null,null,null,null,null,null,null,null,null,null,null,null,null,null,null,null,null,null,null,null,null,null,null,null,null,null,null,null,null,null,null,null,null,null,null,null,null,null,null,null,null,null,null,null,null,null,null,null,null,null,null,null,null,null,null,"Desagregación del Plan de Recursos del SGR",null,null,null,null,null,null,null,null,null,null,null,null,null,null,null,null,null,null,null,"Externo",null,null,null,null,null,null,null,"Departamento Nacional de Planeación"]
[null,null,null,null,null,null,null,null,null,null,null,null,null,null,null,null,null,null,null,null,null,null,null,null,null,null,null,null,null,null,null,null,null,null,null,null,null,null,null,null,null,null,null,null,null,null,null,null,null,null,null,null,null,null,null,null,null,null,null,null,null,"Desagregación de las cuotas indicativas por región",null,null,null,null,null,null,null,null,null,null,null,null,null,null,null,null,null,null,null,"Externo",null,null,null,null,null,null,null,"Órganos Colegiados de Administración y Decisión –OCAD Regionales"]
[null,"Proyecto de Ley de Presupuesto del Sistema General de Regalías con modificaciones incorporadas.",null,null,null,null,null,null,null,null,null,null,null,null,null,null,null,null,null,null,"Externo",null,null,null,null,null,null,null,null,"Órganos, Entidades Territoriales y demás beneficiarios del SGR.",null,null,null,null,null,null,null,"Radicar y presentar el Proyecto de Ley del Sistema General de Regalías ante el Congreso de la República para aprobación.\n\nAtender las solicitudes de modificación al Proyecto de Ley emitidas por parte del Congreso.",null,null,null,null,null,null,null,null,null,null,null,null,null,null,null,null,null,null,null,"Hacer",null,null,null,"Proyecto de Ley de Presupuesto del SGR",null,null,null,null,null,null,null,null,null,null,null,null,null,null,null,null,null,null,null,"Interno",null,null,null,null,null,null,null,"Dirección General de Presupuesto Público Nacional – Subdirección de Análisis y Consolidación"]
[null,null,null,null,null,null,null,null,null,null,null,null,null,null,null,null,null,null,null,null,null,null,null,null,null,null,null,null,null,null,null,null,null,null,null,null,null,null,null,null,null,null,null,null,null,null,null,null,null,null,null,null,null,null,null,null,null,null,null,null,null,"Solicitudes de modificaciones al proyecto de ley presentado",null,null,null,null,null,null,null,null,null,null,null,null,null,null,null,null,null,null,null,"Externo",null,null,null,null,null,null,null,"Congreso de la República"]
[null,"Registro de aplicación de las prácticas de gestión en el SMGI",null,null,null,null,null,null,null,null,null,null,null,null,null,null,null,null,null,null,"Interno",null,null,null,null,null,null,null,null,"Eva.1.1 Evaluación Independiente",null,null,null,null,null,null,null,"Realizar seguimiento y evaluación a la gestión del proceso",null,null,null,null,null,null,null,null,null,null,null,null,null,null,null,null,null,null,null,"Verificar",null,null,null,"Resultados de indicadores, mejoras, planes, monitoreo de riesgos, actualización de documentos.",null,null,null,null,null,null,null,null,null,null,null,null,null,null,null,null,null,null,null,"Interno",null,null,null,null,null,null,null,"Mis.2.1 Programación Presupuestal de los recursos de la Nación"]
[null,null,null,null,null,null,null,null,null,null,null,null,null,null,null,null,null,null,null,null,"Interno",null,null,null,null,null,null,null,null,"Est.1.4 Administración, mejoramiento e innovación del SUG"]
[null,null,null,null,null,null,null,null,null,null,null,null,null,null,null,null,null,null,null,null,"Interno",null,null,null,null,null,null,null,null,"Mis.2.1 Programación Presupuestal de los recursos de la Nación",null,null,null,null,null,null,null,null,null,null,null,null,null,null,null,null,null,null,null,null,null,null,null,null,null,null,null,"Mejorar"]
[]
[null,"4. RECURSOS ESENCIALES PARA LA OPERACIÓN DEL PROCESO"]
[]
[null,"4.1 Equipos Tecnológicos",null,null,null,null,null,null,null,null,null,null,null,null,null,null,null,null,null,null,null,null,null,null,null,null,null,null,null,null,null,null,null,null,null,null,null,null,null,null,null,null,null,null,null,null,null,null,null,"4.2 Sistemas de información"]
[]
[null,null,null,null,null,null,null,null,null,null,null,null,null,null,null,null,null,null,null,null,null,null,null,null,null,null,null,null,null,null,null,null,null,null,null,null,null,null,null,null,null,null,null,null,null,null,null,null,null,"Internos",null,null,null,null,null,null,null,null,null,null,null,null,null,null,null,null,null,null,null,null,null,null,null,null,"Externos"]
[]
[null,null,null,null,null,null,null,null,null,null,null,null,null,null,null,null,null,null,null,null,null,null,null,null,null,null,null,null,null,null,null,null,null,null,null,null,null,null,null,null,null,null,null,null,null,null,null,null,null,"SPGR"]
[null,null,null,null,null,null,null,null,null,null,null,null,null,null,null,null,null,null,null,null,null,null,null,null,null,null,null,null,null,null,null,null,null,null,null,null,null,null,null,null,null,null,null,null,null,null,null,null,null,"Ejecución  y Programación Presupuestal  Empresa - EICE"]
[null,null,null,null,null,null,null,null,null,null,null,null,null,null,null,null,null,null,null,null,null,null,null,null,null,null,null,null,null,null,null,null,null,null,null,null,null,null,null,null,null,null,null,null,null,null,null,null,null,"Plantas y nóminas"]
[null,null,null,null,null,null,null,null,null,null,null,null,null,null,null,null,null,null,null,null,null,null,null,null,null,null,null,null,null,null,null,null,null,null,null,null,null,null,null,null,null,null,null,null,null,null,null,null,null,"SIIF NACION"]
[null,null,null,null,null,null,null,null,null,null,null,null,null,null,null,null,null,null,null,null,null,null,null,null,null,null,null,null,null,null,null,null,null,null,null,null,null,null,null,null,null,null,null,null,null,null,null,null,null,"SIRECI"]
[null,null,null,null,null,null,null,null,null,null,null,null,null,null,null,null,null,null,null,null,null,null,null,null,null,null,null,null,null,null,null,null,null,null,null,null,null,null,null,null,null,null,null,null,null,null,null,null,null,"SIED-SITPRES"]
[]
[null,"4.3 Infraestructura",null,null,null,null,null,null,null,null,null,null,null,null,null,null,null,null,null,null,null,null,null,null,null,null,null,null,null,null,null,null,null,null,null,null,null,null,null,null,null,null,null,null,null,null,null,null,null,"4.4 Humanos"]
[]
[null,"Espacio físico adecuado para la ubicación de los recursos tecnológicos y humanos",null,null,null,null,null,null,null,null,null,null,null,null,null,null,null,null,null,null,null,null,null,null,null,null,null,null,null,null,null,null,null,null,null,null,null,null,null,null,null,null,null,null,null,null,null,null,null,"Funcionarios con conocimientos sobre temas presupuestales"]
[null,null,null,null,null,null,null,null,null,null,null,null,null,null,null,null,null,null,null,null,null,null,null,null,null,null,null,null,null,null,null,null,null,null,null,null,null,null,null,null,null,null,null,null,null,null,null,null,null,"Funcionarios con conocimientos en manejo sistemas de información, informática y ofimática"]
[null,null,null,null,null,null,null,null,null,null,null,null,null,null,null,null,null,null,null,null,null,null,null,null,null,null,null,null,null,null,null,null,null,null,null,null,null,null,null,null,null,null,null,null,null,null,null,null,null,"El Director de Presupuesto, 4 Subdirectores, 11 Coordinadores, 12 Técnicos, 1 Abogado, 1 Secretaria "]
[]
[]
[]
[]
[null,"5. PRÁCTICAS DE GESTIÓN "]
[]
[null,"Para consultar las practicas de gestión aplicables (1. Planes 2. Indicadores 3. Riesgos 4. Mejoras 5. REPAC 6. Documentos) consulte el SMGI"]
[]
[null,"6. TRÁMITES Y OTROS PROCEDIMIENTOS ADMINISTRATIVOS (OPA) DEL PROCESO\n(Aplica únicamente para procesos misionales)"]
[]
[null,"No.",null,null,null,"Nombre",null,null,null,null,null,null,null,null,null,null,null,null,null,null,null,null,null,null,null,null,null,null,null,null,null,null,null,null,null,null,null,null,null,null,null,null,null,null,null,null,null,null,null,null,null,null,null,null,null,null,null,null,null,null,null,null,null,null,null,null,null,null,null,null,null,null,null,null,null,null,null,null,null,null,null,null,null,"Tipo"]
[]
[null,1,null,null,null,"Aclaración de leyenda ",null,null,null,null,null,null,null,null,null,null,null,null,null,null,null,null,null,null,null,null,null,null,null,null,null,null,null,null,null,null,null,null,null,null,null,null,null,null,null,null,null,null,null,null,null,null,null,null,null,null,null,null,null,null,null,null,null,null,null,null,null,null,null,null,null,null,null,null,null,null,null,null,null,null,null,null,null,"Trámite "]
[null,2,null,null,null,"Concepto para proyecto de ley o decreto ",null,null,null,null,null,null,null,null,null,null,null,null,null,null,null,null,null,null,null,null,null,null,null,null,null,null,null,null,null,null,null,null,null,null,null,null,null,null,null,null,null,null,null,null,null,null,null,null,null,null,null,null,null,null,null,null,null,null,null,null,null,null,null,null,null,null,null,null,null,null,null,null,null,null,null,null,null,"Trámite "]
[null,3,null,null,null,"Ubicación de rubro presupuestal ",null,null,null,null,null,null,null,null,null,null,null,null,null,null,null,null,null,null,null,null,null,null,null,null,null,null,null,null,null,null,null,null,null,null,null,null,null,null,null,null,null,null,null,null,null,null,null,null,null,null,null,null,null,null,null,null,null,null,null,null,null,null,null,null,null,null,null,null,null,null,null,null,null,null,null,null,null,"Trámite "]
[null,4]
[null,5]
[null,6]
[]
[null,"7. HISTORIAL DE CAMBIOS "]
[]
[null,"Versión",null,null,null,null,null,null,null,null,null,null,null,null,null,null,null,null,"Fecha",null,null,null,null,null,null,null,null,null,null,null,null,null,"Descripción del Cambio",null,null,null,null,null,null,null,null,null,null,null,null,null,null,null,null,null,null,null,null,null,null,null,null,null,null,null,null,null,null,null,null,null,null,null,null,null,null,null,null,null,null,null,null,null,null,"Asesor SUG"]
[]
[null,7,null,null,null,null,null,null,null,null,null,null,null,null,null,null,null,null,"2018-12-18",null,null,null,null,null,null,null,null,null,null,null,null,null,"Actualización de la caracterización al nuevo formato y metodología del SUG",null,null,null,null,null,null,null,null,null,null,null,null,null,null,null,null,null,null,null,null,null,null,null,null,null,null,null,null,null,null,null,null,null,null,null,null,null,null,null,null,null,null,null,null,null,null,"Andrea Catalina Cuesta Ruiz"]
[]
[null,8,null,null,null,null,null,null,null,null,null,null,null,null,null,null,null,null,"2021-06-21",null,null,null,null,null,null,null,null,null,null,null,null,null,"Se incluye las actividad relacionada con la liquidación de la tarifa de control fiscal ",null,null,null,null,null,null,null,null,null,null,null,null,null,null,null,null,null,null,null,null,null,null,null,null,null,null,null,null,null,null,null,null,null,null,null,null,null,null,null,null,null,null,null,null,null,null,"Claudia Umbarila Rodríguez"]
[]
[null,9,null,null,null,null,null,null,null,null,null,null,null,null,null,null,null,null,"2023-06-21",null,null,null,null,null,null,null,null,null,null,null,null,null,"Acorde con lo estipulado en el artículo 372 de la Ley 2294 de 2023 “Por el cual se expide el Plan Nacional de Desarrollo 2022- 2026 “Colombia Potencia Mundial de la Vida” derogado a partir de la vigencia de la mencionada Ley, con lo cual, la competencia del tributo en mención vuelve al competente original.",null,null,null,null,null,null,null,null,null,null,null,null,null,null,null,null,null,null,null,null,null,null,null,null,null,null,null,null,null,null,null,null,null,null,null,null,null,null,null,null,null,null,null,null,null,null,"Aura Ruth Herrera Cristancho"]
[]
[]
[null,"8. ELABORACIÓN, REVISIÓN Y APROBACIÓN "]
[]
[null,"Elaborado por:",null,null,null,null,null,null,null,null,null,null,null,null,null,null,null,null,null,null,null,null,null,null,null,null,null,null,null,null,null,null,null,null,"Revisador por:",null,null,null,null,null,null,null,null,null,null,null,null,null,null,null,null,null,null,null,null,null,null,null,null,null,null,null,null,null,null,"Aprobado por:"]
[]
[null,"Nombre",null,null,null,null,null,null,null,"Edna Rocio Gonzalez ",null,null,null,null,null,null,null,null,null,null,null,null,null,null,null,null,null,null,null,null,null,null,null,null,"Nombre",null,null,null,null,null,null,"Janeth De La Roche",null,null,null,null,null,null,null,null,null,null,null,null,null,null,null,null,null,null,null,null,null,null,null,"Nombre",null,null,null,null,null,null,"Claudia Marcela Numa"]
[]
[null,"Cargo",null,null,null,null,null,null,null,"Asesora DGPPN",null,null,null,null,null,null,null,null,null,null,null,null,null,null,null,null,null,null,null,null,null,null,null,null,"Cargo",null,null,null,null,null,null,"Asesora DGPPN",null,null,null,null,null,null,null,null,null,null,null,null,null,null,null,null,null,null,null,null,null,null,null,"Cargo",null,null,null,null,null,null,"Directora General del Presupuesto Público Nacional"]
[]
[null,"Fecha:",null,null,null,null,null,null,null,"2023-06-20",null,null,null,null,null,null,null,null,null,null,null,null,null,null,null,null,null,null,null,null,null,null,null,null,"Fecha:",null,null,null,null,null,null,"2023-06-20",null,null,null,null,null,null,null,null,null,null,null,null,null,null,null,null,null,null,null,null,null,null,null,"Fecha:",null,null,null,null,null,null,"2023-06-20"]

{"sheet":"Hoja1","index":1,"n_rows":44,"n_cols":5,"rows_kept":44,"cut":false,"hidden":true,"merged":[]}
["Procesos","Código de Procesos","Líder del proceso","Tipo de proceso","Dependencia"]
["Est.1.1 Planeación estratégica sectorial e institucional","Est.1.1","Jefe Oficina Asesora de Planeación","Estratégico","Oficina Asesora de Planeación "]
["Est.1.4 Administración, mejoramiento e innovación del SUG","Est.1.4","Jefe Oficina Asesora de Planeación","Estratégico","Oficina Asesora de Planeación "]
["Est.2.1 Gestión de Comunicaciones","Est.2.1","Asesor de Comunicaciones","Estratégico","Despacho del Ministro - Comunicaciones "]
["Mis.1.1 Coordinación y seguimiento de la Política Macroeconómica y Fiscal","Mis.1.1","Director General de Política Macroeconómica","Misional","Dirección General de Política Macroeconómica "]
["Mis.2.1 Programación Presupuestal de los recursos de la Nación","Mis.2.1","Director General de Presupuesto Público Nacional","Misional","Dirección General de Presupuesto Público Nacional"]
["Mis.2.2 Administración y seguimiento a la ejecución presupuestal","Mis.2.2","Director General de Presupuesto Público Nacional","Misional","Dirección General de Presupuesto Público Nacional"]
["Mis.3.1 Financiamiento Interno del PGN","Mis.3.1","Subdirector de Financiamiento Interno de la Nación","Misional","Subdirección de Financiamiento Interno de la Nación "]
["Mis.3.2 Financiamiento a Entidades","Mis.3.2","Subdirector de Financiamiento de otras entidades ","Misional","Subdirección de Financiamiento de otras entidades, seguimiento, saneamiento y cartera "]
["Mis.3.3 Financiamiento con Organismos Multilaterales y Gobiernos","Mis.3.3","Subdirector de Financiamiento con Organismos Multilaterales y Gobiernos","Misional","Subdirección de Financiamiento organismos multilaterales y gobiernos "]
["Mis.3.4 Gestión de Liquidez","Mis.3.4","Subdirector de Tesorería","Misional","Subdirección de Tesorería "]
["Mis.3.5 Gestión de Ingresos, Pagos y Presentación de Estados Financieros","Mis.3.5","Subdirector de Operaciones","Misional","Subdirección de Operaciones"]
["Mis.3.6 Administración de la Sobretasa de la Gasolina y ACPM","Mis.3.6","Coordinador Grupo de Administración de Sobretasa a la Gasolina y ACPM","Misional","Subdirección de Fortalecimiento Institucional Territorial - grupo sobretasa "]
["Mis.3.7 Gestión de Particiones Estatales y Sistemas Cofinanciados de Transporte Masivo ","Mis.3.7","Director Participaciones Estatales","Misional","Dirección General de Participaciones Estatales "]
["Mis.3.8 Apoyo a la Estructuración de Proyectos para la Vinculación de Capital Privado en Sectores de Responsabilidad del Estado","Mis.3.8","Subdirector de Asociaciones Público Privadas","Misional","Subdirección de Asociaciones Público Privadas"]
["Mis.3.9 Gestión de Bonos Pensionales","Mis.3.9","Jefe Oficina de Bonos Pensionales","Misional","Oficina de Bonos Pensionales"]
["Mis.3.10 Gestión de Riesgo Fiscal","Mis.3.10","Subdirector de Riesgos","Misional","Subdirección de Riesgo"]
["Mis.3.11 Apoyo, seguimiento y control del cubrimiento del pasivo pensional de las Entidades Territoriales","Mis.3.11","Director General de Regulación Económica de Seguridad Social ","Misional","Dirección General de Regulación Económica de la Seguridad Social"]
["Mis.3.13 Administración Integrada de la Información Financiera (SIIF Nación)","Mis.3.13","Coordinador Grupo de Administración del SIIF","Misional","Viceministerio General - Grupo  Administración del Sistema Integrado de Información Financiera SIIF"]
["Mis.3.14 Financiamiento Externo de la Nación y relaciones con Inversionistas","Mis.3.14","Subdirector de Financiamiento Externo","Misional","Subdirección de Financiamiento Externo de la Nación"]
["Mis.4.1 Asesoría Tributaria y Financiera a Entidades Territoriales","Mis.4.1","Subdirector de Fortalecimiento Institucional Territorial","Misional","Subdirección de Fortalecimiento Institucional Territorial"]
["Mis.4.2 Monitoreo y Apoyo al Saneamiento Fiscal de Entidades Territoriales","Mis.4.2","Subdirector de Apoyo al Saneamiento Fiscal Territorial","Misional","Subdirección de Apoyo al Saneamiento Fiscal Territorial"]
["Mis.4.3 Seguimiento al comportamiento financiero y fiscal del Sistema de Seguridad Social Integral","Mis.4.3","Director General de Regulación Económica de Seguridad Social ","Misional","Subdirección de Salud y Riesgos Profesionales"]
["Mis.4.5 Coordinación de la ejecución de la estrategia de monitoreo, seguimiento y control al uso de los recursos del Sistema General de Participaciones","Mis.4.5","Asesor Subdirección de Apoyo al Saneamiento Fiscal y Territorial","Misional","Subdirección de Apoyo al Saneamiento Fiscal Territorial"]
["Mis.4.6 Apoyo al Saneamiento Financiero Pensional de Entidades Estatales","Mis.4.6","Director General de Regulación Económica de Seguridad Social ","Misional","Subdirección de Pensiones "]
["Mis.4.8 Viabilidad, modificación, monitoreo, seguimiento y evaluación de los Programas de Saneamiento Fiscal y Financiero de las Empresas Sociales del Estado ","Mis.4.8","Asesor Subdirección de Apoyo al Saneamiento Fiscal y Territorial","Misional","Subdirección de Apoyo al Saneamiento Fiscal Territorial"]
["Mis.4.9 Participación en los Órganos Colegiados de Administración y Decisión del Sistema General de Regalías","Mis.4.9","Asesor Viceministerio General","Misional","Viceministerio General - Regalias"]
["Mis.5.1 Expedición Normativa y Emisión de Conceptos","Mis.5.1","Secretaria General","Misional","Secretaría General"]
["Mis.5.2 Coordinación  y Seguimiento a los Asuntos Legislativos","Mis.5.2","Jefe Oficina Asesora de Jurídica","Misional","Oficina Asesora Jurídica "]
["Apo.1 .3 Gobierno y Gestión TIC","Apo.1.3","Director De Tecnología","Apoyo","Dirección de Tecnología"]
["Apo.1.4 Gestión de Información","Apo.1.4","Subdirector de Servicios","Apoyo","Subdirección de Servicios "]
["Apo.2.1 Administración de Personal","Apo.2.1","Subdirector de Recursos Humanos","Apoyo","Subdirección de Recursos Humanos"]
["Apo.2.2 Desarrollo de Personal","Apo.2.2","Subdirector de Recursos Humanos","Apoyo","Subdirección de Recursos Humanos"]
["Apo.2.3 Gestión de Comisión Interior o Exterior","Apo.2.3","Subdirector de Recursos Humanos","Apoyo","Subdirección de Recursos Humanos"]
["Apo.3.4 Apoyo a la Gestión Financiera","Apo.3.4","Jefe Oficina Asesora de Planeación - Subdirector Financiero ","Apoyo","Subdirección Financiera - Oficina Asesora de Planeación "]
["Apo.4.1 Adquisición de Bienes y Servicios","Apo.4.1","Directora Administrativa - Coordinador Grupo de Contratación Directa - Coordinador Grupo de Licitaciones y Procesos Especiales","Apoyo","Dirección Administrativa - grupos de contratación directa y de licitaciones y procesos especiales"]
["Apo.4.2 Administración de Bienes y Servicios","Apo.4.2","Subdirector de Servicios","Apoyo","Subdirección de Servicios "]
["Apo.4.5 Gestión Ambiental ","Apo.4.5","Subdirector de Servicios","Apoyo","Subdirección de Servicios "]
["Apo.5.1 Defensa Judicial, pago de sentencias y conciliaciones","Apo.5.1","Subdirector Jurídico","Apoyo","Subdirección Jurídica"]
["Apo.5.3 Cartera","Apo.5.3","Subdirector Jurídico","Apoyo","Subdirección Jurídica"]
["Apo.6.1 Atención al ciudadano e instituciones","Apo.6.1","Subdirector de Servicios","Apoyo","Subdirección de Servicios "]
["Apo.6.2 Atención a Derechos de Petición y Emisión de Conceptos Jurídicos","Apo.6.2","Subdirector Jurídico","Apoyo","Subdirección Jurídica"]
["Eva.1.1 Evaluación Independiente","Eva.1.1","Jefe Oficina de Control Interno","Evaluación","Oficina de Control Interno "]
["Eva.1.2 Control Disciplinario Interno","Eva.1.2","Jefe Oficina de Control Disciplinario Interno","Evaluación","Oficna de Control Disciplinario Interno"]

{"sheet":"Recomendaciones","index":2,"n_rows":12,"n_cols":4,"rows_kept":12,"cut":false,"hidden":true,"merged":[[11,0,11,1],[7,2,8,2],[1,0,5,0],[0,0,0,1],[7,0,8,1],[6,0,6,1],[9,0,9,1],[10,0,10,1]]}
["No.",null,"Nombre del numeral","Recomendación"]
[1,"1.1","Nombre del proceso","Seleccione el nombre del proceso a caracterizar"]
[null,"1.2","Líder (es)","Seleccione el cargo del responsable del proceso. Si en el proceso hay un liderazgo compartido, por favor ubique al final de la lista, la opción que involucre a los diferentes cargos. "]
[null,"1.4","Tipo de Proceso","Seleccione el tipo de proceso, teniendo en cuenta el inventario o mapa de procesos "]
[null,"1.5","Objetivo","Establezca de manera concisa, el propósito del proceso: \n\nLa redacción debe iniciar con un verbo en infinitivo (ar, er, ir) y debe contemplar los fines, metas, o productos finales que se buscan obtener con la ejecución del proceso. \n\nRespondiendo las siguientes preguntas podrá determinar de una forma más fácil el objetivo de su proceso: \n\n1. ¿Qué hace?   Enuncie la actividad principal del proceso. Recuerde que debe iniciar con un verbo en infinitivo\n2. ¿Cómo lo hace?   Describa las actividades que le permiten atender el quehacer del proceso. Recuerde que debe estar directamente relacionado con el propósito fijado \n3. ¿Para qué lo hace? Establezca lo que se quiere alcanzar en términos de calidad, oportunidad, eficiencia, satisfacción o mejoramiento, entre otros.\n\nEjemplo:\n\n(Qué hace) Gestionar el talento humano de la Entidad, (¿Cómo lo hace?) mediante la provisión, tramite de novedades, la evaluación de los servidores públicos y la administración de las historias laborales de acuerdo con la normatividad vigente, (¿para qué lo hace?) para asegurar la operación institucional.\n\nNota: Para la formulación del objetivo evite utilizar verbos como: Propiciar, Propender, Coadyuvar, Apoyar, Integrar, Fomentar, Colaborar, Contribuir, Garantizar, Velar; los cuales no permiten orientar o delimitar el accionar del proceso."]
[null,"1.7","Alcance","Bajo una secuencia lógica, describa brevemente la actividad principal con la que inicia el desarrollo del proceso y la actividad con la que culmina.Cuando en el proceso se desarrollan actividades que no se encuentran dentro de la secuencia lógica (cadena de valor), menciónelas luego de la palabra \"Cubre\", \n\nEjemplo:\n\n(Desde) Recepción de los bienes y servicios del MHCP (Hasta) Enajenación, pérdida, donación y/o eliminación del bien y/o finalización del servicio Cubre:  El mantenimiento de los bienes e infraestructura y la prestación de los servicios logísticos."]
[2,null,"Productos Finales","Liste los productos en el orden en que se generan, de acuerdo al objetivo y el alcance del proceso e incluya una breve descripción y/o definición de este. "]
[3,null,"PHVM","A partir de la identificación de los productos finales  realizada en la etapa anterior:\n\nPaso 1. Liste nuevamente los productos finales en la casilla \"Salidas\" \nPaso 2. Seleccione los destinatarios internos o externos de los productos que enlistó el paso No.1  en la casilla: Grupos de Valor (Destinatarios) \nPaso 3. Defina las principales actividades del proceso que conllevan al desarrollo de esos productos en la casilla  \"Principales Actividades\"  \nPaso 4. Identifique de esas actividades cuales son del: Planear, Hacer, Verificar o Mejorar\nPaso 5. Identifique los principales insumos  ( políticas, documentos normativos o metodológicos, etc. ) que permiten iniciar cada actividad en la casilla \"Entradas\"\nPaso 6. Seleccione los proveedores internos o externos de las entradas que listó en el paso No.7  en la casilla: Grupos de Valor (Proveedores) \n\nTenga en cuenta que la identificación de las entradas, principales actividades y de los productos y servicios deben guardar relación con cada una de las cuatro etapas (Planear - Hacer - Verificar -Actuar). Haciéndolo de esta manera asegurará que podrá dar a conocer a sus grupos de valor (Proveedores - Destinatarios) de forma clara la información que desarrolla su proceso y cómo intervienen ellos."]
[null,null,null,"\nLa metodología que se utilizó para describir de manera lógica y secuencial las actividades del  proceso es el ciclo PHVM, o también conocido como el ciclo de Deming,  que comprende las siguientes etapas: \n\n1. Planear: aquellas necesarias para obtener el resultado esperado del proceso \n2. Hacer: aquellas que se ejecutan conforme lo definido en la etapa del \"Planear\"\n3. Verificar: aquellas que luego de la etapa del \"Hacer\" permiten determinar si el resultado del proceso cumplió con las expectativas fijadas en la etapa del \"Planear\" \n4. Mejorar: aquellas que son llevadas a cabo con base en las experiencias aprendidas en la etapa del \"Hacer\" o que se derivan de las observaciones y recomendaciones generadas en la etapa del \"Verificar\". \n\nEstas actividades buscan desarrollar de mejor manera el proceso y corregir las desviaciones que se puedan presentar en su desarrollo.\n\nAlgunos ejemplos de verbos utilizados en cada etapa: \n\n1. Planear: proyectar, planificar, programar, preparar, organizar, diseñar, estructurar, calcular, concebir.\n2. Hacer: producir, formar, generar, crear, originar, elaborar, realizar, terminar, construir, proceder, ejercer, ejecutar, establecer.\n3. Verificar: comprobar, cotejar, confirmar, revisar, constatar, realizar, demostrar, evidenciar, justificar, confrontar.\n4. Mejorar: ejecutar, ejercer, elaborar, proceder, intervenir\n"]
[4,null,"Recursos Esenciales para la Operación del Proceso","Identifique los equipos tecnlógicos, los recursos humanos y de infraestructura utilizados y que son esenciales para el cumplimiento del objetivo del proceso. Para el caso de los sistemas de información seleccione de la lista todos aquellos que utiliza, en el caso de los externos, relaciónelos en la respectiva casilla."]
[5,null,"Prácticas de Gestión","Para tener acceso a la informacion de las practicas de gestión, debe ingresar con su clave y contraseña en el Sistema de Monitoreo de la Gestión Integral (SMGI), una vez allí encontrará el mapa de procesos del Ministerio, ubique su Macroproceso. De esta manera, podrá acceder y consultar el seguimiento a los Planes, Indicadores, Riesgos, Mejoras, Reuniones y Compromisos de su proceso. En caso de requerir usuario o contraseña o capacitación en el aplicativo, solicite asesoría a la OAP."]
[6,null,"Trámites y OPA ","Tramite: Conjunto o serie de pasos o acciones reguladas por el Estado, que deben efectuar los usuarios para adquirir un derecho o cumplir con una obligación prevista o autorizada por la ley. Ejemplo: Afiliación y/o traslado de cesantías\n\nOPA: Se define como el conjunto de acciones que realiza el ciudadano de manera voluntaria, para obtener un producto o servicio que ofrece\nuna institución publica. Se caracterizan porque no son obligatorios y porque por lo general no tienen costo. Ejemplo:  Consulta de los extractos de cesantías.\n\nLos trámites y OPA solo aplican para lo procesos MISIONALES."]

{"sheet":"Consulta de Grupos de Valor","index":3,"n_rows":159,"n_cols":4,"rows_kept":159,"cut":false,"hidden":true,"merged":[[1,1,1,3]]}
[]
[null,"GRUPOS DE VALOR"]
[]
[null,"Internos",null,"Externos"]
[]
[null,"Alta Dirección del MHCP",null,"Academia"]
[null,"Dependencias y/o procesos del Ministerio de Hacienda y Crédito Público MHCP",null,"Administradoras de Fondos de Pensiones - AFP"]
[null,"Usuarios SIIF Nación",null,"Agencia Nacional de Hidrocarburos"]
[null,"Servidores Públicos del MHCP",null,"Agencia Nacional de Minería"]
[null,"Contratistas del MHCP ",null,"Agencias Calificadoras de Riesgo"]
[null,"Integrantes de Junta Directiva",null,"Agentes colocadores de OMAS"]
[null,"Supervisor del Contrato",null,"Analistas de mercado"]
[null,"Ordenador del Gasto y/o Pago ",null,"Archivo General de la Nación"]
[null,"Procesos líderes de políticas de Gestión y Desempeño Institucional ",null,"Asociación Nacional de Empresarios de Colombia - ANDI"]
[null,"Comisión Rectora del Sistema General de Regalias",null,"Asociación Nacional de Instituciones Financieras (ANIF)"]
[null,"Comité Institucional de Coordinación de Control Interno ",null,"Asociaciones de Municipios o Departamentos"]
[null,"Comité de Activos",null,"Asociaciones de Profesionales"]
[null,"Comité de Aprovechamiento de Activos Públicos CAAP",null,"Asociaciones de Usuarios en Salud"]
[null,"Comité de Capacitación y Bienestar Social",null,"Asociaciones sin Ánimo de Lucro"]
[null,"Comité de Crédito Educativo al Exterior",null,"ASOFONDOS"]
[null,"Comité de Nominación",null,"Autoridad Nacional de Televisión"]
[null,"Comité Institucional de Gestión y Desempeño ",null,"Autoridades Judiciales"]
[null,"Comité de Incentivos",null,"Banca Multilateral"]
[null,"Comité de Tesorería",null,"Banco de la Republica"]
[null,"Comité Operativo",null,"Bancos Internacionales"]
[null,"Comités de Servicios Públicos",null,"BANCOLDEX"]
[null,"Despacho del Director de Crédito Público",null,"Beneficiarios de Asignaciones Directas del SGR"]
[null,"Dirección Administrativa",null,"Biblioteca Nacional de Colombia"]
[null,"Dirección de Política Macroeconómica",null,"Bloomberg"]
[null,"Dirección de Tecnología ",null,"Bolsa de Valores de Colombia"]
[null,"Dirección General de Apoyo Fiscal",null,"Bufete de Abogados"]
[null,"Dirección General de Crédito Publico y del Tesoro Nacional ",null,"Cámara Colombiana del Libro"]
[null,"Dirección General de Participaciones Estatales",null,"Cámaras de Comercio"]
[null,"Dirección General de Presupuesto Público Nacional",null,"Central de Inversiones S.A - CISA"]
[null,"Dirección General de Regulación Económica de la Seguridad Social ",null,"Centro de Análisis y Asuntos Públicos - CAAP"]
[null,"Grupo de Asuntos Legales",null,"Centro Nacional de Información del Sector Social - CENISS"]
[null,"Grupo de Competencias y Desarrollo Humano",null,"Ciudadanía"]
[null,"Grupo de Contratos",null,"COLPENSIONES"]
[null,"Grupo de Derechos de Petición, Consultas y Cartera",null,"Comisión Legal de Cuentas de la Cámara de Representantes"]
[null,"Grupo de Financiamiento Otras Entidades",null,"Comisión Nacional del Servicio Civil - CNSC"]
[null,"Grupo de Historias Laborales",null,"Congreso de la República"]
[null,"Grupo de Pagos y Cumplimiento",null,"Consejo de Estado"]
[null,"Grupo de Seguimiento y Cartera de la SFOESSC",null,"Consejo de Ministros"]
[null,"Grupo Financiero Asesor – FAE",null,"Consejo Nacional de Política Económica y Social – CONPES"]
[null,"Grupo Gestión de Información",null,"Consejo Superior de Política Fiscal - CONFIS"]
[null,"Grupo Sistema Único de Gestión – OAP MHCP",null,"Contaduría General de la Nación - CGN"]
[null,"Grupo SIIF Nación",null,"Contraloría General de la República - CGR"]
[null,"Subdirección de Financiamiento ",null,"Contralorías Territoriales "]
[null,"Subdirección de Operaciones",null,"Corporaciones Autonomas Regionales - CAR"]
[null,"Subdirección de Recursos Humanos",null,"Corte Constitucional "]
[null,"Subdirección de Riesgo",null,"Corte Suprema de Justicia"]
[null,"Subdirección de Servicios",null,"DECEVAL"]
[null,"Subdirección de Tesorería",null,"Departamento Administrativo de la Función Pública - DAFP"]
[null,"Subdirección Financiamiento Externo de la Nación",null,"Departamento Administrativo Nacional de Estadística - DANE"]
[null,"Subdirección Financiamiento Interno de la Nación",null,"Departamento Nacional de Planeación - DNP"]
[null,"Subdirección Financiera",null,"Dirección de Impuestos y Aduanas Nacionales - DIAN"]
[null,"Est.1.1 Planeación estratégica sectorial e institucional",null,"Distribuidores Mayoristas de Combustible"]
[null,"Est.1.4 Administración, mejoramiento e innovación del SUG",null,"ECOPETROL"]
[null,"Est.2.1 Gestión de Comunicaciones",null,"Empresas de Archivo"]
[null,"Mis.1.1 Coordinación y seguimiento de la Política Macroeconómica y Fiscal",null,"Empresas de Solftware"]
[null,"Mis.2.1 Programación Presupuestal de los recursos de la Nación",null,"Empresas Industriales y Comerciales del Estado - EICE"]
[null,"Mis.2.2 Administración y seguimiento a la ejecución presupuestal",null,"Empresas prestadoras de Servicios Públicos"]
[null,"Mis.3.1 Financiamiento Interno ",null,"Empresas Privadas"]
[null,"Mis.3.2 Financiamiento a Entidades",null,"Empresas Sociales del Estado - ESE"]
[null,"Mis.3.3 Financiamiento con Organismos Multilaterales y Gobiernos",null,"Entes de Control del Nivel Nacional"]
[null,"Mis.3.4 Gestión de Liquidez",null,"Entes de Control del Nivel Territorial"]
[null,"Mis.3.5 Gestión de Ingresos, Pagos y Presentación de Estados Financieros",null,"Entidad Fiduciaria"]
[null,"Mis.3.6 Administración de la Sobretasa de la Gasolina y ACPM",null,"Entidades Adscritas y Vinculadas al Sector Hacienda"]
[null,"Mis.3.7 Gestión de Particiones Estatales y Sistemas Cofinanciados de Transporte Masivo ",null,"Entidades con Convenio de Libranzas"]
[null,"Mis.3.8 Apoyo a la Estructuración de Proyectos para la Vinculación de Capital Privado en Sectores de Responsabilidad del Estado",null,"Entidades con Deuda Garantizada por la Nación"]
[null,"Mis.3.9 Gestión de Bonos Pensionales",null,"Entidades de Educación"]
[null,"Mis.3.10 Gestión de Riesgo Fiscal",null,"Entidades del Gobierno Nacional"]
[null,"Mis.3.11 Apoyo, seguimiento y control del cubrimiento del pasivo pensional de las Entidades Territoriales",null,"Entidades del Sistema General de la Seguridad Social"]
[null,"Mis.3.13 Administración Integrada de la Información Financiera (SIIF Nación)",null,"Entidades en Liquidación"]
[null,"Mis.3.14 Financiamiento Externo de la Nación y relaciones con Inversionistas",null,"Entidad Estatal "]
[null,"Mis.4.1 Asesoría Tributaria y Financiera a Entidades Territorialesera a Entidades Territoriales",null,"Entidades Interesadas en el Sector Energético"]
[null,"Mis.4.2 Monitoreo y Apoyo al Saneamiento Fiscal de Entidades Territoriales",null,"Entidades líderes de política de gestión y desempeño institucional "]
[null,"Mis.4.3 Seguimiento al comportamiento financiero y fiscal del Sistema de Seguridad Social Integral",null,"Entidades Liquidadas"]
[null,"Mis.4.5 Coordinación de la ejecución de la estrategia de monitoreo, seguimiento y control al uso de los recursos del Sistema General de Participaciones",null,"Entidades Territoriales"]
[null,"Mis.4.6 Apoyo al Saneamiento Financiero Pensional de Entidades Estatales",null,"Exfuncionarios del MHCP"]
[null,"Mis.4.8 Viabilidad, modificación, monitoreo, seguimiento y evaluación de los Programas de Saneamiento Fiscal y Financiero de las Empresas Sociales del Estado ",null,"FEDESARROLLO"]
[null,"Mis.4.9 Participación en los Órganos Colegiados de Administración y Decisión del Sistema General de Regalías",null,"Fiduprevisora"]
[null,"Mis.5.1 Expedición Normativa y Emisión de Conceptos",null,"Financiera de Desarrollo Territorial  - FINDETER"]
[null,"Mis.5.2 Coordinación y Seguimiento a los Asuntos Legislativos",null,"Fiscalía General de la Nación"]
[null,"Apo.1.3 Gobierno y Gestión TIC",null,"Fondo de Garantías de Instituciones Financieras  - FOGAFIN"]
[null,"Apo.1.4 Gestión de Información",null,"Fondo Financiero de Proyectos de Desarrollo - FONADE"]
[null,"Apo.2.1 Administración de Personal",null,"Fondo Nacional de Garantías - FNG"]
[null,"Apo.2.2 Desarrollo de Personal",null,"Fondo Nacional del Ahorro "]
[null,"Apo.2.3 Gestión de Comisión Interior o Exterior",null,"Fondos de Empleados"]
[null,"Apo.3 Apoyo a la Gestión Financiera",null,"Fondos Privados de Cesantías"]
[null,"Apo.4.1 Adquisición de Bienes y Servicios",null,"FONPRECON"]
[null,"Apo.4.2 Administración de Bienes y Servicios",null,"Gremios ganaderos, agrícola, comercio, transporte, industria, construcción"]
[null,"Apo.4.5 Gestión Ambiental ",null,"Gremios Petroleros"]
[null,"Apo.5.1 Defensa Judicial, pago de sentencias y conciliaciones",null,"Hospitales"]
[null,"Apo.5.3 Cartera",null,"Imprenta Nacional de la República"]
[null,"Apo.6.1 Atención al ciudadano e instituciones",null,"Instituciones Financieras Administradoras de Portafolios"]
[null,"Apo.6.2 Atención a Derechos de Petición y Emisión de Conceptos Jurídicos",null,"Instituciones Financieras en Liquidación"]
[null,"Eva.1.1 Evaluación Independiente",null,"Instituciones Financieras Internacionales"]
[null,"Eva.1.2 Control Disciplinario Interno",null,"Instituciones Financieras Nacionales"]
[null,null,null,"Instituto Colombiano de Crédito Educativo y Estudios Técnicos en el Exterior — ICETEX"]
[null,null,null,"Instituto Colombiano de Desarrollo Rural - INCODER"]
[null,null,null,"Instituto Colombiano de Norma Técnicas y Certificación - INCONTEC"]
[null,null,null,"Instituto Colombiano para la Evaluación de la Educación - ICFES"]
[null,null,null,"Instituto Nacional de Vías - INVIAS"]
[null,null,null,"Interventor del Contrato"]
[null,null,null,"Inversionistas"]
[null,null,null,"ISA"]
[null,null,null,"Juntas de acción comunal"]
[null,null,null,"Juzgados "]
[null,null,null,"Medios de comunicación"]
[null,null,null,"Migración Colombia"]
[null,null,null,"Ministerio de Comercio, Industria y Turismo"]
[null,null,null,"Ministerio de Educación Nacional"]
[null,null,null,"Ministerio de Medio Ambiente y Desarrollo Sostenible"]
[null,null,null,"Ministerio de Minas y Energía"]
[null,null,null,"Ministerio de Salud y Protección Social"]
[null,null,null,"Ministerio de Tecnologías de la Información y las Comunicaciones "]
[null,null,null,"Ministerio de Transporte"]
[null,null,null,"Ministerio del Trabajo"]
[null,null,null,"Oferentes"]
[null,null,null,"Organismos Internacionales"]
[null,null,null,"Órganos Colegiados de Administración y Decisión –OCAD Regionales"]
[null,null,null,"Órganos que conforman al Presupuesto General de la Nación"]
[null,null,null,"Órganos que pertenecen al Presupuesto General de la Nación"]
[null,null,null,"Participantes del Programa de Creadores de Deuda Pública Interna"]
[null,null,null,"Participantes del programa de creadores de mercado"]
[null,null,null,"PASIVOCOL"]
[null,null,null,"PASIVONAL"]
[null,null,null,"Personas con Discapacidad"]
[null,null,null,"Persona Jurídica"]
[null,null,null,"Persona Natural"]
[null,null,null,"Personerías"]
[null,null,null,"PRAP Fiduciarias"]
[null,null,null,"Presidencia de la República"]
[null,null,null,"Prestamistas (Banca Multilateral, Gobierno, otros)"]
[null,null,null,"Procuraduría General de la Nación - PGN"]
[null,null,null,"Productores, importadores y/o Distribuidores Mayoristas de combustibles"]
[null,null,null,"Proveedores"]
[null,null,null,"Representación de Colombia en el Organismo Multilateral"]
[null,null,null,"Representantes de organismos, gremios y agremiaciones del sector privado e internacional "]
[null,null,null,"Secretaria de Hacienda Distrital"]
[null,null,null,"Secretaria de la Comisión Interparlamentaria de Crédito Público"]
[null,null,null,"Secretaria Distrital de Ambiente"]
[null,null,null,"Secretaria Técnica- CICP"]
[null,null,null,"Sector Solidario"]
[null,null,null,"Servicios Postales Nacionales"]
[null,null,null,"Sistema Financiero"]
[null,null,null,"Sociedades de Economía Mixta"]
[null,null,null,"Superintendencia de Economía Solidaria"]
[null,null,null,"Superintendencia Financiera"]
[null,null,null,"Transparencia por Colombia"]
[null,null,null,"Unidad para la Atención y Reparación Integral a las víctimas"]
[null,null,null,"Unidades Ejecutoras"]
[null,null,null,"Universidades Territoriales"]
[null,null,null,"Usuarios de la Información Contable Pública"]
[null,null,null,"Usuarios de Servicios TIC"]
[null,null,null,"Usuarios San Juan de Dios"]
[null,null,null,"Victimas"]
[null,null,null,"Vocales de control social"]

{"sheet":"Listas Desplegables","index":4,"n_rows":157,"n_cols":74,"rows_kept":157,"cut":false,"hidden":true,"merged":[[0,5,0,6],[0,7,0,8]]}
["PHVM","Tipo de proceso","Área o Dependencia","Procesos","Código de Procesos","Proveedores",null,"Destinatarios",null,"Entradas","Salidas","Líder del proceso","Aplicativo","Estado en SUIT","Tipos de Productos","Trámites u OPA"]
["Seleccione una opción","Seleccione una opción","Seleccione una opción","Seleccione una opción","Seleccione una opción","Internos","Externos","Internos","Externos","Seleccione una opción","Seleccione una opción","Seleccione una opción","Seleccione una opción","Seleccione una opción","Seleccione una opción","Seleccione una opción"]
["Planear","Misional","1. Despacho del Ministro","Est.1.1 Planeación estratégica sectorial e institucional","Est.1.1","Seleccione una opción","Seleccione una opción","Seleccione una opción","Seleccione una opción","Campañas o estrategias para divulgación por redes sociales","Afectaciones contables y presupuestales correspondientes.","Asesor de Comunicaciones","Activos Fijos","Registrado en SUIT","Legal","Trámite"]
["Hacer","Apoyo","1.1 Oficina Asesora de Jurídica","Est.1.4 Administración, mejoramiento e innovación del SUG","Est.1.4","Alta Dirección del MHCP","Academia","Alta Dirección del MHCP","Academia","Cuenta Bancaria Activa","Archivos de Pago.","Asesor Subdirección de Apoyo al Saneamiento Fiscal y Territorial","Almacen de Consumo","Sin Registro","Cliente","OPA"]
["Verificar","Evaluación","2. Despacho del Viceministro General","Est.2.1 Gestión de Comunicaciones","Est.2.1","Dependencias y/o procesos del Ministerio de Hacienda y Crédito Público MHCP","Administradoras de Fondos de Pensiones - AFP","Dependencias y/o procesos del Ministerio de Hacienda y Crédito Público MHCP","Administradoras de Fondos de Pensiones - AFP","Cuentas bancarias DTN","Asesoría","Asesor Viceministerio General","Aplicativo De Seguimiento De Acreencias (ASA)",null,"Funcional"]
["Mejorar","Estratégico","2.1 Oficina de Control Interno","Mis.1.1 Coordinación y seguimiento de la Política Macroeconómica y Fiscal","Mis.1.1","Usuarios SIIF Nación","Agencia Nacional de Hidrocarburos","Usuarios SIIF Nación","Agencia Nacional de Hidrocarburos","Decisión de colocación de excedentes","Capacitación","Coordinador Grupo de Administración de Sobretasa a la Gasolina y ACPM","BI- Banca de Inversión",null,"Legal y Cliente"]
[null,null,"2.2 Oficina Asesora de Planeación","Mis.2.1 Programación Presupuestal de los recursos de la Nación","Mis.2.1","Servidores Públicos del MHCP","Agencia Nacional de Minería","Servidores Públicos del MHCP","Agencia Nacional de Minería","Acreedores varios por recursos de la Nación sujetos a devolución."," PAC actualizado","Coordinador Grupo de Administración del SIIF","BI- Seguimiento Fiscal",null,"Legal y Funcional",null,null,null,null,null,null,null,null,null,null,null,null,null,null,null,null,null,null,null,null,null,null,null,null,null,null,null,null,null,null,null,null,null,null,null,null,null,null,null,null,null,null,null,null,null,null,null,null,null,null,null,null,null,null,null,null,null,null,{"$f":"VLOOKUP('Listas Desplegables'!D3,'Listas Desplegables'!E3:E45,1,FALSE)","v":{"$error":"#N/A"}}]
[null,null,"2.3 Oficina de Bonos Pensionales","Mis.2.2 Administración y seguimiento a la ejecución presupuestal","Mis.2.2","Contratistas del MHCP ","Agencias Calificadoras de Riesgo","Contratistas del MHCP ","Agencias Calificadoras de Riesgo","Decreto de liquidación.","Comunicados Boletines, Videos, Fotografía, Asistencia Foros del Ministro\nIntranet Piezas de comunicación","Coordinador Grupo de Contratación Directa","BI-Participación estatal",null,"Funcional y Cliente "]
[null,null,"3. Despacho del Viceministro Técnico","Mis.3.1 Financiamiento Interno del PGN","Mis.3.1","Integrantes de Junta Directiva","Agentes colocadores de OMAS","Integrantes de Junta Directiva","Agentes colocadores de OMAS","Deuda de la Nación Interna y Externa.","Conciliaciones","Coordinador Grupo de Licitaciones y Procesos Especiales","Bodega - DRESS",null,"Legal, Cliente y Funcional"]
[null,null,"3.1 Dirección General de Política Macroeconómica","Mis.3.2 Financiamiento a Entidades","Mis.3.2","Supervisor del Contrato","Analistas de mercado","Supervisor del Contrato","Analistas de mercado","Documentos legales que soporten ajustes Presupuestales","Cuentas bancarias Activas -tesorerías entidades","Directora Administrativa","BONOS PENSIONALES"]
[null,null,"3.2 Dirección General de Regulación Financiera","Mis.3.3 Financiamiento con Organismos Multilaterales y Gobiernos","Mis.3.3","Ordenador del Gasto y/o Pago ","Archivo General de la Nación","Ordenador del Gasto y/o Pago ","Archivo General de la Nación","Embargos de las cuentas del Tesoro de entidades nacionales.","Cuentas bancarias DTN","Director De Tecnología","C.R.M."]
[null,null,"3.3 Dirección General de la Regulación Económica de la Seguridad Social","Mis.3.4 Gestión de Liquidez","Mis.3.4","Procesos líderes de políticas de Gestión y Desempeño Institucional ","Asociación Nacional de Empresarios de Colombia - ANDI","Procesos líderes de políticas de Gestión y Desempeño Institucional ","Asociación Nacional de Empresarios de Colombia - ANDI","Estrategia de mantenimiento y mejoramiento del SUG.","Estados financieros.","Director General de Política Macroeconómica","Carteras"]
[null,null,"3.3.1 Subdirección de Pensiones","Mis.3.5 Gestión de Ingresos, Pagos y Presentación de Estados Financieros","Mis.3.5","Comisión Rectora del Sistema General de Regalias","Asociación Nacional de Instituciones Financieras (ANIF)","Comisión Rectora del Sistema General de Regalias","Asociación Nacional de Instituciones Financieras (ANIF)","Extractos bancarios","Estrategia de mantenimiento y mejoramiento del SUG","Director General de Presupuesto Público Nacional","Certificaciones"]
[null,null,"3.3.2 Subdirección de Salud y Riesgos Profesionales","Mis.3.6 Administración de la Sobretasa de la Gasolina y ACPM","Mis.3.6","Comité Institucional de Coordinación de Control Interno ","Asociaciones de Municipios o Departamentos","Comité Institucional de Coordinación de Control Interno ","Asociaciones de Municipios o Departamentos","Fondos recibidos en administración","Flujo de Pagos","Director General de Regulación Económica de Seguridad Social ","CIPRIM"]
[null,null,"4. Secretaría General","Mis.3.7 Gestión de Particiones Estatales y Sistemas Cofinanciados de Transporte Masivo ","Mis.3.7","Comité de Activos","Asociaciones de Profesionales","Comité de Activos","Asociaciones de Profesionales","Gestiones\nrealizadas, detalladas en los\navances y/o Documentación cargada en los aplicativos SMGI y SINERGIA","Informe de publicaciones de las pantallas","Director Participaciones Estatales","Comisiones"]
[null,null,"4.1 Oficina de Control Disciplinario Interno","Mis.3.8 Apoyo a la Estructuración de Proyectos para la Vinculación de Capital Privado en Sectores de Responsabilidad del Estado","Mis.3.8","Comité de Aprovechamiento de Activos Públicos CAAP","Asociaciones de Usuarios en Salud","Comité de Aprovechamiento de Activos Públicos CAAP","Asociaciones de Usuarios en Salud","Giros de la sobretasa a la gasolina y ACPM.","Informe de Revisión del Sistema Único de Gestión","Jefe Oficina Asesora de Jurídica","Contabilidad"]
[null,null,"4.3 Dirección Administrativa","Mis.3.9 Gestión de Bonos Pensionales","Mis.3.9","Comité de Capacitación y Bienestar Social","Asociaciones sin Ánimo de Lucro","Comité de Capacitación y Bienestar Social","Asociaciones sin Ánimo de Lucro","Giros de recursos del SGR.","Informe de seguimiento al plan estratégico sectorial","Jefe Oficina Asesora de Planeación","Contratos - MHCP"]
[null,null,"4.3.1 Subdirección Financiera","Mis.3.10 Gestión de Riesgo Fiscal","Mis.3.10","Comité de Crédito Educativo al Exterior","ASOFONDOS","Comité de Crédito Educativo al Exterior","ASOFONDOS","Información de auditorías internas de calidad","Informe de Seguimiento publicaciones en la intranet","Jefe Oficina Asesora de Planeación - Subdirector Financiero ","Control de Caja / Pagos"]
[null,null,"4.3.2 Subdirección de Recursos Humanos","Mis.3.11 Apoyo, seguimiento y control del cubrimiento del pasivo pensional de las Entidades Territoriales","Mis.3.11","Comité de Nominación","Autoridad Nacional de Televisión","Comité de Nominación","Autoridad Nacional de Televisión","Información requerida para la revisión del sistema.","Informe publicación de noticias del Ministerio de Hacienda","Jefe Oficina de Bonos Pensionales","Cuentas Corrientes"]
[null,null,"4.3.3 Subdirección de Servicios","Mis.3.13 Administración Integrada de la Información Financiera (SIIF Nación)","Mis.3.13","Comité Institucional de Gestión y Desempeño ","Autoridades Judiciales","Comité Institucional de Gestión y Desempeño ","Autoridades Judiciales","Ley de Presupuesto del Sistema General de Regalías (SGR).","Informe redes sociales","Jefe Oficina de Control Disciplinario Interno","Cuentas Inactivas Tesoro"]
[null,null,"4.4 Dirección de Tecnología","Mis.3.14 Financiamiento Externo de la Nación y relaciones con Inversionistas","Mis.3.14","Comité de Incentivos","Banca Multilateral","Comité de Incentivos","Banca Multilateral","Ley de Presupuesto del Sistema General de Regalías (SGR).","Informes cambiarios para Banco de la República y DIAN","Jefe Oficina de Control Interno","Cumplidos Para Pago MHCP"]
[null,null,"4.4.1 Subdirección de Administración de Recursos Tecnológicos","Mis.4.1 Asesoría Tributaria y Financiera a Entidades Territoriales","Mis.4.1","Comité de Tesorería","Banco de la Republica","Comité de Tesorería","Banco de la Republica","Lineamientos Estratégicos del MHCP","Informes contables","Secretaria General","DECRETO 028"]
[null,null,"4.4.2 Subdirección de Ingeniería de Software","Mis.4.2 Monitoreo y Apoyo al Saneamiento Fiscal de Entidades Territoriales","Mis.4.2","Comité Operativo","Bancos Internacionales","Comité Operativo","Bancos Internacionales","Lineamientos y/o requerimientos normativos","Informes de seguimiento","Subdirector de Administración de Recursos Tecnológicos ","DELFOS (VIABILIDAD Y SANEAMIENTO FISCAL TERRITORIAL)"]
[null,null,"5. Dirección General del Presupuesto Público Nacional","Mis.4.3 Seguimiento al comportamiento financiero y fiscal del Sistema de Seguridad Social Integral","Mis.4.3","Comités de Servicios Públicos","BANCOLDEX","Comités de Servicios Públicos","BANCOLDEX","Líneas de Política\ndel Departamento Administrativo de\nla Función Pública","Metodología a utilizar en la formulación de planes.","Subdirector de Apoyo al Saneamiento Fiscal Territorial","Depreciación"]
[null,null,"5.1 Subdirección de Análisis y Consolidación Presupuestal","Mis.4.5 Coordinación de la ejecución de la estrategia de monitoreo, seguimiento y control al uso de los recursos del Sistema General de Participaciones","Mis.4.5","Despacho del Director de Crédito Público","Beneficiarios de Asignaciones Directas del SGR","Despacho del Director de Crédito Público","Beneficiarios de Asignaciones Directas del SGR","Metas de Pago","Metodologías del SUG","Subdirector de Asociaciones Público Privadas","Descuentos Corrientes"]
[null,null,"5.2 Subdirección de Infraestructura y Desarrollo Económico","Mis.4.6 Apoyo al Saneamiento Financiero Pensional de Entidades Estatales","Mis.4.6","Dirección Administrativa","Biblioteca Nacional de Colombia","Dirección Administrativa","Biblioteca Nacional de Colombia","Metodologías de planeación y monitoreo","Orden de Pago en estado pagada en SIIF y SPGR.","Subdirector de Financiamiento con Organismos Multilaterales y Gobiernos","Devoluciones"]
[null,null,"5.3 Subdirección de Administración General del Estado","Mis.4.8 Viabilidad, modificación, monitoreo, seguimiento y evaluación de los Programas de Saneamiento Fiscal y Financiero de las Empresas Sociales del Estado ","Mis.4.8","Dirección de Política Macroeconómica","Bloomberg","Dirección de Política Macroeconómica","Bloomberg","Misión y Visión del MHCP","PAC básico","Subdirector de Financiamiento de otras entidades ","Ejecución  y Programación Presupuestal  Empresa - EICE"]
[null,null,"6. Dirección General de Crédito Público y Tesoro Nacional","Mis.4.9 Participación en los Órganos Colegiados de Administración y Decisión del Sistema General de Regalías","Mis.4.9","Dirección de Tecnología ","Bolsa de Valores de Colombia","Dirección de Tecnología ","Bolsa de Valores de Colombia","Monitoreo ejecución Plan Estratégico del MHCP","Plan Comunicaciones divulgado en la intranet","Subdirector de Financiamiento Externo","Embargos"]
[null,null,"6.1 Subdirección de Financiamiento Interno de la Nación","Mis.5.1 Expedición Normativa y Emisión de Conceptos","Mis.5.1","Dirección General de Apoyo Fiscal","Bufete de Abogados","Dirección General de Apoyo Fiscal","Bufete de Abogados","Necesidades de asesoría y/o capacitación","Plan de comunicaciones","Subdirector de Financiamiento Interno de la Nación","Exfuncionarios"]
[null,null,"5.4 Subdirección de Desarrollo Social","Mis.5.2 Coordinación  y Seguimiento a los Asuntos Legislativos","Mis.5.2","Dirección General de Crédito Publico y del Tesoro Nacional ","Cámara Colombiana del Libro","Dirección General de Crédito Publico y del Tesoro Nacional ","Cámara Colombiana del Libro","Modelo Integrado de Planeación y Gestión","PBC (Plan Bienal de Caja) básico","Subdirector de Fortalecimiento Institucional Territorial","Financiera"]
[null,null,"6.2 Subdirección de Financiamiento Externo de la Nación","Apo.1 .3 Gobierno y Gestión TIC","Apo.1.3","Dirección General de Participaciones Estatales","Cámaras de Comercio","Dirección General de Participaciones Estatales","Cámaras de Comercio","Orden de pago autorizadas","Plan de mantenimiento y mejoramiento del Sistema Único de Gestión – SUG.","Subdirector de Ingeniería de Software ","Funcionarios"]
[null,null,"6.3 Subdirección de Financiamiento con Organismos Multilaterales y Gobiernos","Apo.1.4 Gestión de Información","Apo.1.4","Dirección General de Presupuesto Público Nacional","Central de Inversiones S.A - CISA","Dirección General de Presupuesto Público Nacional","Central de Inversiones S.A - CISA","Órdenes de pago autorizadas","Plan Estratégico Institucional MHCP","Subdirector de Operaciones","Giros Históricos"]
[null,null,"4.2 Subdirección Jurídica","Apo.2.1 Administración de Personal","Apo.2.1","Dirección General de Regulación Económica de la Seguridad Social ","Centro de Análisis y Asuntos Públicos - CAAP","Dirección General de Regulación Económica de la Seguridad Social ","Centro de Análisis y Asuntos Públicos - CAAP","Giros de los recursos de la Nación.","Informe de seguimiento al plan estratégico institucional del MHCP","Subdirector de Recursos Humanos","Hoja de Ruta"]
[null,null,"6.4 Subdirección de Tesorería","Apo.2.2 Desarrollo de Personal","Apo.2.2","Grupo de Asuntos Legales","Centro Nacional de Información del Sector Social - CENISS","Grupo de Asuntos Legales","Centro Nacional de Información del Sector Social - CENISS","PAC","Plan Estratégico Sector Hacienda","Subdirector de Riesgos","Horario"]
[null,null,"6.5 Subdirección de Financiamiento de Otras Entidades, Seguimiento, Saneamiento y Cartera","Apo.2.3 Gestión de Comisión Interior o Exterior","Apo.2.3","Grupo de Competencias y Desarrollo Humano","Ciudadanía","Grupo de Competencias y Desarrollo Humano","Ciudadanía","Pagos por devoluciones de recursos.","Publicación de documentos vigentes","Subdirector de Servicios","I.R.C."]
[null,null,"6.6 Subdirección de Banca de Inversión","Apo.3.4 Apoyo a la Gestión Financiera","Apo.3.4","Grupo de Contratos","COLPENSIONES","Grupo de Contratos","COLPENSIONES","PBC","Registros y comprobantes contables.","Subdirector de Tesorería","INTERNET"]
[null,null,"6.7 Subdirección de Riesgo","Apo.4.1 Adquisición de Bienes y Servicios","Apo.4.1","Grupo de Derechos de Petición, Consultas y Cartera","Comisión Legal de Cuentas de la Cámara de Representantes","Grupo de Derechos de Petición, Consultas y Cartera","Comisión Legal de Cuentas de la Cámara de Representantes","Plan Bienal de Caja del SGR","Resultados del seguimiento y medición de procesos","Subdirector Financiero ","INTRANET"]
[null,null,"6.8 Subdirección de Operaciones","Apo.4.2 Administración de Bienes y Servicios","Apo.4.2","Grupo de Financiamiento Otras Entidades","Comisión Nacional del Servicio Civil - CNSC","Grupo de Financiamiento Otras Entidades","Comisión Nacional del Servicio Civil - CNSC","Plan Bienal de Caja del SGR","Riesgos del proceso gestionado","Subdirector Jurídico","Juntas Directivas"]
[null,null,"7. Dirección General de Apoyo Fiscal","Apo.4.5 Gestión Ambiental ","Apo.4.5","Grupo de Historias Laborales","Congreso de la República","Grupo de Historias Laborales","Congreso de la República","Plan Nacional de Desarrollo.","Transferencia de recursos.",null,"Mantenimiento"]
[null,null,"7.1 Subdirección de Apoyo al Saneamiento Fiscal Territorial","Apo.5.1 Defensa Judicial, pago de sentencias y conciliaciones","Apo.5.1","Grupo de Pagos y Cumplimiento","Consejo de Estado","Grupo de Pagos y Cumplimiento","Consejo de Estado","Plan para el mantenimiento y mejoramiento del SUG",null,null,"Modelo Operaciones Efectivas de Caja "]
[null,null,"7.2 Subdirección de Fortalecimiento Institucional Territorial","Apo.5.3 Cartera","Apo.5.3","Grupo de Seguimiento y Cartera de la SFOESSC","Consejo de Ministros","Grupo de Seguimiento y Cartera de la SFOESSC","Consejo de Ministros","Planes de anteriores vigencias",null,null,"Modificaciones por estudio a la ley de gastos e ingresos"]
[null,null,"8. Órganos de Asesoría y Coordinación","Apo.6.1 Atención al ciudadano e instituciones","Apo.6.1","Grupo Financiero Asesor – FAE","Consejo Nacional de Política Económica y Social – CONPES","Grupo Financiero Asesor – FAE","Consejo Nacional de Política Económica y Social – CONPES","Planes de mejoramiento.",null,null,"Nómina"]
[null,null,"8.1 Consejo Superior de Política Fiscal","Apo.6.2 Atención a Derechos de Petición y Emisión de Conceptos Jurídicos","Apo.6.2","Grupo Gestión de Información","Consejo Superior de Política Fiscal - CONFIS","Grupo Gestión de Información","Consejo Superior de Política Fiscal - CONFIS","Programación de pagos entidades",null,null,"OCDI"]
[null,null,"8.2 Consejo Macroeconómico","Eva.1.1 Evaluación Independiente","Eva.1.1","Grupo Sistema Único de Gestión – OAP MHCP","Contaduría General de la Nación - CGN","Grupo Sistema Único de Gestión – OAP MHCP","Contaduría General de la Nación - CGN","Programas de Gobierno",null,null,"PASIVOCOL"]
[null,null,"8.3 Comité Sectorial de Desarrollo Administrativo","Eva.1.2 Control Disciplinario Interno","Eva.1.2","Grupo SIIF Nación","Contraloría General de la República - CGR","Grupo SIIF Nación","Contraloría General de la República - CGR","Proyección de pagos de regalías",null,null,"Personal"]
[null,null,"8.4 Comité de Coordinación del Sistema de Control Interno y Calidad",null,null,"Subdirección de Financiamiento ","Contralorías Territoriales ","Subdirección de Financiamiento ","Contralorías Territoriales ","Proyecciones de pago",null,null,"Planeación Tesoro - Flujo Caja"]
[null,null,"8.5 Comité de Conciliación",null,null,"Subdirección de Operaciones","Corporaciones Autonomas Regionales - CAR","Subdirección de Operaciones","Corporaciones Autonomas Regionales - CAR","Recaudos de los recursos de la Nación.",null,null,"Plantas y nóminas"]
[null,null,"8.6 Comisión de Personal",null,null,"Subdirección de Recursos Humanos","Corte Constitucional ","Subdirección de Recursos Humanos","Corte Constitucional ","Resolución de pagos de servicio de la deuda",null,null,"Politica Macro"]
[null,null,"2.2 Oficina Asesora de Planeación - 4.3.1 Subdirección Financiera",null,null,"Subdirección de Riesgo","Corte Suprema de Justicia","Subdirección de Riesgo","Corte Suprema de Justicia","Resolución de Presupuesto del Servicio de la Deuda de la Nación",null,null,"PORFIN"]
[null,null,null,null,null,"Subdirección de Servicios","DECEVAL","Subdirección de Servicios","DECEVAL","Resultados de la revisión del SUG.",null,null,"Preinscripción capacitación"]
[null,null,null,null,null,"Subdirección de Tesorería","Departamento Administrativo de la Función Pública - DAFP","Subdirección de Tesorería","Departamento Administrativo de la Función Pública - DAFP","Solicitud de Distribución del PAC",null,null,"Presupuesto – Ejecucion Presupuestal Nación"]
[null,null,null,null,null,"Subdirección Financiamiento Externo de la Nación","Departamento Administrativo Nacional de Estadística - DANE","Subdirección Financiamiento Externo de la Nación","Departamento Administrativo Nacional de Estadística - DANE","Solicitudes de divulgación de información",null,null,"Procesos Judiciales"]
[null,null,null,null,null,"Subdirección Financiamiento Interno de la Nación","Departamento Nacional de Planeación - DNP","Subdirección Financiamiento Interno de la Nación","Departamento Nacional de Planeación - DNP","Solicitudes de modificación de PAC",null,null,"PTE"]
[null,null,null,null,null,"Subdirección Financiera","Dirección de Impuestos y Aduanas Nacionales - DIAN","Subdirección Financiera","Dirección de Impuestos y Aduanas Nacionales - DIAN","Temas relacionados con gestión de la calidad, eficiencia administrativa y cero papel, racionalización de trámites, modernización, riesgos operativos o de anticorrupción, etc.",null,null,"S.G.P. – Sistema General de Participaciones"]
[null,null,null,null,null,"Est.1.1 Planeación estratégica sectorial e institucional","Distribuidores Mayoristas de Combustible","Est.1.1 Planeación estratégica sectorial e institucional","Distribuidores Mayoristas de Combustible","Transferencia de recursos del S.G.R. de la ANM y la ANH",null,null,"S.I.F. - Sistema de Información de FONPET"]
[null,null,null,null,null,"Est.1.4 Administración, mejoramiento e innovación del SUG","ECOPETROL","Est.1.4 Administración, mejoramiento e innovación del SUG","ECOPETROL","Visión de esfuerzos institucionales y sectoriales",null,null,"SARA"]
[null,null,null,null,null,"Est.2.1 Gestión de Comunicaciones","Empresas de Archivo","Est.2.1 Gestión de Comunicaciones","Empresas de Archivo","Plan para el mantenimiento y mejoramiento del SUG.",null,null,"SDP - Sistema de Deuda Pública"]
[null,null,null,null,null,"Mis.1.1 Coordinación y seguimiento de la Política Macroeconómica y Fiscal","Empresas de Solftware","Mis.1.1 Coordinación y seguimiento de la Política Macroeconómica y Fiscal","Empresas de Solftware",null,null,null,"Sentencias y Conciliaciones"]
[null,null,null,null,null,"Mis.2.1 Programación Presupuestal de los recursos de la Nación","Empresas Industriales y Comerciales del Estado - EICE","Mis.2.1 Programación Presupuestal de los recursos de la Nación","Empresas Industriales y Comerciales del Estado - EICE",null,null,null,"Señales Débiles"]
[null,null,null,null,null,"Mis.2.2 Administración y seguimiento a la ejecución presupuestal","Empresas prestadoras de Servicios Públicos","Mis.2.2 Administración y seguimiento a la ejecución presupuestal","Empresas prestadoras de Servicios Públicos",null,null,null,"SGR-OCAD"]
[null,null,null,null,null,"Mis.3.1 Financiamiento Interno ","Empresas Privadas","Mis.3.1 Financiamiento Interno ","Empresas Privadas",null,null,null,"SIED – Sistema Integrado Electrónico  Documental"]
[null,null,null,null,null,"Mis.3.2 Financiamiento a Entidades","Empresas Sociales del Estado - ESE","Mis.3.2 Financiamiento a Entidades","Empresas Sociales del Estado - ESE",null,null,null,"SIED-Correspondencia "]
[null,null,null,null,null,"Mis.3.3 Financiamiento con Organismos Multilaterales y Gobiernos","Entes de Control del Nivel Nacional","Mis.3.3 Financiamiento con Organismos Multilaterales y Gobiernos","Entes de Control del Nivel Nacional",null,null,null,"SIED-DAF-PSSF-PRESENTACIÓN"]
[null,null,null,null,null,"Mis.3.4 Gestión de Liquidez","Entes de Control del Nivel Territorial","Mis.3.4 Gestión de Liquidez","Entes de Control del Nivel Territorial",null,null,null,"SIED-PQRs"]
[null,null,null,null,null,"Mis.3.5 Gestión de Ingresos, Pagos y Presentación de Estados Financieros","Entidad Fiduciaria","Mis.3.5 Gestión de Ingresos, Pagos y Presentación de Estados Financieros","Entidad Fiduciaria",null,null,null,"SIED-Retiros del FONPET"]
[null,null,null,null,null,"Mis.3.6 Administración de la Sobretasa de la Gasolina y ACPM","Entidades Adscritas y Vinculadas al Sector Hacienda","Mis.3.6 Administración de la Sobretasa de la Gasolina y ACPM","Entidades Adscritas y Vinculadas al Sector Hacienda",null,null,null,"SIED-SISCOP"]
[null,null,null,null,null,"Mis.3.7 Gestión de Particiones Estatales y Sistemas Cofinanciados de Transporte Masivo ","Entidades con Convenio de Libranzas","Mis.3.7 Gestión de Particiones Estatales y Sistemas Cofinanciados de Transporte Masivo ","Entidades con Convenio de Libranzas",null,null,null,"SIED-SITPRES"]
[null,null,null,null,null,"Mis.3.8 Apoyo a la Estructuración de Proyectos para la Vinculación de Capital Privado en Sectores de Responsabilidad del Estado","Entidades con Deuda Garantizada por la Nación","Mis.3.8 Apoyo a la Estructuración de Proyectos para la Vinculación de Capital Privado en Sectores de Responsabilidad del Estado","Entidades con Deuda Garantizada por la Nación",null,null,null,"SIIF NACION"]
[null,null,null,null,null,"Mis.3.9 Gestión de Bonos Pensionales","Entidades de Educación","Mis.3.9 Gestión de Bonos Pensionales","Entidades de Educación",null,null,null,"Sistema de Información, Seguimiento y Control a los Proyectos de Ley (SISCOP)"]
[null,null,null,null,null,"Mis.3.10 Gestión de Riesgo Fiscal","Entidades del Gobierno Nacional","Mis.3.10 Gestión de Riesgo Fiscal","Entidades del Gobierno Nacional",null,null,null,"SMGI. Sistema Monitoreo de Gestión Integral"]
[null,null,null,null,null,"Mis.3.11 Apoyo, seguimiento y control del cubrimiento del pasivo pensional de las Entidades Territoriales","Entidades del Sistema General de la Seguridad Social","Mis.3.11 Apoyo, seguimiento y control del cubrimiento del pasivo pensional de las Entidades Territoriales","Entidades del Sistema General de la Seguridad Social",null,null,null,"SobreTasa a La gasolina Y ACPM"]
[null,null,null,null,null,"Mis.3.13 Administración Integrada de la Información Financiera (SIIF Nación)","Entidades en Liquidación","Mis.3.13 Administración Integrada de la Información Financiera (SIIF Nación)","Entidades en Liquidación",null,null,null,"Sobretasa a La gasolina Y ACPM (ASGA) (NUEVO)"]
[null,null,null,null,null,"Mis.3.14 Financiamiento Externo de la Nación y relaciones con Inversionistas","Entidad Estatal ","Mis.3.14 Financiamiento Externo de la Nación y relaciones con Inversionistas","Entidad Estatal ",null,null,null,"SOFIA"]
[null,null,null,null,null,"Mis.4.1 Asesoría Tributaria y Financiera a Entidades Territorialesera a Entidades Territoriales","Entidades Interesadas en el Sector Energético","Mis.4.1 Asesoría Tributaria y Financiera a Entidades Territorialesera a Entidades Territoriales","Entidades Interesadas en el Sector Energético",null,null,null,"SPGR"]
[null,null,null,null,null,"Mis.4.2 Monitoreo y Apoyo al Saneamiento Fiscal de Entidades Territoriales","Entidades líderes de política de gestión y desempeño institucional ","Mis.4.2 Monitoreo y Apoyo al Saneamiento Fiscal de Entidades Territoriales","Entidades líderes de política de gestión y desempeño institucional ",null,null,null,"SYNAPSIS"]
[null,null,null,null,null,"Mis.4.3 Seguimiento al comportamiento financiero y fiscal del Sistema de Seguridad Social Integral","Entidades Liquidadas","Mis.4.3 Seguimiento al comportamiento financiero y fiscal del Sistema de Seguridad Social Integral","Entidades Liquidadas",null,null,null,"Trazabilidad"]
[null,null,null,null,null,"Mis.4.5 Coordinación de la ejecución de la estrategia de monitoreo, seguimiento y control al uso de los recursos del Sistema General de Participaciones","Entidades Territoriales","Mis.4.5 Coordinación de la ejecución de la estrategia de monitoreo, seguimiento y control al uso de los recursos del Sistema General de Participaciones","Entidades Territoriales",null,null,null,"U.R.F."]
[null,null,null,null,null,"Mis.4.6 Apoyo al Saneamiento Financiero Pensional de Entidades Estatales","Exfuncionarios del MHCP","Mis.4.6 Apoyo al Saneamiento Financiero Pensional de Entidades Estatales","Exfuncionarios del MHCP",null,null,null,"Valoración de Inversiones - AVI"]
[null,null,null,null,null,"Mis.4.8 Viabilidad, modificación, monitoreo, seguimiento y evaluación de los Programas de Saneamiento Fiscal y Financiero de las Empresas Sociales del Estado ","FEDESARROLLO","Mis.4.8 Viabilidad, modificación, monitoreo, seguimiento y evaluación de los Programas de Saneamiento Fiscal y Financiero de las Empresas Sociales del Estado ","FEDESARROLLO",null,null,null,"Victimas"]
[null,null,null,null,null,"Mis.4.9 Participación en los Órganos Colegiados de Administración y Decisión del Sistema General de Regalías","Fiduprevisora","Mis.4.9 Participación en los Órganos Colegiados de Administración y Decisión del Sistema General de Regalías","Fiduprevisora"]
[null,null,null,null,null,"Mis.5.1 Expedición Normativa y Emisión de Conceptos","Financiera de Desarrollo Territorial  - FINDETER","Mis.5.1 Expedición Normativa y Emisión de Conceptos","Financiera de Desarrollo Territorial  - FINDETER"]
[null,null,null,null,null,"Mis.5.2 Coordinación y Seguimiento a los Asuntos Legislativos","Fiscalía General de la Nación","Mis.5.2 Coordinación y Seguimiento a los Asuntos Legislativos","Fiscalía General de la Nación"]
[null,null,null,null,null,"Apo.1.3 Gobierno y Gestión TIC","Fondo de Garantías de Instituciones Financieras  - FOGAFIN","Apo.1.3 Gobierno y Gestión TIC","Fondo de Garantías de Instituciones Financieras  - FOGAFIN"]
[null,null,null,null,null,"Apo.1.4 Gestión de Información","Fondo Financiero de Proyectos de Desarrollo - FONADE","Apo.1.4 Gestión de Información","Fondo Financiero de Proyectos de Desarrollo - FONADE"]
[null,null,null,null,null,"Apo.2.1 Administración de Personal","Fondo Nacional de Garantías - FNG","Apo.2.1 Administración de Personal","Fondo Nacional de Garantías - FNG"]
[null,null,null,null,null,"Apo.2.2 Desarrollo de Personal","Fondo Nacional del Ahorro ","Apo.2.2 Desarrollo de Personal","Fondo Nacional del Ahorro "]
[null,null,null,null,null,"Apo.2.3 Gestión de Comisión Interior o Exterior","Fondos de Empleados","Apo.2.3 Gestión de Comisión Interior o Exterior","Fondos de Empleados"]
[null,null,null,null,null,"Apo.3 Apoyo a la Gestión Financiera","Fondos Privados de Cesantías","Apo.3 Apoyo a la Gestión Financiera","Fondos Privados de Cesantías"]
[null,null,null,null,null,"Apo.4.1 Adquisición de Bienes y Servicios","FONPRECON","Apo.4.1 Adquisición de Bienes y Servicios","FONPRECON"]
[null,null,null,null,null,"Apo.4.2 Administración de Bienes y Servicios","Gremios ganaderos, agrícola, comercio, transporte, industria, construcción","Apo.4.2 Administración de Bienes y Servicios","Gremios ganaderos, agrícola, comercio, transporte, industria, construcción"]
[null,null,null,null,null,"Apo.4.5 Gestión Ambiental ","Gremios Petroleros","Apo.4.5 Gestión Ambiental ","Gremios Petroleros"]
[null,null,null,null,null,"Apo.5.1 Defensa Judicial, pago de sentencias y conciliaciones","Hospitales","Apo.5.1 Defensa Judicial, pago de sentencias y conciliaciones","Hospitales"]
[null,null,null,null,null,"Apo.5.3 Cartera","Imprenta Nacional de la República","Apo.5.3 Cartera","Imprenta Nacional de la República"]
[null,null,null,null,null,"Apo.6.1 Atención al ciudadano e instituciones","Instituciones Financieras Administradoras de Portafolios","Apo.6.1 Atención al ciudadano e instituciones","Instituciones Financieras Administradoras de Portafolios"]
[null,null,null,null,null,"Apo.6.2 Atención a Derechos de Petición y Emisión de Conceptos Jurídicos","Instituciones Financieras en Liquidación","Apo.6.2 Atención a Derechos de Petición y Emisión de Conceptos Jurídicos","Instituciones Financieras en Liquidación"]
[null,null,null,null,null,"Eva.1.1 Evaluación Independiente","Instituciones Financieras Internacionales","Eva.1.1 Evaluación Independiente","Instituciones Financieras Internacionales"]
[null,null,null,null,null,"Eva.1.2 Control Disciplinario Interno","Instituciones Financieras Nacionales","Eva.1.2 Control Disciplinario Interno","Instituciones Financieras Nacionales"]
[null,null,null,null,null,null,"Instituto Colombiano de Crédito Educativo y Estudios Técnicos en el Exterior — ICETEX",null,"Instituto Colombiano de Crédito Educativo y Estudios Técnicos en el Exterior — ICETEX"]
[null,null,null,null,null,null,"Instituto Colombiano de Desarrollo Rural - INCODER",null,"Instituto Colombiano de Desarrollo Rural - INCODER"]
[null,null,null,null,null,null,"Instituto Colombiano de Norma Técnicas y Certificación - INCONTEC",null,"Instituto Colombiano de Norma Técnicas y Certificación - INCONTEC"]
[null,null,null,null,null,null,"Instituto Colombiano para la Evaluación de la Educación - ICFES",null,"Instituto Colombiano para la Evaluación de la Educación - ICFES"]
[null,null,null,null,null,null,"Instituto Nacional de Vías - INVIAS",null,"Instituto Nacional de Vías - INVIAS"]
[null,null,null,null,null,null,"Interventor del Contrato",null,"Interventor del Contrato"]
[null,null,null,null,null,null,"Inversionistas",null,"Inversionistas"]
[null,null,null,null,null,null,"ISA",null,"ISA"]
[null,null,null,null,null,null,"Juntas de acción comunal",null,"Juntas de acción comunal"]
[null,null,null,null,null,null,"Juzgados ",null,"Juzgados "]
[null,null,null,null,null,null,"Medios de comunicación",null,"Medios de comunicación"]
[null,null,null,null,null,null,"Migración Colombia",null,"Migración Colombia"]
[null,null,null,null,null,null,"Ministerio de Comercio, Industria y Turismo",null,"Ministerio de Comercio, Industria y Turismo"]
[null,null,null,null,null,null,"Ministerio de Educación Nacional",null,"Ministerio de Educación Nacional"]
[null,null,null,null,null,null,"Ministerio de Medio Ambiente y Desarrollo Sostenible",null,"Ministerio de Medio Ambiente y Desarrollo Sostenible"]
[null,null,null,null,null,null,"Ministerio de Minas y Energía",null,"Ministerio de Minas y Energía"]
[null,null,null,null,null,null,"Ministerio de Salud y Protección Social",null,"Ministerio de Salud y Protección Social"]
[null,null,null,null,null,null,"Ministerio de Tecnologías de la Información y las Comunicaciones ",null,"Ministerio de Tecnologías de la Información y las Comunicaciones "]
[null,null,null,null,null,null,"Ministerio de Transporte",null,"Ministerio de Transporte"]
[null,null,null,null,null,null,"Ministerio del Trabajo",null,"Ministerio del Trabajo"]
[null,null,null,null,null,null,"Oferentes",null,"Oferentes"]
[null,null,null,null,null,null,"Organismos Internacionales",null,"Organismos Internacionales"]
[null,null,null,null,null,null,"Órganos Colegiados de Administración y Decisión –OCAD Regionales",null,"Órganos Colegiados de Administración y Decisión –OCAD Regionales"]
[null,null,null,null,null,null,"Órganos que conforman al Presupuesto General de la Nación",null,"Órganos que conforman al Presupuesto General de la Nación"]
[null,null,null,null,null,null,"Órganos que pertenecen al Presupuesto General de la Nación",null,"Órganos que pertenecen al Presupuesto General de la Nación"]
[null,null,null,null,null,null,"Participantes del Programa de Creadores de Deuda Pública Interna",null,"Participantes del Programa de Creadores de Deuda Pública Interna"]
[null,null,null,null,null,null,"Participantes del programa de creadores de mercado",null,"Participantes del programa de creadores de mercado"]
[null,null,null,null,null,null,"PASIVOCOL",null,"PASIVOCOL"]
[null,null,null,null,null,null,"PASIVONAL",null,"PASIVONAL"]
[null,null,null,null,null,null,"Personas con Discapacidad",null,"Personas con Discapacidad"]
[null,null,null,null,null,null,"Persona Jurídica",null,"Persona Jurídica"]
[null,null,null,null,null,null,"Persona Natural",null,"Persona Natural"]
[null,null,null,null,null,null,"Personerías",null,"Personerías"]
[null,null,null,null,null,null,"PRAP Fiduciarias",null,"PRAP Fiduciarias"]
[null,null,null,null,null,null,"Presidencia de la República",null,"Presidencia de la República"]
[null,null,null,null,null,null,"Prestamistas (Banca Multilateral, Gobierno, otros)",null,"Prestamistas (Banca Multilateral, Gobierno, otros)"]
[null,null,null,null,null,null,"Procuraduría General de la Nación - PGN",null,"Procuraduría General de la Nación - PGN"]
[null,null,null,null,null,null,"Productores, importadores y/o Distribuidores Mayoristas de combustibles",null,"Productores, importadores y/o Distribuidores Mayoristas de combustibles"]
[null,null,null,null,null,null,"Proveedores",null,"Proveedores"]
[null,null,null,null,null,null,"Representación de Colombia en el Organismo Multilateral",null,"Representación de Colombia en el Organismo Multilateral"]
[null,null,null,null,null,null,"Representantes de organismos, gremios y agremiaciones del sector privado e internacional ",null,"Representantes de organismos, gremios y agremiaciones del sector privado e internacional "]
[null,null,null,null,null,null,"Secretaria de Hacienda Distrital",null,"Secretaria de Hacienda Distrital"]
[null,null,null,null,null,null,"Secretaria de la Comisión Interparlamentaria de Crédito Público",null,"Secretaria de la Comisión Interparlamentaria de Crédito Público"]
[null,null,null,null,null,null,"Secretaria Distrital de Ambiente",null,"Secretaria Distrital de Ambiente"]
[null,null,null,null,null,null,"Secretaria Técnica- CICP",null,"Secretaria Técnica- CICP"]
[null,null,null,null,null,null,"Sector Solidario",null,"Sector Solidario"]
[null,null,null,null,null,null,"Servicios Postales Nacionales",null,"Servicios Postales Nacionales"]
[null,null,null,null,null,null,"Sistema Financiero",null,"Sistema Financiero"]
[null,null,null,null,null,null,"Sociedades de Economía Mixta",null,"Sociedades de Economía Mixta"]
[null,null,null,null,null,null,"Superintendencia de Economía Solidaria",null,"Superintendencia de Economía Solidaria"]
[null,null,null,null,null,null,"Superintendencia Financiera",null,"Superintendencia Financiera"]
[null,null," ",null,null,null,"Transparencia por Colombia",null,"Transparencia por Colombia"]
[null,null,null,null,null,null,"Unidad para la Atención y Reparación Integral a las víctimas",null,"Unidad para la Atención y Reparación Integral a las víctimas"]
[null,null,null,null,null,null,"Unidades Ejecutoras",null,"Unidades Ejecutoras"]
[null,null,null,null,null,null,"Universidades Territoriales",null,"Universidades Territoriales"]
[null,null,null,null,null,null,"Usuarios de la Información Contable Pública",null,"Usuarios de la Información Contable Pública"]
[null,null,null,null,null,null,"Usuarios de Servicios TIC",null,"Usuarios de Servicios TIC"]
[null,null,null,null,null,null,"Usuarios San Juan de Dios",null,"Usuarios San Juan de Dios"]
[null,null,null,null,null,null,"Victimas",null,"Victimas"]
[null,null,null,null,null,null,"Vocales de control social",null,"Vocales de control social"]

{"sheet":"Consulta Listas Desplegables","index":5,"n_rows":166,"n_cols":74,"rows_kept":166,"cut":false,"hidden":true,"merged":[]}
[{"$f":"'Listas Desplegables'!A1","v":"PHVM"},{"$f":"'Listas Desplegables'!B1","v":"Tipo de proceso"},{"$f":"'Listas Desplegables'!C1","v":"Área o Dependencia"},{"$f":"'Listas Desplegables'!D1","v":"Procesos"},{"$f":"'Listas Desplegables'!E1","v":"Código de Procesos"},{"$f":"'Listas Desplegables'!F1","v":"Proveedores"},{"$f":"'Listas Desplegables'!G1","v":0},{"$f":"'Listas Desplegables'!H1","v":"Destinatarios"},{"$f":"'Listas Desplegables'!I1","v":0},{"$f":"'Listas Desplegables'!J1","v":"Entradas"},{"$f":"'Listas Desplegables'!K1","v":"Salidas"},{"$f":"'Listas Desplegables'!L1","v":"Líder del proceso"},{"$f":"'Listas Desplegables'!M1","v":"Aplicativo"},{"$f":"'Listas Desplegables'!N1","v":"Estado en SUIT"},{"$f":"'Listas Desplegables'!O1","v":"Tipos de Productos"},{"$f":"'Listas Desplegables'!P1","v":"Trámites u OPA"}]
[{"$f":"'Listas Desplegables'!A2","v":"Seleccione una opción"},{"$f":"'Listas Desplegables'!B2","v":"Seleccione una opción"},{"$f":"'Listas Desplegables'!C2","v":"Seleccione una opción"},{"$f":"'Listas Desplegables'!D2","v":"Seleccione una opción"},{"$f":"'Listas Desplegables'!E2","v":"Seleccione una opción"},{"$f":"'Listas Desplegables'!F2","v":"Internos"},{"$f":"'Listas Desplegables'!G2","v":"Externos"},{"$f":"'Listas Desplegables'!H2","v":"Internos"},{"$f":"'Listas Desplegables'!I2","v":"Externos"},{"$f":"'Listas Desplegables'!J2","v":"Seleccione una opción"},{"$f":"'Listas Desplegables'!K2","v":"Seleccione una opción"},{"$f":"'Listas Desplegables'!L2","v":"Seleccione una opción"},{"$f":"'Listas Desplegables'!M2","v":"Seleccione una opción"},{"$f":"'Listas Desplegables'!N2","v":"Seleccione una opción"},{"$f":"'Listas Desplegables'!O2","v":"Seleccione una opción"},{"$f":"'Listas Desplegables'!P2","v":"Seleccione una opción"}]
[{"$f":"'Listas Desplegables'!A3","v":"Planear"},{"$f":"'Listas Desplegables'!B3","v":"Misional"},{"$f":"'Listas Desplegables'!C3","v":"1. Despacho del Ministro"},{"$f":"'Listas Desplegables'!D3","v":"Est.1.1 Planeación estratégica sectorial e institucional"},{"$f":"'Listas Desplegables'!E3","v":"Est.1.1"},{"$f":"'Listas Desplegables'!F3","v":"Seleccione una opción"},{"$f":"'Listas Desplegables'!G3","v":"Seleccione una opción"},{"$f":"'Listas Desplegables'!H3","v":"Seleccione una opción"},{"$f":"'Listas Desplegables'!I3","v":"Seleccione una opción"},{"$f":"'Listas Desplegables'!J3","v":"Campañas o estrategias para divulgación por redes sociales"},{"$f":"'Listas Desplegables'!K3","v":"Afectaciones contables y presupuestales correspondientes."},{"$f":"'Listas Desplegables'!L3","v":"Asesor de Comunicaciones"},{"$f":"'Listas Desplegables'!M3","v":"Activos Fijos"},{"$f":"'Listas Desplegables'!N3","v":"Registrado en SUIT"},{"$f":"'Listas Desplegables'!O3","v":"Legal"},{"$f":"'Listas Desplegables'!P3","v":"Trámite"}]
[{"$f":"'Listas Desplegables'!A4","v":"Hacer"},{"$f":"'Listas Desplegables'!B4","v":"Apoyo"},{"$f":"'Listas Desplegables'!C4","v":"1.1 Oficina Asesora de Jurídica"},{"$f":"'Listas Desplegables'!D4","v":"Est.1.4 Administración, mejoramiento e innovación del SUG"},{"$f":"'Listas Desplegables'!E4","v":"Est.1.4"},{"$f":"'Listas Desplegables'!F4","v":"Alta Dirección del MHCP"},{"$f":"'Listas Desplegables'!G4","v":"Academia"},{"$f":"'Listas Desplegables'!H4","v":"Alta Dirección del MHCP"},{"$f":"'Listas Desplegables'!I4","v":"Academia"},{"$f":"'Listas Desplegables'!J4","v":"Cuenta Bancaria Activa"},{"$f":"'Listas Desplegables'!K4","v":"Archivos de Pago."},{"$f":"'Listas Desplegables'!L4","v":"Asesor Subdirección de Apoyo al Saneamiento Fiscal y Territorial"},{"$f":"'Listas Desplegables'!M4","v":"Almacen de Consumo"},{"$f":"'Listas Desplegables'!N4","v":"Sin Registro"},{"$f":"'Listas Desplegables'!O4","v":"Cliente"},{"$f":"'Listas Desplegables'!P4","v":"OPA"}]
[{"$f":"'Listas Desplegables'!A5","v":"Verificar"},{"$f":"'Listas Desplegables'!B5","v":"Evaluación"},{"$f":"'Listas Desplegables'!C5","v":"2. Despacho del Viceministro General"},{"$f":"'Listas Desplegables'!D5","v":"Est.2.1 Gestión de Comunicaciones"},{"$f":"'Listas Desplegables'!E5","v":"Est.2.1"},{"$f":"'Listas Desplegables'!F5","v":"Dependencias y/o procesos del Ministerio de Hacienda y Crédito Público MHCP"},{"$f":"'Listas Desplegables'!G5","v":"Administradoras de Fondos de Pensiones - AFP"},{"$f":"'Listas Desplegables'!H5","v":"Dependencias y/o procesos del Ministerio de Hacienda y Crédito Público MHCP"},{"$f":"'Listas Desplegables'!I5","v":"Administradoras de Fondos de Pensiones - AFP"},{"$f":"'Listas Desplegables'!J5","v":"Cuentas bancarias DTN"},{"$f":"'Listas Desplegables'!K5","v":"Asesoría"},{"$f":"'Listas Desplegables'!L5","v":"Asesor Viceministerio General"},{"$f":"'Listas Desplegables'!M5","v":"Aplicativo De Seguimiento De Acreencias (ASA)"},{"$f":"'Listas Desplegables'!N5","v":0},{"$f":"'Listas Desplegables'!O5","v":"Funcional"},{"$f":"'Listas Desplegables'!P5","v":0}]
[{"$f":"'Listas Desplegables'!A6","v":"Mejorar"},{"$f":"'Listas Desplegables'!B6","v":"Estratégico"},{"$f":"'Listas Desplegables'!C6","v":"2.1 Oficina de Control Interno"},{"$f":"'Listas Desplegables'!D6","v":"Mis.1.1 Coordinación y seguimiento de la Política Macroeconómica y Fiscal"},{"$f":"'Listas Desplegables'!E6","v":"Mis.1.1"},{"$f":"'Listas Desplegables'!F6","v":"Usuarios SIIF Nación"},{"$f":"'Listas Desplegables'!G6","v":"Agencia Nacional de Hidrocarburos"},{"$f":"'Listas Desplegables'!H6","v":"Usuarios SIIF Nación"},{"$f":"'Listas Desplegables'!I6","v":"Agencia Nacional de Hidrocarburos"},{"$f":"'Listas Desplegables'!J6","v":"Decisión de colocación de excedentes"},{"$f":"'Listas Desplegables'!K6","v":"Capacitación"},{"$f":"'Listas Desplegables'!L6","v":"Coordinador Grupo de Administración de Sobretasa a la Gasolina y ACPM"},{"$f":"'Listas Desplegables'!M6","v":"BI- Banca de Inversión"},{"$f":"'Listas Desplegables'!N6","v":0},{"$f":"'Listas Desplegables'!O6","v":"Legal y Cliente"},{"$f":"'Listas Desplegables'!P6","v":0}]
[{"$f":"'Listas Desplegables'!A7","v":0},{"$f":"'Listas Desplegables'!B7","v":0},{"$f":"'Listas Desplegables'!C7","v":"2.2 Oficina Asesora de Planeación"},{"$f":"'Listas Desplegables'!D7","v":"Mis.2.1 Programación Presupuestal de los recursos de la Nación"},{"$f":"'Listas Desplegables'!E7","v":"Mis.2.1"},{"$f":"'Listas Desplegables'!F7","v":"Servidores Públicos del MHCP"},{"$f":"'Listas Desplegables'!G7","v":"Agencia Nacional de Minería"},{"$f":"'Listas Desplegables'!H7","v":"Servidores Públicos del MHCP"},{"$f":"'Listas Desplegables'!I7","v":"Agencia Nacional de Minería"},{"$f":"'Listas Desplegables'!J7","v":"Acreedores varios por recursos de la Nación sujetos a devolución."},{"$f":"'Listas Desplegables'!K7","v":" PAC actualizado"},{"$f":"'Listas Desplegables'!L7","v":"Coordinador Grupo de Administración del SIIF"},{"$f":"'Listas Desplegables'!M7","v":"BI- Seguimiento Fiscal"},{"$f":"'Listas Desplegables'!N7","v":0},{"$f":"'Listas Desplegables'!O7","v":"Legal y Funcional"},{"$f":"'Listas Desplegables'!P7","v":0},null,null,null,null,null,null,null,null,null,null,null,null,null,null,null,null,null,null,null,null,null,null,null,null,null,null,null,null,null,null,null,null,null,null,null,null,null,null,null,null,null,null,null,null,null,null,null,null,null,null,null,null,null,null,null,null,null,{"$f":"VLOOKUP('Consulta Listas Desplegables'!D3,'Consulta Listas Desplegables'!E3:E45,1,FALSE)","v":{"$error":"#N/A"}}]
[{"$f":"'Listas Desplegables'!A8","v":0},{"$f":"'Listas Desplegables'!B8","v":0},{"$f":"'Listas Desplegables'!C8","v":"2.3 Oficina de Bonos Pensionales"},{"$f":"'Listas Desplegables'!D8","v":"Mis.2.2 Administración y seguimiento a la ejecución presupuestal"},{"$f":"'Listas Desplegables'!E8","v":"Mis.2.2"},{"$f":"'Listas Desplegables'!F8","v":"Contratistas del MHCP "},{"$f":"'Listas Desplegables'!G8","v":"Agencias Calificadoras de Riesgo"},{"$f":"'Listas Desplegables'!H8","v":"Contratistas del MHCP "},{"$f":"'Listas Desplegables'!I8","v":"Agencias Calificadoras de Riesgo"},{"$f":"'Listas Desplegables'!J8","v":"Decreto de liquidación."},{"$f":"'Listas Desplegables'!K8","v":"Comunicados Boletines, Videos, Fotografía, Asistencia Foros del Ministro\nIntranet Piezas de comunicación"},{"$f":"'Listas Desplegables'!L8","v":"Coordinador Grupo de Contratación Directa"},{"$f":"'Listas Desplegables'!M8","v":"BI-Participación estatal"},{"$f":"'Listas Desplegables'!N8","v":0},{"$f":"'Listas Desplegables'!O8","v":"Funcional y Cliente "},{"$f":"'Listas Desplegables'!P8","v":0}]
[{"$f":"'Listas Desplegables'!A9","v":0},{"$f":"'Listas Desplegables'!B9","v":0},{"$f":"'Listas Desplegables'!C9","v":"3. Despacho del Viceministro Técnico"},{"$f":"'Listas Desplegables'!D9","v":"Mis.3.1 Financiamiento Interno del PGN"},{"$f":"'Listas Desplegables'!E9","v":"Mis.3.1"},{"$f":"'Listas Desplegables'!F9","v":"Integrantes de Junta Directiva"},{"$f":"'Listas Desplegables'!G9","v":"Agentes colocadores de OMAS"},{"$f":"'Listas Desplegables'!H9","v":"Integrantes de Junta Directiva"},{"$f":"'Listas Desplegables'!I9","v":"Agentes colocadores de OMAS"},{"$f":"'Listas Desplegables'!J9","v":"Deuda de la Nación Interna y Externa."},{"$f":"'Listas Desplegables'!K9","v":"Conciliaciones"},{"$f":"'Listas Desplegables'!L9","v":"Coordinador Grupo de Licitaciones y Procesos Especiales"},{"$f":"'Listas Desplegables'!M9","v":"Bodega - DRESS"},{"$f":"'Listas Desplegables'!N9","v":0},{"$f":"'Listas Desplegables'!O9","v":"Legal, Cliente y Funcional"},{"$f":"'Listas Desplegables'!P9","v":0}]
[{"$f":"'Listas Desplegables'!A10","v":0},{"$f":"'Listas Desplegables'!B10","v":0},{"$f":"'Listas Desplegables'!C10","v":"3.1 Dirección General de Política Macroeconómica"},{"$f":"'Listas Desplegables'!D10","v":"Mis.3.2 Financiamiento a Entidades"},{"$f":"'Listas Desplegables'!E10","v":"Mis.3.2"},{"$f":"'Listas Desplegables'!F10","v":"Supervisor del Contrato"},{"$f":"'Listas Desplegables'!G10","v":"Analistas de mercado"},{"$f":"'Listas Desplegables'!H10","v":"Supervisor del Contrato"},{"$f":"'Listas Desplegables'!I10","v":"Analistas de mercado"},{"$f":"'Listas Desplegables'!J10","v":"Documentos legales que soporten ajustes Presupuestales"},{"$f":"'Listas Desplegables'!K10","v":"Cuentas bancarias Activas -tesorerías entidades"},{"$f":"'Listas Desplegables'!L10","v":"Directora Administrativa"},{"$f":"'Listas Desplegables'!M10","v":"BONOS PENSIONALES"},{"$f":"'Listas Desplegables'!N10","v":0},{"$f":"'Listas Desplegables'!O10","v":0},{"$f":"'Listas Desplegables'!P10","v":0}]
[{"$f":"'Listas Desplegables'!A11","v":0},{"$f":"'Listas Desplegables'!B11","v":0},{"$f":"'Listas Desplegables'!C11","v":"3.2 Dirección General de Regulación Financiera"},{"$f":"'Listas Desplegables'!D11","v":"Mis.3.3 Financiamiento con Organismos Multilaterales y Gobiernos"},{"$f":"'Listas Desplegables'!E11","v":"Mis.3.3"},{"$f":"'Listas Desplegables'!F11","v":"Ordenador del Gasto y/o Pago "},{"$f":"'Listas Desplegables'!G11","v":"Archivo General de la Nación"},{"$f":"'Listas Desplegables'!H11","v":"Ordenador del Gasto y/o Pago "},{"$f":"'Listas Desplegables'!I11","v":"Archivo General de la Nación"},{"$f":"'Listas Desplegables'!J11","v":"Embargos de las cuentas del Tesoro de entidades nacionales."},{"$f":"'Listas Desplegables'!K11","v":"Cuentas bancarias DTN"},{"$f":"'Listas Desplegables'!L11","v":"Director De Tecnología"},{"$f":"'Listas Desplegables'!M11","v":"C.R.M."},{"$f":"'Listas Desplegables'!N11","v":0},{"$f":"'Listas Desplegables'!O11","v":0},{"$f":"'Listas Desplegables'!P11","v":0}]
[{"$f":"'Listas Desplegables'!A12","v":0},{"$f":"'Listas Desplegables'!B12","v":0},{"$f":"'Listas Desplegables'!C12","v":"3.3 Dirección General de la Regulación Económica de la Seguridad Social"},{"$f":"'Listas Desplegables'!D12","v":"Mis.3.4 Gestión de Liquidez"},{"$f":"'Listas Desplegables'!E12","v":"Mis.3.4"},{"$f":"'Listas Desplegables'!F12","v":"Procesos líderes de políticas de Gestión y Desempeño Institucional "},{"$f":"'Listas Desplegables'!G12","v":"Asociación Nacional de Empresarios de Colombia - ANDI"},{"$f":"'Listas Desplegables'!H12","v":"Procesos líderes de políticas de Gestión y Desempeño Institucional "},{"$f":"'Listas Desplegables'!I12","v":"Asociación Nacional de Empresarios de Colombia - ANDI"},{"$f":"'Listas Desplegables'!J12","v":"Estrategia de mantenimiento y mejoramiento del SUG."},{"$f":"'Listas Desplegables'!K12","v":"Estados financieros."},{"$f":"'Listas Desplegables'!L12","v":"Director General de Política Macroeconómica"},{"$f":"'Listas Desplegables'!M12","v":"Carteras"},{"$f":"'Listas Desplegables'!N12","v":0},{"$f":"'Listas Desplegables'!O12","v":0},{"$f":"'Listas Desplegables'!P12","v":0}]
[{"$f":"'Listas Desplegables'!A13","v":0},{"$f":"'Listas Desplegables'!B13","v":0},{"$f":"'Listas Desplegables'!C13","v":"3.3.1 Subdirección de Pensiones"},{"$f":"'Listas Desplegables'!D13","v":"Mis.3.5 Gestión de Ingresos, Pagos y Presentación de Estados Financieros"},{"$f":"'Listas Desplegables'!E13","v":"Mis.3.5"},{"$f":"'Listas Desplegables'!F13","v":"Comisión Rectora del Sistema General de Regalias"},{"$f":"'Listas Desplegables'!G13","v":"Asociación Nacional de Instituciones Financieras (ANIF)"},{"$f":"'Listas Desplegables'!H13","v":"Comisión Rectora del Sistema General de Regalias"},{"$f":"'Listas Desplegables'!I13","v":"Asociación Nacional de Instituciones Financieras (ANIF)"},{"$f":"'Listas Desplegables'!J13","v":"Extractos bancarios"},{"$f":"'Listas Desplegables'!K13","v":"Estrategia de mantenimiento y mejoramiento del SUG"},{"$f":"'Listas Desplegables'!L13","v":"Director General de Presupuesto Público Nacional"},{"$f":"'Listas Desplegables'!M13","v":"Certificaciones"},{"$f":"'Listas Desplegables'!N13","v":0},{"$f":"'Listas Desplegables'!O13","v":0},{"$f":"'Listas Desplegables'!P13","v":0}]
[{"$f":"'Listas Desplegables'!A14","v":0},{"$f":"'Listas Desplegables'!B14","v":0},{"$f":"'Listas Desplegables'!C14","v":"3.3.2 Subdirección de Salud y Riesgos Profesionales"},{"$f":"'Listas Desplegables'!D14","v":"Mis.3.6 Administración de la Sobretasa de la Gasolina y ACPM"},{"$f":"'Listas Desplegables'!E14","v":"Mis.3.6"},{"$f":"'Listas Desplegables'!F14","v":"Comité Institucional de Coordinación de Control Interno "},{"$f":"'Listas Desplegables'!G14","v":"Asociaciones de Municipios o Departamentos"},{"$f":"'Listas Desplegables'!H14","v":"Comité Institucional de Coordinación de Control Interno "},{"$f":"'Listas Desplegables'!I14","v":"Asociaciones de Municipios o Departamentos"},{"$f":"'Listas Desplegables'!J14","v":"Fondos recibidos en administración"},{"$f":"'Listas Desplegables'!K14","v":"Flujo de Pagos"},{"$f":"'Listas Desplegables'!L14","v":"Director General de Regulación Económica de Seguridad Social "},{"$f":"'Listas Desplegables'!M14","v":"CIPRIM"},{"$f":"'Listas Desplegables'!N14","v":0},{"$f":"'Listas Desplegables'!O14","v":0},{"$f":"'Listas Desplegables'!P14","v":0}]
[{"$f":"'Listas Desplegables'!A15","v":0},{"$f":"'Listas Desplegables'!B15","v":0},{"$f":"'Listas Desplegables'!C15","v":"4. Secretaría General"},{"$f":"'Listas Desplegables'!D15","v":"Mis.3.7 Gestión de Particiones Estatales y Sistemas Cofinanciados de Transporte Masivo "},{"$f":"'Listas Desplegables'!E15","v":"Mis.3.7"},{"$f":"'Listas Desplegables'!F15","v":"Comité de Activos"},{"$f":"'Listas Desplegables'!G15","v":"Asociaciones de Profesionales"},{"$f":"'Listas Desplegables'!H15","v":"Comité de Activos"},{"$f":"'Listas Desplegables'!I15","v":"Asociaciones de Profesionales"},{"$f":"'Listas Desplegables'!J15","v":"Gestiones\nrealizadas, detalladas en los\navances y/o Documentación cargada en los aplicativos SMGI y SINERGIA"},{"$f":"'Listas Desplegables'!K15","v":"Informe de publicaciones de las pantallas"},{"$f":"'Listas Desplegables'!L15","v":"Director Participaciones Estatales"},{"$f":"'Listas Desplegables'!M15","v":"Comisiones"},{"$f":"'Listas Desplegables'!N15","v":0},{"$f":"'Listas Desplegables'!O15","v":0},{"$f":"'Listas Desplegables'!P15","v":0}]
[{"$f":"'Listas Desplegables'!A16","v":0},{"$f":"'Listas Desplegables'!B16","v":0},{"$f":"'Listas Desplegables'!C16","v":"4.1 Oficina de Control Disciplinario Interno"},{"$f":"'Listas Desplegables'!D16","v":"Mis.3.8 Apoyo a la Estructuración de Proyectos para la Vinculación de Capital Privado en Sectores de Responsabilidad del Estado"},{"$f":"'Listas Desplegables'!E16","v":"Mis.3.8"},{"$f":"'Listas Desplegables'!F16","v":"Comité de Aprovechamiento de Activos Públicos CAAP"},{"$f":"'Listas Desplegables'!G16","v":"Asociaciones de Usuarios en Salud"},{"$f":"'Listas Desplegables'!H16","v":"Comité de Aprovechamiento de Activos Públicos CAAP"},{"$f":"'Listas Desplegables'!I16","v":"Asociaciones de Usuarios en Salud"},{"$f":"'Listas Desplegables'!J16","v":"Giros de la sobretasa a la gasolina y ACPM."},{"$f":"'Listas Desplegables'!K16","v":"Informe de Revisión del Sistema Único de Gestión"},{"$f":"'Listas Desplegables'!L16","v":"Jefe Oficina Asesora de Jurídica"},{"$f":"'Listas Desplegables'!M16","v":"Contabilidad"},{"$f":"'Listas Desplegables'!N16","v":0},{"$f":"'Listas Desplegables'!O16","v":0},{"$f":"'Listas Desplegables'!P16","v":0}]
[{"$f":"'Listas Desplegables'!A17","v":0},{"$f":"'Listas Desplegables'!B17","v":0},{"$f":"'Listas Desplegables'!C17","v":"4.3 Dirección Administrativa"},{"$f":"'Listas Desplegables'!D17","v":"Mis.3.9 Gestión de Bonos Pensionales"},{"$f":"'Listas Desplegables'!E17","v":"Mis.3.9"},{"$f":"'Listas Desplegables'!F17","v":"Comité de Capacitación y Bienestar Social"},{"$f":"'Listas Desplegables'!G17","v":"Asociaciones sin Ánimo de Lucro"},{"$f":"'Listas Desplegables'!H17","v":"Comité de Capacitación y Bienestar Social"},{"$f":"'Listas Desplegables'!I17","v":"Asociaciones sin Ánimo de Lucro"},{"$f":"'Listas Desplegables'!J17","v":"Giros de recursos del SGR."},{"$f":"'Listas Desplegables'!K17","v":"Informe de seguimiento al plan estratégico sectorial"},{"$f":"'Listas Desplegables'!L17","v":"Jefe Oficina Asesora de Planeación"},{"$f":"'Listas Desplegables'!M17","v":"Contratos - MHCP"},{"$f":"'Listas Desplegables'!N17","v":0},{"$f":"'Listas Desplegables'!O17","v":0},{"$f":"'Listas Desplegables'!P17","v":0}]
[{"$f":"'Listas Desplegables'!A18","v":0},{"$f":"'Listas Desplegables'!B18","v":0},{"$f":"'Listas Desplegables'!C18","v":"4.3.1 Subdirección Financiera"},{"$f":"'Listas Desplegables'!D18","v":"Mis.3.10 Gestión de Riesgo Fiscal"},{"$f":"'Listas Desplegables'!E18","v":"Mis.3.10"},{"$f":"'Listas Desplegables'!F18","v":"Comité de Crédito Educativo al Exterior"},{"$f":"'Listas Desplegables'!G18","v":"ASOFONDOS"},{"$f":"'Listas Desplegables'!H18","v":"Comité de Crédito Educativo al Exterior"},{"$f":"'Listas Desplegables'!I18","v":"ASOFONDOS"},{"$f":"'Listas Desplegables'!J18","v":"Información de auditorías internas de calidad"},{"$f":"'Listas Desplegables'!K18","v":"Informe de Seguimiento publicaciones en la intranet"},{"$f":"'Listas Desplegables'!L18","v":"Jefe Oficina Asesora de Planeación - Subdirector Financiero "},{"$f":"'Listas Desplegables'!M18","v":"Control de Caja / Pagos"},{"$f":"'Listas Desplegables'!N18","v":0},{"$f":"'Listas Desplegables'!O18","v":0},{"$f":"'Listas Desplegables'!P18","v":0}]
[{"$f":"'Listas Desplegables'!A19","v":0},{"$f":"'Listas Desplegables'!B19","v":0},{"$f":"'Listas Desplegables'!C19","v":"4.3.2 Subdirección de Recursos Humanos"},{"$f":"'Listas Desplegables'!D19","v":"Mis.3.11 Apoyo, seguimiento y control del cubrimiento del pasivo pensional de las Entidades Territoriales"},{"$f":"'Listas Desplegables'!E19","v":"Mis.3.11"},{"$f":"'Listas Desplegables'!F19","v":"Comité de Nominación"},{"$f":"'Listas Desplegables'!G19","v":"Autoridad Nacional de Televisión"},{"$f":"'Listas Desplegables'!H19","v":"Comité de Nominación"},{"$f":"'Listas Desplegables'!I19","v":"Autoridad Nacional de Televisión"},{"$f":"'Listas Desplegables'!J19","v":"Información requerida para la revisión del sistema."},{"$f":"'Listas Desplegables'!K19","v":"Informe publicación de noticias del Ministerio de Hacienda"},{"$f":"'Listas Desplegables'!L19","v":"Jefe Oficina de Bonos Pensionales"},{"$f":"'Listas Desplegables'!M19","v":"Cuentas Corrientes"},{"$f":"'Listas Desplegables'!N19","v":0},{"$f":"'Listas Desplegables'!O19","v":0},{"$f":"'Listas Desplegables'!P19","v":0}]
[{"$f":"'Listas Desplegables'!A20","v":0},{"$f":"'Listas Desplegables'!B20","v":0},{"$f":"'Listas Desplegables'!C20","v":"4.3.3 Subdirección de Servicios"},{"$f":"'Listas Desplegables'!D20","v":"Mis.3.13 Administración Integrada de la Información Financiera (SIIF Nación)"},{"$f":"'Listas Desplegables'!E20","v":"Mis.3.13"},{"$f":"'Listas Desplegables'!F20","v":"Comité Institucional de Gestión y Desempeño "},{"$f":"'Listas Desplegables'!G20","v":"Autoridades Judiciales"},{"$f":"'Listas Desplegables'!H20","v":"Comité Institucional de Gestión y Desempeño "},{"$f":"'Listas Desplegables'!I20","v":"Autoridades Judiciales"},{"$f":"'Listas Desplegables'!J20","v":"Ley de Presupuesto del Sistema General de Regalías (SGR)."},{"$f":"'Listas Desplegables'!K20","v":"Informe redes sociales"},{"$f":"'Listas Desplegables'!L20","v":"Jefe Oficina de Control Disciplinario Interno"},{"$f":"'Listas Desplegables'!M20","v":"Cuentas Inactivas Tesoro"},{"$f":"'Listas Desplegables'!N20","v":0},{"$f":"'Listas Desplegables'!O20","v":0},{"$f":"'Listas Desplegables'!P20","v":0}]
[{"$f":"'Listas Desplegables'!A21","v":0},{"$f":"'Listas Desplegables'!B21","v":0},{"$f":"'Listas Desplegables'!C21","v":"4.4 Dirección de Tecnología"},{"$f":"'Listas Desplegables'!D21","v":"Mis.3.14 Financiamiento Externo de la Nación y relaciones con Inversionistas"},{"$f":"'Listas Desplegables'!E21","v":"Mis.3.14"},{"$f":"'Listas Desplegables'!F21","v":"Comité de Incentivos"},{"$f":"'Listas Desplegables'!G21","v":"Banca Multilateral"},{"$f":"'Listas Desplegables'!H21","v":"Comité de Incentivos"},{"$f":"'Listas Desplegables'!I21","v":"Banca Multilateral"},{"$f":"'Listas Desplegables'!J21","v":"Ley de Presupuesto del Sistema General de Regalías (SGR)."},{"$f":"'Listas Desplegables'!K21","v":"Informes cambiarios para Banco de la República y DIAN"},{"$f":"'Listas Desplegables'!L21","v":"Jefe Oficina de Control Interno"},{"$f":"'Listas Desplegables'!M21","v":"Cumplidos Para Pago MHCP"},{"$f":"'Listas Desplegables'!N21","v":0},{"$f":"'Listas Desplegables'!O21","v":0},{"$f":"'Listas Desplegables'!P21","v":0}]
[{"$f":"'Listas Desplegables'!A22","v":0},{"$f":"'Listas Desplegables'!B22","v":0},{"$f":"'Listas Desplegables'!C22","v":"4.4.1 Subdirección de Administración de Recursos Tecnológicos"},{"$f":"'Listas Desplegables'!D22","v":"Mis.4.1 Asesoría Tributaria y Financiera a Entidades Territoriales"},{"$f":"'Listas Desplegables'!E22","v":"Mis.4.1"},{"$f":"'Listas Desplegables'!F22","v":"Comité de Tesorería"},{"$f":"'Listas Desplegables'!G22","v":"Banco de la Republica"},{"$f":"'Listas Desplegables'!H22","v":"Comité de Tesorería"},{"$f":"'Listas Desplegables'!I22","v":"Banco de la Republica"},{"$f":"'Listas Desplegables'!J22","v":"Lineamientos Estratégicos del MHCP"},{"$f":"'Listas Desplegables'!K22","v":"Informes contables"},{"$f":"'Listas Desplegables'!L22","v":"Secretaria General"},{"$f":"'Listas Desplegables'!M22","v":"DECRETO 028"},{"$f":"'Listas Desplegables'!N22","v":0},{"$f":"'Listas Desplegables'!O22","v":0},{"$f":"'Listas Desplegables'!P22","v":0}]
[{"$f":"'Listas Desplegables'!A23","v":0},{"$f":"'Listas Desplegables'!B23","v":0},{"$f":"'Listas Desplegables'!C23","v":"4.4.2 Subdirección de Ingeniería de Software"},{"$f":"'Listas Desplegables'!D23","v":"Mis.4.2 Monitoreo y Apoyo al Saneamiento Fiscal de Entidades Territoriales"},{"$f":"'Listas Desplegables'!E23","v":"Mis.4.2"},{"$f":"'Listas Desplegables'!F23","v":"Comité Operativo"},{"$f":"'Listas Desplegables'!G23","v":"Bancos Internacionales"},{"$f":"'Listas Desplegables'!H23","v":"Comité Operativo"},{"$f":"'Listas Desplegables'!I23","v":"Bancos Internacionales"},{"$f":"'Listas Desplegables'!J23","v":"Lineamientos y/o requerimientos normativos"},{"$f":"'Listas Desplegables'!K23","v":"Informes de seguimiento"},{"$f":"'Listas Desplegables'!L23","v":"Subdirector de Administración de Recursos Tecnológicos "},{"$f":"'Listas Desplegables'!M23","v":"DELFOS (VIABILIDAD Y SANEAMIENTO FISCAL TERRITORIAL)"},{"$f":"'Listas Desplegables'!N23","v":0},{"$f":"'Listas Desplegables'!O23","v":0},{"$f":"'Listas Desplegables'!P23","v":0}]
[{"$f":"'Listas Desplegables'!A24","v":0},{"$f":"'Listas Desplegables'!B24","v":0},{"$f":"'Listas Desplegables'!C24","v":"5. Dirección General del Presupuesto Público Nacional"},{"$f":"'Listas Desplegables'!D24","v":"Mis.4.3 Seguimiento al comportamiento financiero y fiscal del Sistema de Seguridad Social Integral"},{"$f":"'Listas Desplegables'!E24","v":"Mis.4.3"},{"$f":"'Listas Desplegables'!F24","v":"Comités de Servicios Públicos"},{"$f":"'Listas Desplegables'!G24","v":"BANCOLDEX"},{"$f":"'Listas Desplegables'!H24","v":"Comités de Servicios Públicos"},{"$f":"'Listas Desplegables'!I24","v":"BANCOLDEX"},{"$f":"'Listas Desplegables'!J24","v":"Líneas de Política\ndel Departamento Administrativo de\nla Función Pública"},{"$f":"'Listas Desplegables'!K24","v":"Metodología a utilizar en la formulación de planes."},{"$f":"'Listas Desplegables'!L24","v":"Subdirector de Apoyo al Saneamiento Fiscal Territorial"},{"$f":"'Listas Desplegables'!M24","v":"Depreciación"},{"$f":"'Listas Desplegables'!N24","v":0},{"$f":"'Listas Desplegables'!O24","v":0},{"$f":"'Listas Desplegables'!P24","v":0}]
[{"$f":"'Listas Desplegables'!A25","v":0},{"$f":"'Listas Desplegables'!B25","v":0},{"$f":"'Listas Desplegables'!C25","v":"5.1 Subdirección de Análisis y Consolidación Presupuestal"},{"$f":"'Listas Desplegables'!D25","v":"Mis.4.5 Coordinación de la ejecución de la estrategia de monitoreo, seguimiento y control al uso de los recursos del Sistema General de Participaciones"},{"$f":"'Listas Desplegables'!E25","v":"Mis.4.5"},{"$f":"'Listas Desplegables'!F25","v":"Despacho del Director de Crédito Público"},{"$f":"'Listas Desplegables'!G25","v":"Beneficiarios de Asignaciones Directas del SGR"},{"$f":"'Listas Desplegables'!H25","v":"Despacho del Director de Crédito Público"},{"$f":"'Listas Desplegables'!I25","v":"Beneficiarios de Asignaciones Directas del SGR"},{"$f":"'Listas Desplegables'!J25","v":"Metas de Pago"},{"$f":"'Listas Desplegables'!K25","v":"Metodologías del SUG"},{"$f":"'Listas Desplegables'!L25","v":"Subdirector de Asociaciones Público Privadas"},{"$f":"'Listas Desplegables'!M25","v":"Descuentos Corrientes"},{"$f":"'Listas Desplegables'!N25","v":0},{"$f":"'Listas Desplegables'!O25","v":0},{"$f":"'Listas Desplegables'!P25","v":0}]
[{"$f":"'Listas Desplegables'!A26","v":0},{"$f":"'Listas Desplegables'!B26","v":0},{"$f":"'Listas Desplegables'!C26","v":"5.2 Subdirección de Infraestructura y Desarrollo Económico"},{"$f":"'Listas Desplegables'!D26","v":"Mis.4.6 Apoyo al Saneamiento Financiero Pensional de Entidades Estatales"},{"$f":"'Listas Desplegables'!E26","v":"Mis.4.6"},{"$f":"'Listas Desplegables'!F26","v":"Dirección Administrativa"},{"$f":"'Listas Desplegables'!G26","v":"Biblioteca Nacional de Colombia"},{"$f":"'Listas Desplegables'!H26","v":"Dirección Administrativa"},{"$f":"'Listas Desplegables'!I26","v":"Biblioteca Nacional de Colombia"},{"$f":"'Listas Desplegables'!J26","v":"Metodologías de planeación y monitoreo"},{"$f":"'Listas Desplegables'!K26","v":"Orden de Pago en estado pagada en SIIF y SPGR."},{"$f":"'Listas Desplegables'!L26","v":"Subdirector de Financiamiento con Organismos Multilaterales y Gobiernos"},{"$f":"'Listas Desplegables'!M26","v":"Devoluciones"},{"$f":"'Listas Desplegables'!N26","v":0},{"$f":"'Listas Desplegables'!O26","v":0},{"$f":"'Listas Desplegables'!P26","v":0}]
[{"$f":"'Listas Desplegables'!A27","v":0},{"$f":"'Listas Desplegables'!B27","v":0},{"$f":"'Listas Desplegables'!C27","v":"5.3 Subdirección de Administración General del Estado"},{"$f":"'Listas Desplegables'!D27","v":"Mis.4.8 Viabilidad, modificación, monitoreo, seguimiento y evaluación de los Programas de Saneamiento Fiscal y Financiero de las Empresas Sociales del Estado "},{"$f":"'Listas Desplegables'!E27","v":"Mis.4.8"},{"$f":"'Listas Desplegables'!F27","v":"Dirección de Política Macroeconómica"},{"$f":"'Listas Desplegables'!G27","v":"Bloomberg"},{"$f":"'Listas Desplegables'!H27","v":"Dirección de Política Macroeconómica"},{"$f":"'Listas Desplegables'!I27","v":"Bloomberg"},{"$f":"'Listas Desplegables'!J27","v":"Misión y Visión del MHCP"},{"$f":"'Listas Desplegables'!K27","v":"PAC básico"},{"$f":"'Listas Desplegables'!L27","v":"Subdirector de Financiamiento de otras entidades "},{"$f":"'Listas Desplegables'!M27","v":"Ejecución  y Programación Presupuestal  Empresa - EICE"},{"$f":"'Listas Desplegables'!N27","v":0},{"$f":"'Listas Desplegables'!O27","v":0},{"$f":"'Listas Desplegables'!P27","v":0}]
[{"$f":"'Listas Desplegables'!A28","v":0},{"$f":"'Listas Desplegables'!B28","v":0},{"$f":"'Listas Desplegables'!C28","v":"6. Dirección General de Crédito Público y Tesoro Nacional"},{"$f":"'Listas Desplegables'!D28","v":"Mis.4.9 Participación en los Órganos Colegiados de Administración y Decisión del Sistema General de Regalías"},{"$f":"'Listas Desplegables'!E28","v":"Mis.4.9"},{"$f":"'Listas Desplegables'!F28","v":"Dirección de Tecnología "},{"$f":"'Listas Desplegables'!G28","v":"Bolsa de Valores de Colombia"},{"$f":"'Listas Desplegables'!H28","v":"Dirección de Tecnología "},{"$f":"'Listas Desplegables'!I28","v":"Bolsa de Valores de Colombia"},{"$f":"'Listas Desplegables'!J28","v":"Monitoreo ejecución Plan Estratégico del MHCP"},{"$f":"'Listas Desplegables'!K28","v":"Plan Comunicaciones divulgado en la intranet"},{"$f":"'Listas Desplegables'!L28","v":"Subdirector de Financiamiento Externo"},{"$f":"'Listas Desplegables'!M28","v":"Embargos"},{"$f":"'Listas Desplegables'!N28","v":0},{"$f":"'Listas Desplegables'!O28","v":0},{"$f":"'Listas Desplegables'!P28","v":0}]
[{"$f":"'Listas Desplegables'!A29","v":0},{"$f":"'Listas Desplegables'!B29","v":0},{"$f":"'Listas Desplegables'!C29","v":"6.1 Subdirección de Financiamiento Interno de la Nación"},{"$f":"'Listas Desplegables'!D29","v":"Mis.5.1 Expedición Normativa y Emisión de Conceptos"},{"$f":"'Listas Desplegables'!E29","v":"Mis.5.1"},{"$f":"'Listas Desplegables'!F29","v":"Dirección General de Apoyo Fiscal"},{"$f":"'Listas Desplegables'!G29","v":"Bufete de Abogados"},{"$f":"'Listas Desplegables'!H29","v":"Dirección General de Apoyo Fiscal"},{"$f":"'Listas Desplegables'!I29","v":"Bufete de Abogados"},{"$f":"'Listas Desplegables'!J29","v":"Necesidades de asesoría y/o capacitación"},{"$f":"'Listas Desplegables'!K29","v":"Plan de comunicaciones"},{"$f":"'Listas Desplegables'!L29","v":"Subdirector de Financiamiento Interno de la Nación"},{"$f":"'Listas Desplegables'!M29","v":"Exfuncionarios"},{"$f":"'Listas Desplegables'!N29","v":0},{"$f":"'Listas Desplegables'!O29","v":0},{"$f":"'Listas Desplegables'!P29","v":0}]
[{"$f":"'Listas Desplegables'!A30","v":0},{"$f":"'Listas Desplegables'!B30","v":0},{"$f":"'Listas Desplegables'!C30","v":"5.4 Subdirección de Desarrollo Social"},{"$f":"'Listas Desplegables'!D30","v":"Mis.5.2 Coordinación  y Seguimiento a los Asuntos Legislativos"},{"$f":"'Listas Desplegables'!E30","v":"Mis.5.2"},{"$f":"'Listas Desplegables'!F30","v":"Dirección General de Crédito Publico y del Tesoro Nacional "},{"$f":"'Listas Desplegables'!G30","v":"Cámara Colombiana del Libro"},{"$f":"'Listas Desplegables'!H30","v":"Dirección General de Crédito Publico y del Tesoro Nacional "},{"$f":"'Listas Desplegables'!I30","v":"Cámara Colombiana del Libro"},{"$f":"'Listas Desplegables'!J30","v":"Modelo Integrado de Planeación y Gestión"},{"$f":"'Listas Desplegables'!K30","v":"PBC (Plan Bienal de Caja) básico"},{"$f":"'Listas Desplegables'!L30","v":"Subdirector de Fortalecimiento Institucional Territorial"},{"$f":"'Listas Desplegables'!M30","v":"Financiera"},{"$f":"'Listas Desplegables'!N30","v":0},{"$f":"'Listas Desplegables'!O30","v":0},{"$f":"'Listas Desplegables'!P30","v":0}]
[{"$f":"'Listas Desplegables'!A31","v":0},{"$f":"'Listas Desplegables'!B31","v":0},{"$f":"'Listas Desplegables'!C31","v":"6.2 Subdirección de Financiamiento Externo de la Nación"},{"$f":"'Listas Desplegables'!D31","v":"Apo.1 .3 Gobierno y Gestión TIC"},{"$f":"'Listas Desplegables'!E31","v":"Apo.1.3"},{"$f":"'Listas Desplegables'!F31","v":"Dirección General de Participaciones Estatales"},{"$f":"'Listas Desplegables'!G31","v":"Cámaras de Comercio"},{"$f":"'Listas Desplegables'!H31","v":"Dirección General de Participaciones Estatales"},{"$f":"'Listas Desplegables'!I31","v":"Cámaras de Comercio"},{"$f":"'Listas Desplegables'!J31","v":"Orden de pago autorizadas"},{"$f":"'Listas Desplegables'!K31","v":"Plan de mantenimiento y mejoramiento del Sistema Único de Gestión – SUG."},{"$f":"'Listas Desplegables'!L31","v":"Subdirector de Ingeniería de Software "},{"$f":"'Listas Desplegables'!M31","v":"Funcionarios"},{"$f":"'Listas Desplegables'!N31","v":0},{"$f":"'Listas Desplegables'!O31","v":0},{"$f":"'Listas Desplegables'!P31","v":0}]
[{"$f":"'Listas Desplegables'!A32","v":0},{"$f":"'Listas Desplegables'!B32","v":0},{"$f":"'Listas Desplegables'!C32","v":"6.3 Subdirección de Financiamiento con Organismos Multilaterales y Gobiernos"},{"$f":"'Listas Desplegables'!D32","v":"Apo.1.4 Gestión de Información"},{"$f":"'Listas Desplegables'!E32","v":"Apo.1.4"},{"$f":"'Listas Desplegables'!F32","v":"Dirección General de Presupuesto Público Nacional"},{"$f":"'Listas Desplegables'!G32","v":"Central de Inversiones S.A - CISA"},{"$f":"'Listas Desplegables'!H32","v":"Dirección General de Presupuesto Público Nacional"},{"$f":"'Listas Desplegables'!I32","v":"Central de Inversiones S.A - CISA"},{"$f":"'Listas Desplegables'!J32","v":"Órdenes de pago autorizadas"},{"$f":"'Listas Desplegables'!K32","v":"Plan Estratégico Institucional MHCP"},{"$f":"'Listas Desplegables'!L32","v":"Subdirector de Operaciones"},{"$f":"'Listas Desplegables'!M32","v":"Giros Históricos"},{"$f":"'Listas Desplegables'!N32","v":0},{"$f":"'Listas Desplegables'!O32","v":0},{"$f":"'Listas Desplegables'!P32","v":0}]
[{"$f":"'Listas Desplegables'!A33","v":0},{"$f":"'Listas Desplegables'!B33","v":0},{"$f":"'Listas Desplegables'!C33","v":"4.2 Subdirección Jurídica"},{"$f":"'Listas Desplegables'!D33","v":"Apo.2.1 Administración de Personal"},{"$f":"'Listas Desplegables'!E33","v":"Apo.2.1"},{"$f":"'Listas Desplegables'!F33","v":"Dirección General de Regulación Económica de la Seguridad Social "},{"$f":"'Listas Desplegables'!G33","v":"Centro de Análisis y Asuntos Públicos - CAAP"},{"$f":"'Listas Desplegables'!H33","v":"Dirección General de Regulación Económica de la Seguridad Social "},{"$f":"'Listas Desplegables'!I33","v":"Centro de Análisis y Asuntos Públicos - CAAP"},{"$f":"'Listas Desplegables'!J33","v":"Giros de los recursos de la Nación."},{"$f":"'Listas Desplegables'!K33","v":"Informe de seguimiento al plan estratégico institucional del MHCP"},{"$f":"'Listas Desplegables'!L33","v":"Subdirector de Recursos Humanos"},{"$f":"'Listas Desplegables'!M33","v":"Hoja de Ruta"},{"$f":"'Listas Desplegables'!N33","v":0},{"$f":"'Listas Desplegables'!O33","v":0},{"$f":"'Listas Desplegables'!P33","v":0}]
[{"$f":"'Listas Desplegables'!A34","v":0},{"$f":"'Listas Desplegables'!B34","v":0},{"$f":"'Listas Desplegables'!C34","v":"6.4 Subdirección de Tesorería"},{"$f":"'Listas Desplegables'!D34","v":"Apo.2.2 Desarrollo de Personal"},{"$f":"'Listas Desplegables'!E34","v":"Apo.2.2"},{"$f":"'Listas Desplegables'!F34","v":"Grupo de Asuntos Legales"},{"$f":"'Listas Desplegables'!G34","v":"Centro Nacional de Información del Sector Social - CENISS"},{"$f":"'Listas Desplegables'!H34","v":"Grupo de Asuntos Legales"},{"$f":"'Listas Desplegables'!I34","v":"Centro Nacional de Información del Sector Social - CENISS"},{"$f":"'Listas Desplegables'!J34","v":"PAC"},{"$f":"'Listas Desplegables'!K34","v":"Plan Estratégico Sector Hacienda"},{"$f":"'Listas Desplegables'!L34","v":"Subdirector de Riesgos"},{"$f":"'Listas Desplegables'!M34","v":"Horario"},{"$f":"'Listas Desplegables'!N34","v":0},{"$f":"'Listas Desplegables'!O34","v":0},{"$f":"'Listas Desplegables'!P34","v":0}]
[{"$f":"'Listas Desplegables'!A35","v":0},{"$f":"'Listas Desplegables'!B35","v":0},{"$f":"'Listas Desplegables'!C35","v":"6.5 Subdirección de Financiamiento de Otras Entidades, Seguimiento, Saneamiento y Cartera"},{"$f":"'Listas Desplegables'!D35","v":"Apo.2.3 Gestión de Comisión Interior o Exterior"},{"$f":"'Listas Desplegables'!E35","v":"Apo.2.3"},{"$f":"'Listas Desplegables'!F35","v":"Grupo de Competencias y Desarrollo Humano"},{"$f":"'Listas Desplegables'!G35","v":"Ciudadanía"},{"$f":"'Listas Desplegables'!H35","v":"Grupo de Competencias y Desarrollo Humano"},{"$f":"'Listas Desplegables'!I35","v":"Ciudadanía"},{"$f":"'Listas Desplegables'!J35","v":"Pagos por devoluciones de recursos."},{"$f":"'Listas Desplegables'!K35","v":"Publicación de documentos vigentes"},{"$f":"'Listas Desplegables'!L35","v":"Subdirector de Servicios"},{"$f":"'Listas Desplegables'!M35","v":"I.R.C."},{"$f":"'Listas Desplegables'!N35","v":0},{"$f":"'Listas Desplegables'!O35","v":0},{"$f":"'Listas Desplegables'!P35","v":0}]
[{"$f":"'Listas Desplegables'!A36","v":0},{"$f":"'Listas Desplegables'!B36","v":0},{"$f":"'Listas Desplegables'!C36","v":"6.6 Subdirección de Banca de Inversión"},{"$f":"'Listas Desplegables'!D36","v":"Apo.3.4 Apoyo a la Gestión Financiera"},{"$f":"'Listas Desplegables'!E36","v":"Apo.3.4"},{"$f":"'Listas Desplegables'!F36","v":"Grupo de Contratos"},{"$f":"'Listas Desplegables'!G36","v":"COLPENSIONES"},{"$f":"'Listas Desplegables'!H36","v":"Grupo de Contratos"},{"$f":"'Listas Desplegables'!I36","v":"COLPENSIONES"},{"$f":"'Listas Desplegables'!J36","v":"PBC"},{"$f":"'Listas Desplegables'!K36","v":"Registros y comprobantes contables."},{"$f":"'Listas Desplegables'!L36","v":"Subdirector de Tesorería"},{"$f":"'Listas Desplegables'!M36","v":"INTERNET"},{"$f":"'Listas Desplegables'!N36","v":0},{"$f":"'Listas Desplegables'!O36","v":0},{"$f":"'Listas Desplegables'!P36","v":0}]
[{"$f":"'Listas Desplegables'!A37","v":0},{"$f":"'Listas Desplegables'!B37","v":0},{"$f":"'Listas Desplegables'!C37","v":"6.7 Subdirección de Riesgo"},{"$f":"'Listas Desplegables'!D37","v":"Apo.4.1 Adquisición de Bienes y Servicios"},{"$f":"'Listas Desplegables'!E37","v":"Apo.4.1"},{"$f":"'Listas Desplegables'!F37","v":"Grupo de Derechos de Petición, Consultas y Cartera"},{"$f":"'Listas Desplegables'!G37","v":"Comisión Legal de Cuentas de la Cámara de Representantes"},{"$f":"'Listas Desplegables'!H37","v":"Grupo de Derechos de Petición, Consultas y Cartera"},{"$f":"'Listas Desplegables'!I37","v":"Comisión Legal de Cuentas de la Cámara de Representantes"},{"$f":"'Listas Desplegables'!J37","v":"Plan Bienal de Caja del SGR"},{"$f":"'Listas Desplegables'!K37","v":"Resultados del seguimiento y medición de procesos"},{"$f":"'Listas Desplegables'!L37","v":"Subdirector Financiero "},{"$f":"'Listas Desplegables'!M37","v":"INTRANET"},{"$f":"'Listas Desplegables'!N37","v":0},{"$f":"'Listas Desplegables'!O37","v":0},{"$f":"'Listas Desplegables'!P37","v":0}]
[{"$f":"'Listas Desplegables'!A38","v":0},{"$f":"'Listas Desplegables'!B38","v":0},{"$f":"'Listas Desplegables'!C38","v":"6.8 Subdirección de Operaciones"},{"$f":"'Listas Desplegables'!D38","v":"Apo.4.2 Administración de Bienes y Servicios"},{"$f":"'Listas Desplegables'!E38","v":"Apo.4.2"},{"$f":"'Listas Desplegables'!F38","v":"Grupo de Financiamiento Otras Entidades"},{"$f":"'Listas Desplegables'!G38","v":"Comisión Nacional del Servicio Civil - CNSC"},{"$f":"'Listas Desplegables'!H38","v":"Grupo de Financiamiento Otras Entidades"},{"$f":"'Listas Desplegables'!I38","v":"Comisión Nacional del Servicio Civil - CNSC"},{"$f":"'Listas Desplegables'!J38","v":"Plan Bienal de Caja del SGR"},{"$f":"'Listas Desplegables'!K38","v":"Riesgos del proceso gestionado"},{"$f":"'Listas Desplegables'!L38","v":"Subdirector Jurídico"},{"$f":"'Listas Desplegables'!M38","v":"Juntas Directivas"},{"$f":"'Listas Desplegables'!N38","v":0},{"$f":"'Listas Desplegables'!O38","v":0},{"$f":"'Listas Desplegables'!P38","v":0}]
[{"$f":"'Listas Desplegables'!A39","v":0},{"$f":"'Listas Desplegables'!B39","v":0},{"$f":"'Listas Desplegables'!C39","v":"7. Dirección General de Apoyo Fiscal"},{"$f":"'Listas Desplegables'!D39","v":"Apo.4.5 Gestión Ambiental "},{"$f":"'Listas Desplegables'!E39","v":"Apo.4.5"},{"$f":"'Listas Desplegables'!F39","v":"Grupo de Historias Laborales"},{"$f":"'Listas Desplegables'!G39","v":"Congreso de la República"},{"$f":"'Listas Desplegables'!H39","v":"Grupo de Historias Laborales"},{"$f":"'Listas Desplegables'!I39","v":"Congreso de la República"},{"$f":"'Listas Desplegables'!J39","v":"Plan Nacional de Desarrollo."},{"$f":"'Listas Desplegables'!K39","v":"Transferencia de recursos."},{"$f":"'Listas Desplegables'!L39","v":0},{"$f":"'Listas Desplegables'!M39","v":"Mantenimiento"},{"$f":"'Listas Desplegables'!N39","v":0},{"$f":"'Listas Desplegables'!O39","v":0},{"$f":"'Listas Desplegables'!P39","v":0}]
[{"$f":"'Listas Desplegables'!A40","v":0},{"$f":"'Listas Desplegables'!B40","v":0},{"$f":"'Listas Desplegables'!C40","v":"7.1 Subdirección de Apoyo al Saneamiento Fiscal Territorial"},{"$f":"'Listas Desplegables'!D40","v":"Apo.5.1 Defensa Judicial, pago de sentencias y conciliaciones"},{"$f":"'Listas Desplegables'!E40","v":"Apo.5.1"},{"$f":"'Listas Desplegables'!F40","v":"Grupo de Pagos y Cumplimiento"},{"$f":"'Listas Desplegables'!G40","v":"Consejo de Estado"},{"$f":"'Listas Desplegables'!H40","v":"Grupo de Pagos y Cumplimiento"},{"$f":"'Listas Desplegables'!I40","v":"Consejo de Estado"},{"$f":"'Listas Desplegables'!J40","v":"Plan para el mantenimiento y mejoramiento del SUG"},{"$f":"'Listas Desplegables'!K40","v":0},{"$f":"'Listas Desplegables'!L40","v":0},{"$f":"'Listas Desplegables'!M40","v":"Modelo Operaciones Efectivas de Caja "},{"$f":"'Listas Desplegables'!N40","v":0},{"$f":"'Listas Desplegables'!O40","v":0},{"$f":"'Listas Desplegables'!P40","v":0}]
[{"$f":"'Listas Desplegables'!A41","v":0},{"$f":"'Listas Desplegables'!B41","v":0},{"$f":"'Listas Desplegables'!C41","v":"7.2 Subdirección de Fortalecimiento Institucional Territorial"},{"$f":"'Listas Desplegables'!D41","v":"Apo.5.3 Cartera"},{"$f":"'Listas Desplegables'!E41","v":"Apo.5.3"},{"$f":"'Listas Desplegables'!F41","v":"Grupo de Seguimiento y Cartera de la SFOESSC"},{"$f":"'Listas Desplegables'!G41","v":"Consejo de Ministros"},{"$f":"'Listas Desplegables'!H41","v":"Grupo de Seguimiento y Cartera de la SFOESSC"},{"$f":"'Listas Desplegables'!I41","v":"Consejo de Ministros"},{"$f":"'Listas Desplegables'!J41","v":"Planes de anteriores vigencias"},{"$f":"'Listas Desplegables'!K41","v":0},{"$f":"'Listas Desplegables'!L41","v":0},{"$f":"'Listas Desplegables'!M41","v":"Modificaciones por estudio a la ley de gastos e ingresos"},{"$f":"'Listas Desplegables'!N41","v":0},{"$f":"'Listas Desplegables'!O41","v":0},{"$f":"'Listas Desplegables'!P41","v":0}]
[{"$f":"'Listas Desplegables'!A42","v":0},{"$f":"'Listas Desplegables'!B42","v":0},{"$f":"'Listas Desplegables'!C42","v":"8. Órganos de Asesoría y Coordinación"},{"$f":"'Listas Desplegables'!D42","v":"Apo.6.1 Atención al ciudadano e instituciones"},{"$f":"'Listas Desplegables'!E42","v":"Apo.6.1"},{"$f":"'Listas Desplegables'!F42","v":"Grupo Financiero Asesor – FAE"},{"$f":"'Listas Desplegables'!G42","v":"Consejo Nacional de Política Económica y Social – CONPES"},{"$f":"'Listas Desplegables'!H42","v":"Grupo Financiero Asesor – FAE"},{"$f":"'Listas Desplegables'!I42","v":"Consejo Nacional de Política Económica y Social – CONPES"},{"$f":"'Listas Desplegables'!J42","v":"Planes de mejoramiento."},{"$f":"'Listas Desplegables'!K42","v":0},{"$f":"'Listas Desplegables'!L42","v":0},{"$f":"'Listas Desplegables'!M42","v":"Nómina"},{"$f":"'Listas Desplegables'!N42","v":0},{"$f":"'Listas Desplegables'!O42","v":0},{"$f":"'Listas Desplegables'!P42","v":0}]
[{"$f":"'Listas Desplegables'!A43","v":0},{"$f":"'Listas Desplegables'!B43","v":0},{"$f":"'Listas Desplegables'!C43","v":"8.1 Consejo Superior de Política Fiscal"},{"$f":"'Listas Desplegables'!D43","v":"Apo.6.2 Atención a Derechos de Petición y Emisión de Conceptos Jurídicos"},{"$f":"'Listas Desplegables'!E43","v":"Apo.6.2"},{"$f":"'Listas Desplegables'!F43","v":"Grupo Gestión de Información"},{"$f":"'Listas Desplegables'!G43","v":"Consejo Superior de Política Fiscal - CONFIS"},{"$f":"'Listas Desplegables'!H43","v":"Grupo Gestión de Información"},{"$f":"'Listas Desplegables'!I43","v":"Consejo Superior de Política Fiscal - CONFIS"},{"$f":"'Listas Desplegables'!J43","v":"Programación de pagos entidades"},{"$f":"'Listas Desplegables'!K43","v":0},{"$f":"'Listas Desplegables'!L43","v":0},{"$f":"'Listas Desplegables'!M43","v":"OCDI"},{"$f":"'Listas Desplegables'!N43","v":0},{"$f":"'Listas Desplegables'!O43","v":0},{"$f":"'Listas Desplegables'!P43","v":0}]
[{"$f":"'Listas Desplegables'!A44","v":0},{"$f":"'Listas Desplegables'!B44","v":0},{"$f":"'Listas Desplegables'!C44","v":"8.2 Consejo Macroeconómico"},{"$f":"'Listas Desplegables'!D44","v":"Eva.1.1 Evaluación Independiente"},{"$f":"'Listas Desplegables'!E44","v":"Eva.1.1"},{"$f":"'Listas Desplegables'!F44","v":"Grupo Sistema Único de Gestión – OAP MHCP"},{"$f":"'Listas Desplegables'!G44","v":"Contaduría General de la Nación - CGN"},{"$f":"'Listas Desplegables'!H44","v":"Grupo Sistema Único de Gestión – OAP MHCP"},{"$f":"'Listas Desplegables'!I44","v":"Contaduría General de la Nación - CGN"},{"$f":"'Listas Desplegables'!J44","v":"Programas de Gobierno"},{"$f":"'Listas Desplegables'!K44","v":0},{"$f":"'Listas Desplegables'!L44","v":0},{"$f":"'Listas Desplegables'!M44","v":"PASIVOCOL"},{"$f":"'Listas Desplegables'!N44","v":0},{"$f":"'Listas Desplegables'!O44","v":0},{"$f":"'Listas Desplegables'!P44","v":0}]
[{"$f":"'Listas Desplegables'!A45","v":0},{"$f":"'Listas Desplegables'!B45","v":0},{"$f":"'Listas Desplegables'!C45","v":"8.3 Comité Sectorial de Desarrollo Administrativo"},{"$f":"'Listas Desplegables'!D45","v":"Eva.1.2 Control Disciplinario Interno"},{"$f":"'Listas Desplegables'!E45","v":"Eva.1.2"},{"$f":"'Listas Desplegables'!F45","v":"Grupo SIIF Nación"},{"$f":"'Listas Desplegables'!G45","v":"Contraloría General de la República - CGR"},{"$f":"'Listas Desplegables'!H45","v":"Grupo SIIF Nación"},{"$f":"'Listas Desplegables'!I45","v":"Contraloría General de la República - CGR"},{"$f":"'Listas Desplegables'!J45","v":"Proyección de pagos de regalías"},{"$f":"'Listas Desplegables'!K45","v":0},{"$f":"'Listas Desplegables'!L45","v":0},{"$f":"'Listas Desplegables'!M45","v":"Personal"},{"$f":"'Listas Desplegables'!N45","v":0},{"$f":"'Listas Desplegables'!O45","v":0},{"$f":"'Listas Desplegables'!P45","v":0}]
[{"$f":"'Listas Desplegables'!A46","v":0},{"$f":"'Listas Desplegables'!B46","v":0},{"$f":"'Listas Desplegables'!C46","v":"8.4 Comité de Coordinación del Sistema de Control Interno y Calidad"},{"$f":"'Listas Desplegables'!D46","v":0},{"$f":"'Listas Desplegables'!E46","v":0},{"$f":"'Listas Desplegables'!F46","v":"Subdirección de Financiamiento "},{"$f":"'Listas Desplegables'!G46","v":"Contralorías Territoriales "},{"$f":"'Listas Desplegables'!H46","v":"Subdirección de Financiamiento "},{"$f":"'Listas Desplegables'!I46","v":"Contralorías Territoriales "},{"$f":"'Listas Desplegables'!J46","v":"Proyecciones de pago"},{"$f":"'Listas Desplegables'!K46","v":0},{"$f":"'Listas Desplegables'!L46","v":0},{"$f":"'Listas Desplegables'!M46","v":"Planeación Tesoro - Flujo Caja"},{"$f":"'Listas Desplegables'!N46","v":0},{"$f":"'Listas Desplegables'!O46","v":0},{"$f":"'Listas Desplegables'!P46","v":0}]
[{"$f":"'Listas Desplegables'!A47","v":0},{"$f":"'Listas Desplegables'!B47","v":0},{"$f":"'Listas Desplegables'!C47","v":"8.5 Comité de Conciliación"},{"$f":"'Listas Desplegables'!D47","v":0},{"$f":"'Listas Desplegables'!E47","v":0},{"$f":"'Listas Desplegables'!F47","v":"Subdirección de Operaciones"},{"$f":"'Listas Desplegables'!G47","v":"Corporaciones Autonomas Regionales - CAR"},{"$f":"'Listas Desplegables'!H47","v":"Subdirección de Operaciones"},{"$f":"'Listas Desplegables'!I47","v":"Corporaciones Autonomas Regionales - CAR"},{"$f":"'Listas Desplegables'!J47","v":"Recaudos de los recursos de la Nación."},{"$f":"'Listas Desplegables'!K47","v":0},{"$f":"'Listas Desplegables'!L47","v":0},{"$f":"'Listas Desplegables'!M47","v":"Plantas y nóminas"},{"$f":"'Listas Desplegables'!N47","v":0},{"$f":"'Listas Desplegables'!O47","v":0},{"$f":"'Listas Desplegables'!P47","v":0}]
[{"$f":"'Listas Desplegables'!A48","v":0},{"$f":"'Listas Desplegables'!B48","v":0},{"$f":"'Listas Desplegables'!C48","v":"8.6 Comisión de Personal"},{"$f":"'Listas Desplegables'!D48","v":0},{"$f":"'Listas Desplegables'!E48","v":0},{"$f":"'Listas Desplegables'!F48","v":"Subdirección de Recursos Humanos"},{"$f":"'Listas Desplegables'!G48","v":"Corte Constitucional "},{"$f":"'Listas Desplegables'!H48","v":"Subdirección de Recursos Humanos"},{"$f":"'Listas Desplegables'!I48","v":"Corte Constitucional "},{"$f":"'Listas Desplegables'!J48","v":"Resolución de pagos de servicio de la deuda"},{"$f":"'Listas Desplegables'!K48","v":0},{"$f":"'Listas Desplegables'!L48","v":0},{"$f":"'Listas Desplegables'!M48","v":"Politica Macro"},{"$f":"'Listas Desplegables'!N48","v":0},{"$f":"'Listas Desplegables'!O48","v":0},{"$f":"'Listas Desplegables'!P48","v":0}]
[{"$f":"'Listas Desplegables'!A49","v":0},{"$f":"'Listas Desplegables'!B49","v":0},{"$f":"'Listas Desplegables'!C49","v":"2.2 Oficina Asesora de Planeación - 4.3.1 Subdirección Financiera"},{"$f":"'Listas Desplegables'!D49","v":0},{"$f":"'Listas Desplegables'!E49","v":0},{"$f":"'Listas Desplegables'!F49","v":"Subdirección de Riesgo"},{"$f":"'Listas Desplegables'!G49","v":"Corte Suprema de Justicia"},{"$f":"'Listas Desplegables'!H49","v":"Subdirección de Riesgo"},{"$f":"'Listas Desplegables'!I49","v":"Corte Suprema de Justicia"},{"$f":"'Listas Desplegables'!J49","v":"Resolución de Presupuesto del Servicio de la Deuda de la Nación"},{"$f":"'Listas Desplegables'!K49","v":0},{"$f":"'Listas Desplegables'!L49","v":0},{"$f":"'Listas Desplegables'!M49","v":"PORFIN"},{"$f":"'Listas Desplegables'!N49","v":0},{"$f":"'Listas Desplegables'!O49","v":0},{"$f":"'Listas Desplegables'!P49","v":0}]
[{"$f":"'Listas Desplegables'!A50","v":0},{"$f":"'Listas Desplegables'!B50","v":0},{"$f":"'Listas Desplegables'!C50","v":0},{"$f":"'Listas Desplegables'!D50","v":0},{"$f":"'Listas Desplegables'!E50","v":0},{"$f":"'Listas Desplegables'!F50","v":"Subdirección de Servicios"},{"$f":"'Listas Desplegables'!G50","v":"DECEVAL"},{"$f":"'Listas Desplegables'!H50","v":"Subdirección de Servicios"},{"$f":"'Listas Desplegables'!I50","v":"DECEVAL"},{"$f":"'Listas Desplegables'!J50","v":"Resultados de la revisión del SUG."},{"$f":"'Listas Desplegables'!K50","v":0},{"$f":"'Listas Desplegables'!L50","v":0},{"$f":"'Listas Desplegables'!M50","v":"Preinscripción capacitación"},{"$f":"'Listas Desplegables'!N50","v":0},{"$f":"'Listas Desplegables'!O50","v":0},{"$f":"'Listas Desplegables'!P50","v":0}]
[{"$f":"'Listas Desplegables'!A51","v":0},{"$f":"'Listas Desplegables'!B51","v":0},{"$f":"'Listas Desplegables'!C51","v":0},{"$f":"'Listas Desplegables'!D51","v":0},{"$f":"'Listas Desplegables'!E51","v":0},{"$f":"'Listas Desplegables'!F51","v":"Subdirección de Tesorería"},{"$f":"'Listas Desplegables'!G51","v":"Departamento Administrativo de la Función Pública - DAFP"},{"$f":"'Listas Desplegables'!H51","v":"Subdirección de Tesorería"},{"$f":"'Listas Desplegables'!I51","v":"Departamento Administrativo de la Función Pública - DAFP"},{"$f":"'Listas Desplegables'!J51","v":"Solicitud de Distribución del PAC"},{"$f":"'Listas Desplegables'!K51","v":0},{"$f":"'Listas Desplegables'!L51","v":0},{"$f":"'Listas Desplegables'!M51","v":"Presupuesto – Ejecucion Presupuestal Nación"},{"$f":"'Listas Desplegables'!N51","v":0},{"$f":"'Listas Desplegables'!O51","v":0},{"$f":"'Listas Desplegables'!P51","v":0}]
[{"$f":"'Listas Desplegables'!A52","v":0},{"$f":"'Listas Desplegables'!B52","v":0},{"$f":"'Listas Desplegables'!C52","v":0},{"$f":"'Listas Desplegables'!D52","v":0},{"$f":"'Listas Desplegables'!E52","v":0},{"$f":"'Listas Desplegables'!F52","v":"Subdirección Financiamiento Externo de la Nación"},{"$f":"'Listas Desplegables'!G52","v":"Departamento Administrativo Nacional de Estadística - DANE"},{"$f":"'Listas Desplegables'!H52","v":"Subdirección Financiamiento Externo de la Nación"},{"$f":"'Listas Desplegables'!I52","v":"Departamento Administrativo Nacional de Estadística - DANE"},{"$f":"'Listas Desplegables'!J52","v":"Solicitudes de divulgación de información"},{"$f":"'Listas Desplegables'!K52","v":0},{"$f":"'Listas Desplegables'!L52","v":0},{"$f":"'Listas Desplegables'!M52","v":"Procesos Judiciales"},{"$f":"'Listas Desplegables'!N52","v":0},{"$f":"'Listas Desplegables'!O52","v":0},{"$f":"'Listas Desplegables'!P52","v":0}]
[{"$f":"'Listas Desplegables'!A53","v":0},{"$f":"'Listas Desplegables'!B53","v":0},{"$f":"'Listas Desplegables'!C53","v":0},{"$f":"'Listas Desplegables'!D53","v":0},{"$f":"'Listas Desplegables'!E53","v":0},{"$f":"'Listas Desplegables'!F53","v":"Subdirección Financiamiento Interno de la Nación"},{"$f":"'Listas Desplegables'!G53","v":"Departamento Nacional de Planeación - DNP"},{"$f":"'Listas Desplegables'!H53","v":"Subdirección Financiamiento Interno de la Nación"},{"$f":"'Listas Desplegables'!I53","v":"Departamento Nacional de Planeación - DNP"},{"$f":"'Listas Desplegables'!J53","v":"Solicitudes de modificación de PAC"},{"$f":"'Listas Desplegables'!K53","v":0},{"$f":"'Listas Desplegables'!L53","v":0},{"$f":"'Listas Desplegables'!M53","v":"PTE"},{"$f":"'Listas Desplegables'!N53","v":0},{"$f":"'Listas Desplegables'!O53","v":0},{"$f":"'Listas Desplegables'!P53","v":0}]
[{"$f":"'Listas Desplegables'!A54","v":0},{"$f":"'Listas Desplegables'!B54","v":0},{"$f":"'Listas Desplegables'!C54","v":0},{"$f":"'Listas Desplegables'!D54","v":0},{"$f":"'Listas Desplegables'!E54","v":0},{"$f":"'Listas Desplegables'!F54","v":"Subdirección Financiera"},{"$f":"'Listas Desplegables'!G54","v":"Dirección de Impuestos y Aduanas Nacionales - DIAN"},{"$f":"'Listas Desplegables'!H54","v":"Subdirección Financiera"},{"$f":"'Listas Desplegables'!I54","v":"Dirección de Impuestos y Aduanas Nacionales - DIAN"},{"$f":"'Listas Desplegables'!J54","v":"Temas relacionados con gestión de la calidad, eficiencia administrativa y cero papel, racionalización de trámites, modernización, riesgos operativos o de anticorrupción, etc."},{"$f":"'Listas Desplegables'!K54","v":0},{"$f":"'Listas Desplegables'!L54","v":0},{"$f":"'Listas Desplegables'!M54","v":"S.G.P. – Sistema General de Participaciones"},{"$f":"'Listas Desplegables'!N54","v":0},{"$f":"'Listas Desplegables'!O54","v":0},{"$f":"'Listas Desplegables'!P54","v":0}]
[{"$f":"'Listas Desplegables'!A55","v":0},{"$f":"'Listas Desplegables'!B55","v":0},{"$f":"'Listas Desplegables'!C55","v":0},{"$f":"'Listas Desplegables'!D55","v":0},{"$f":"'Listas Desplegables'!E55","v":0},{"$f":"'Listas Desplegables'!F55","v":"Est.1.1 Planeación estratégica sectorial e institucional"},{"$f":"'Listas Desplegables'!G55","v":"Distribuidores Mayoristas de Combustible"},{"$f":"'Listas Desplegables'!H55","v":"Est.1.1 Planeación estratégica sectorial e institucional"},{"$f":"'Listas Desplegables'!I55","v":"Distribuidores Mayoristas de Combustible"},{"$f":"'Listas Desplegables'!J55","v":"Transferencia de recursos del S.G.R. de la ANM y la ANH"},{"$f":"'Listas Desplegables'!K55","v":0},{"$f":"'Listas Desplegables'!L55","v":0},{"$f":"'Listas Desplegables'!M55","v":"S.I.F. - Sistema de Información de FONPET"},{"$f":"'Listas Desplegables'!N55","v":0},{"$f":"'Listas Desplegables'!O55","v":0},{"$f":"'Listas Desplegables'!P55","v":0}]
[{"$f":"'Listas Desplegables'!A56","v":0},{"$f":"'Listas Desplegables'!B56","v":0},{"$f":"'Listas Desplegables'!C56","v":0},{"$f":"'Listas Desplegables'!D56","v":0},{"$f":"'Listas Desplegables'!E56","v":0},{"$f":"'Listas Desplegables'!F56","v":"Est.1.4 Administración, mejoramiento e innovación del SUG"},{"$f":"'Listas Desplegables'!G56","v":"ECOPETROL"},{"$f":"'Listas Desplegables'!H56","v":"Est.1.4 Administración, mejoramiento e innovación del SUG"},{"$f":"'Listas Desplegables'!I56","v":"ECOPETROL"},{"$f":"'Listas Desplegables'!J56","v":"Visión de esfuerzos institucionales y sectoriales"},{"$f":"'Listas Desplegables'!K56","v":0},{"$f":"'Listas Desplegables'!L56","v":0},{"$f":"'Listas Desplegables'!M56","v":"SARA"},{"$f":"'Listas Desplegables'!N56","v":0},{"$f":"'Listas Desplegables'!O56","v":0},{"$f":"'Listas Desplegables'!P56","v":0}]
[{"$f":"'Listas Desplegables'!A57","v":0},{"$f":"'Listas Desplegables'!B57","v":0},{"$f":"'Listas Desplegables'!C57","v":0},{"$f":"'Listas Desplegables'!D57","v":0},{"$f":"'Listas Desplegables'!E57","v":0},{"$f":"'Listas Desplegables'!F57","v":"Est.2.1 Gestión de Comunicaciones"},{"$f":"'Listas Desplegables'!G57","v":"Empresas de Archivo"},{"$f":"'Listas Desplegables'!H57","v":"Est.2.1 Gestión de Comunicaciones"},{"$f":"'Listas Desplegables'!I57","v":"Empresas de Archivo"},{"$f":"'Listas Desplegables'!J57","v":"Plan para el mantenimiento y mejoramiento del SUG."},{"$f":"'Listas Desplegables'!K57","v":0},{"$f":"'Listas Desplegables'!L57","v":0},{"$f":"'Listas Desplegables'!M57","v":"SDP - Sistema de Deuda Pública"},{"$f":"'Listas Desplegables'!N57","v":0},{"$f":"'Listas Desplegables'!O57","v":0},{"$f":"'Listas Desplegables'!P57","v":0}]
[{"$f":"'Listas Desplegables'!A58","v":0},{"$f":"'Listas Desplegables'!B58","v":0},{"$f":"'Listas Desplegables'!C58","v":0},{"$f":"'Listas Desplegables'!D58","v":0},{"$f":"'Listas Desplegables'!E58","v":0},{"$f":"'Listas Desplegables'!F58","v":"Mis.1.1 Coordinación y seguimiento de la Política Macroeconómica y Fiscal"},{"$f":"'Listas Desplegables'!G58","v":"Empresas de Solftware"},{"$f":"'Listas Desplegables'!H58","v":"Mis.1.1 Coordinación y seguimiento de la Política Macroeconómica y Fiscal"},{"$f":"'Listas Desplegables'!I58","v":"Empresas de Solftware"},{"$f":"'Listas Desplegables'!J58","v":0},{"$f":"'Listas Desplegables'!K58","v":0},{"$f":"'Listas Desplegables'!L58","v":0},{"$f":"'Listas Desplegables'!M58","v":"Sentencias y Conciliaciones"},{"$f":"'Listas Desplegables'!N58","v":0},{"$f":"'Listas Desplegables'!O58","v":0},{"$f":"'Listas Desplegables'!P58","v":0}]
[{"$f":"'Listas Desplegables'!A59","v":0},{"$f":"'Listas Desplegables'!B59","v":0},{"$f":"'Listas Desplegables'!C59","v":0},{"$f":"'Listas Desplegables'!D59","v":0},{"$f":"'Listas Desplegables'!E59","v":0},{"$f":"'Listas Desplegables'!F59","v":"Mis.2.1 Programación Presupuestal de los recursos de la Nación"},{"$f":"'Listas Desplegables'!G59","v":"Empresas Industriales y Comerciales del Estado - EICE"},{"$f":"'Listas Desplegables'!H59","v":"Mis.2.1 Programación Presupuestal de los recursos de la Nación"},{"$f":"'Listas Desplegables'!I59","v":"Empresas Industriales y Comerciales del Estado - EICE"},{"$f":"'Listas Desplegables'!J59","v":0},{"$f":"'Listas Desplegables'!K59","v":0},{"$f":"'Listas Desplegables'!L59","v":0},{"$f":"'Listas Desplegables'!M59","v":"Señales Débiles"},{"$f":"'Listas Desplegables'!N59","v":0},{"$f":"'Listas Desplegables'!O59","v":0},{"$f":"'Listas Desplegables'!P59","v":0}]
[{"$f":"'Listas Desplegables'!A60","v":0},{"$f":"'Listas Desplegables'!B60","v":0},{"$f":"'Listas Desplegables'!C60","v":0},{"$f":"'Listas Desplegables'!D60","v":0},{"$f":"'Listas Desplegables'!E60","v":0},{"$f":"'Listas Desplegables'!F60","v":"Mis.2.2 Administración y seguimiento a la ejecución presupuestal"},{"$f":"'Listas Desplegables'!G60","v":"Empresas prestadoras de Servicios Públicos"},{"$f":"'Listas Desplegables'!H60","v":"Mis.2.2 Administración y seguimiento a la ejecución presupuestal"},{"$f":"'Listas Desplegables'!I60","v":"Empresas prestadoras de Servicios Públicos"},{"$f":"'Listas Desplegables'!J60","v":0},{"$f":"'Listas Desplegables'!K60","v":0},{"$f":"'Listas Desplegables'!L60","v":0},{"$f":"'Listas Desplegables'!M60","v":"SGR-OCAD"},{"$f":"'Listas Desplegables'!N60","v":0},{"$f":"'Listas Desplegables'!O60","v":0},{"$f":"'Listas Desplegables'!P60","v":0}]
[{"$f":"'Listas Desplegables'!A61","v":0},{"$f":"'Listas Desplegables'!B61","v":0},{"$f":"'Listas Desplegables'!C61","v":0},{"$f":"'Listas Desplegables'!D61","v":0},{"$f":"'Listas Desplegables'!E61","v":0},{"$f":"'Listas Desplegables'!F61","v":"Mis.3.1 Financiamiento Interno "},{"$f":"'Listas Desplegables'!G61","v":"Empresas Privadas"},{"$f":"'Listas Desplegables'!H61","v":"Mis.3.1 Financiamiento Interno "},{"$f":"'Listas Desplegables'!I61","v":"Empresas Privadas"},{"$f":"'Listas Desplegables'!J61","v":0},{"$f":"'Listas Desplegables'!K61","v":0},{"$f":"'Listas Desplegables'!L61","v":0},{"$f":"'Listas Desplegables'!M61","v":"SIED – Sistema Integrado Electrónico  Documental"},{"$f":"'Listas Desplegables'!N61","v":0},{"$f":"'Listas Desplegables'!O61","v":0},{"$f":"'Listas Desplegables'!P61","v":0}]
[{"$f":"'Listas Desplegables'!A62","v":0},{"$f":"'Listas Desplegables'!B62","v":0},{"$f":"'Listas Desplegables'!C62","v":0},{"$f":"'Listas Desplegables'!D62","v":0},{"$f":"'Listas Desplegables'!E62","v":0},{"$f":"'Listas Desplegables'!F62","v":"Mis.3.2 Financiamiento a Entidades"},{"$f":"'Listas Desplegables'!G62","v":"Empresas Sociales del Estado - ESE"},{"$f":"'Listas Desplegables'!H62","v":"Mis.3.2 Financiamiento a Entidades"},{"$f":"'Listas Desplegables'!I62","v":"Empresas Sociales del Estado - ESE"},{"$f":"'Listas Desplegables'!J62","v":0},{"$f":"'Listas Desplegables'!K62","v":0},{"$f":"'Listas Desplegables'!L62","v":0},{"$f":"'Listas Desplegables'!M62","v":"SIED-Correspondencia "},{"$f":"'Listas Desplegables'!N62","v":0},{"$f":"'Listas Desplegables'!O62","v":0},{"$f":"'Listas Desplegables'!P62","v":0}]
[{"$f":"'Listas Desplegables'!A63","v":0},{"$f":"'Listas Desplegables'!B63","v":0},{"$f":"'Listas Desplegables'!C63","v":0},{"$f":"'Listas Desplegables'!D63","v":0},{"$f":"'Listas Desplegables'!E63","v":0},{"$f":"'Listas Desplegables'!F63","v":"Mis.3.3 Financiamiento con Organismos Multilaterales y Gobiernos"},{"$f":"'Listas Desplegables'!G63","v":"Entes de Control del Nivel Nacional"},{"$f":"'Listas Desplegables'!H63","v":"Mis.3.3 Financiamiento con Organismos Multilaterales y Gobiernos"},{"$f":"'Listas Desplegables'!I63","v":"Entes de Control del Nivel Nacional"},{"$f":"'Listas Desplegables'!J63","v":0},{"$f":"'Listas Desplegables'!K63","v":0},{"$f":"'Listas Desplegables'!L63","v":0},{"$f":"'Listas Desplegables'!M63","v":"SIED-DAF-PSSF-PRESENTACIÓN"},{"$f":"'Listas Desplegables'!N63","v":0},{"$f":"'Listas Desplegables'!O63","v":0},{"$f":"'Listas Desplegables'!P63","v":0}]
[{"$f":"'Listas Desplegables'!A64","v":0},{"$f":"'Listas Desplegables'!B64","v":0},{"$f":"'Listas Desplegables'!C64","v":0},{"$f":"'Listas Desplegables'!D64","v":0},{"$f":"'Listas Desplegables'!E64","v":0},{"$f":"'Listas Desplegables'!F64","v":"Mis.3.4 Gestión de Liquidez"},{"$f":"'Listas Desplegables'!G64","v":"Entes de Control del Nivel Territorial"},{"$f":"'Listas Desplegables'!H64","v":"Mis.3.4 Gestión de Liquidez"},{"$f":"'Listas Desplegables'!I64","v":"Entes de Control del Nivel Territorial"},{"$f":"'Listas Desplegables'!J64","v":0},{"$f":"'Listas Desplegables'!K64","v":0},{"$f":"'Listas Desplegables'!L64","v":0},{"$f":"'Listas Desplegables'!M64","v":"SIED-PQRs"},{"$f":"'Listas Desplegables'!N64","v":0},{"$f":"'Listas Desplegables'!O64","v":0},{"$f":"'Listas Desplegables'!P64","v":0}]
[{"$f":"'Listas Desplegables'!A65","v":0},{"$f":"'Listas Desplegables'!B65","v":0},{"$f":"'Listas Desplegables'!C65","v":0},{"$f":"'Listas Desplegables'!D65","v":0},{"$f":"'Listas Desplegables'!E65","v":0},{"$f":"'Listas Desplegables'!F65","v":"Mis.3.5 Gestión de Ingresos, Pagos y Presentación de Estados Financieros"},{"$f":"'Listas Desplegables'!G65","v":"Entidad Fiduciaria"},{"$f":"'Listas Desplegables'!H65","v":"Mis.3.5 Gestión de Ingresos, Pagos y Presentación de Estados Financieros"},{"$f":"'Listas Desplegables'!I65","v":"Entidad Fiduciaria"},{"$f":"'Listas Desplegables'!J65","v":0},{"$f":"'Listas Desplegables'!K65","v":0},{"$f":"'Listas Desplegables'!L65","v":0},{"$f":"'Listas Desplegables'!M65","v":"SIED-Retiros del FONPET"},{"$f":"'Listas Desplegables'!N65","v":0},{"$f":"'Listas Desplegables'!O65","v":0},{"$f":"'Listas Desplegables'!P65","v":0}]
[{"$f":"'Listas Desplegables'!A66","v":0},{"$f":"'Listas Desplegables'!B66","v":0},{"$f":"'Listas Desplegables'!C66","v":0},{"$f":"'Listas Desplegables'!D66","v":0},{"$f":"'Listas Desplegables'!E66","v":0},{"$f":"'Listas Desplegables'!F66","v":"Mis.3.6 Administración de la Sobretasa de la Gasolina y ACPM"},{"$f":"'Listas Desplegables'!G66","v":"Entidades Adscritas y Vinculadas al Sector Hacienda"},{"$f":"'Listas Desplegables'!H66","v":"Mis.3.6 Administración de la Sobretasa de la Gasolina y ACPM"},{"$f":"'Listas Desplegables'!I66","v":"Entidades Adscritas y Vinculadas al Sector Hacienda"},{"$f":"'Listas Desplegables'!J66","v":0},{"$f":"'Listas Desplegables'!K66","v":0},{"$f":"'Listas Desplegables'!L66","v":0},{"$f":"'Listas Desplegables'!M66","v":"SIED-SISCOP"},{"$f":"'Listas Desplegables'!N66","v":0},{"$f":"'Listas Desplegables'!O66","v":0},{"$f":"'Listas Desplegables'!P66","v":0}]
[{"$f":"'Listas Desplegables'!A67","v":0},{"$f":"'Listas Desplegables'!B67","v":0},{"$f":"'Listas Desplegables'!C67","v":0},{"$f":"'Listas Desplegables'!D67","v":0},{"$f":"'Listas Desplegables'!E67","v":0},{"$f":"'Listas Desplegables'!F67","v":"Mis.3.7 Gestión de Particiones Estatales y Sistemas Cofinanciados de Transporte Masivo "},{"$f":"'Listas Desplegables'!G67","v":"Entidades con Convenio de Libranzas"},{"$f":"'Listas Desplegables'!H67","v":"Mis.3.7 Gestión de Particiones Estatales y Sistemas Cofinanciados de Transporte Masivo "},{"$f":"'Listas Desplegables'!I67","v":"Entidades con Convenio de Libranzas"},{"$f":"'Listas Desplegables'!J67","v":0},{"$f":"'Listas Desplegables'!K67","v":0},{"$f":"'Listas Desplegables'!L67","v":0},{"$f":"'Listas Desplegables'!M67","v":"SIED-SITPRES"},{"$f":"'Listas Desplegables'!N67","v":0},{"$f":"'Listas Desplegables'!O67","v":0},{"$f":"'Listas Desplegables'!P67","v":0}]
[{"$f":"'Listas Desplegables'!A68","v":0},{"$f":"'Listas Desplegables'!B68","v":0},{"$f":"'Listas Desplegables'!C68","v":0},{"$f":"'Listas Desplegables'!D68","v":0},{"$f":"'Listas Desplegables'!E68","v":0},{"$f":"'Listas Desplegables'!F68","v":"Mis.3.8 Apoyo a la Estructuración de Proyectos para la Vinculación de Capital Privado en Sectores de Responsabilidad del Estado"},{"$f":"'Listas Desplegables'!G68","v":"Entidades con Deuda Garantizada por la Nación"},{"$f":"'Listas Desplegables'!H68","v":"Mis.3.8 Apoyo a la Estructuración de Proyectos para la Vinculación de Capital Privado en Sectores de Responsabilidad del Estado"},{"$f":"'Listas Desplegables'!I68","v":"Entidades con Deuda Garantizada por la Nación"},{"$f":"'Listas Desplegables'!J68","v":0},{"$f":"'Listas Desplegables'!K68","v":0},{"$f":"'Listas Desplegables'!L68","v":0},{"$f":"'Listas Desplegables'!M68","v":"SIIF NACION"},{"$f":"'Listas Desplegables'!N68","v":0},{"$f":"'Listas Desplegables'!O68","v":0},{"$f":"'Listas Desplegables'!P68","v":0}]
[{"$f":"'Listas Desplegables'!A69","v":0},{"$f":"'Listas Desplegables'!B69","v":0},{"$f":"'Listas Desplegables'!C69","v":0},{"$f":"'Listas Desplegables'!D69","v":0},{"$f":"'Listas Desplegables'!E69","v":0},{"$f":"'Listas Desplegables'!F69","v":"Mis.3.9 Gestión de Bonos Pensionales"},{"$f":"'Listas Desplegables'!G69","v":"Entidades de Educación"},{"$f":"'Listas Desplegables'!H69","v":"Mis.3.9 Gestión de Bonos Pensionales"},{"$f":"'Listas Desplegables'!I69","v":"Entidades de Educación"},{"$f":"'Listas Desplegables'!J69","v":0},{"$f":"'Listas Desplegables'!K69","v":0},{"$f":"'Listas Desplegables'!L69","v":0},{"$f":"'Listas Desplegables'!M69","v":"Sistema de Información, Seguimiento y Control a los Proyectos de Ley (SISCOP)"},{"$f":"'Listas Desplegables'!N69","v":0},{"$f":"'Listas Desplegables'!O69","v":0},{"$f":"'Listas Desplegables'!P69","v":0}]
[{"$f":"'Listas Desplegables'!A70","v":0},{"$f":"'Listas Desplegables'!B70","v":0},{"$f":"'Listas Desplegables'!C70","v":0},{"$f":"'Listas Desplegables'!D70","v":0},{"$f":"'Listas Desplegables'!E70","v":0},{"$f":"'Listas Desplegables'!F70","v":"Mis.3.10 Gestión de Riesgo Fiscal"},{"$f":"'Listas Desplegables'!G70","v":"Entidades del Gobierno Nacional"},{"$f":"'Listas Desplegables'!H70","v":"Mis.3.10 Gestión de Riesgo Fiscal"},{"$f":"'Listas Desplegables'!I70","v":"Entidades del Gobierno Nacional"},{"$f":"'Listas Desplegables'!J70","v":0},{"$f":"'Listas Desplegables'!K70","v":0},{"$f":"'Listas Desplegables'!L70","v":0},{"$f":"'Listas Desplegables'!M70","v":"SMGI. Sistema Monitoreo de Gestión Integral"},{"$f":"'Listas Desplegables'!N70","v":0},{"$f":"'Listas Desplegables'!O70","v":0},{"$f":"'Listas Desplegables'!P70","v":0}]
[{"$f":"'Listas Desplegables'!A71","v":0},{"$f":"'Listas Desplegables'!B71","v":0},{"$f":"'Listas Desplegables'!C71","v":0},{"$f":"'Listas Desplegables'!D71","v":0},{"$f":"'Listas Desplegables'!E71","v":0},{"$f":"'Listas Desplegables'!F71","v":"Mis.3.11 Apoyo, seguimiento y control del cubrimiento del pasivo pensional de las Entidades Territoriales"},{"$f":"'Listas Desplegables'!G71","v":"Entidades del Sistema General de la Seguridad Social"},{"$f":"'Listas Desplegables'!H71","v":"Mis.3.11 Apoyo, seguimiento y control del cubrimiento del pasivo pensional de las Entidades Territoriales"},{"$f":"'Listas Desplegables'!I71","v":"Entidades del Sistema General de la Seguridad Social"},{"$f":"'Listas Desplegables'!J71","v":0},{"$f":"'Listas Desplegables'!K71","v":0},{"$f":"'Listas Desplegables'!L71","v":0},{"$f":"'Listas Desplegables'!M71","v":"SobreTasa a La gasolina Y ACPM"},{"$f":"'Listas Desplegables'!N71","v":0},{"$f":"'Listas Desplegables'!O71","v":0},{"$f":"'Listas Desplegables'!P71","v":0}]
[{"$f":"'Listas Desplegables'!A72","v":0},{"$f":"'Listas Desplegables'!B72","v":0},{"$f":"'Listas Desplegables'!C72","v":0},{"$f":"'Listas Desplegables'!D72","v":0},{"$f":"'Listas Desplegables'!E72","v":0},{"$f":"'Listas Desplegables'!F72","v":"Mis.3.13 Administración Integrada de la Información Financiera (SIIF Nación)"},{"$f":"'Listas Desplegables'!G72","v":"Entidades en Liquidación"},{"$f":"'Listas Desplegables'!H72","v":"Mis.3.13 Administración Integrada de la Información Financiera (SIIF Nación)"},{"$f":"'Listas Desplegables'!I72","v":"Entidades en Liquidación"},{"$f":"'Listas Desplegables'!J72","v":0},{"$f":"'Listas Desplegables'!K72","v":0},{"$f":"'Listas Desplegables'!L72","v":0},{"$f":"'Listas Desplegables'!M72","v":"Sobretasa a La gasolina Y ACPM (ASGA) (NUEVO)"},{"$f":"'Listas Desplegables'!N72","v":0},{"$f":"'Listas Desplegables'!O72","v":0},{"$f":"'Listas Desplegables'!P72","v":0}]
[{"$f":"'Listas Desplegables'!A73","v":0},{"$f":"'Listas Desplegables'!B73","v":0},{"$f":"'Listas Desplegables'!C73","v":0},{"$f":"'Listas Desplegables'!D73","v":0},{"$f":"'Listas Desplegables'!E73","v":0},{"$f":"'Listas Desplegables'!F73","v":"Mis.3.14 Financiamiento Externo de la Nación y relaciones con Inversionistas"},{"$f":"'Listas Desplegables'!G73","v":"Entidad Estatal "},{"$f":"'Listas Desplegables'!H73","v":"Mis.3.14 Financiamiento Externo de la Nación y relaciones con Inversionistas"},{"$f":"'Listas Desplegables'!I73","v":"Entidad Estatal "},{"$f":"'Listas Desplegables'!J73","v":0},{"$f":"'Listas Desplegables'!K73","v":0},{"$f":"'Listas Desplegables'!L73","v":0},{"$f":"'Listas Desplegables'!M73","v":"SOFIA"},{"$f":"'Listas Desplegables'!N73","v":0},{"$f":"'Listas Desplegables'!O73","v":0},{"$f":"'Listas Desplegables'!P73","v":0}]
[{"$f":"'Listas Desplegables'!A74","v":0},{"$f":"'Listas Desplegables'!B74","v":0},{"$f":"'Listas Desplegables'!C74","v":0},{"$f":"'Listas Desplegables'!D74","v":0},{"$f":"'Listas Desplegables'!E74","v":0},{"$f":"'Listas Desplegables'!F74","v":"Mis.4.1 Asesoría Tributaria y Financiera a Entidades Territorialesera a Entidades Territoriales"},{"$f":"'Listas Desplegables'!G74","v":"Entidades Interesadas en el Sector Energético"},{"$f":"'Listas Desplegables'!H74","v":"Mis.4.1 Asesoría Tributaria y Financiera a Entidades Territorialesera a Entidades Territoriales"},{"$f":"'Listas Desplegables'!I74","v":"Entidades Interesadas en el Sector Energético"},{"$f":"'Listas Desplegables'!J74","v":0},{"$f":"'Listas Desplegables'!K74","v":0},{"$f":"'Listas Desplegables'!L74","v":0},{"$f":"'Listas Desplegables'!M74","v":"SPGR"},{"$f":"'Listas Desplegables'!N74","v":0},{"$f":"'Listas Desplegables'!O74","v":0},{"$f":"'Listas Desplegables'!P74","v":0}]
[{"$f":"'Listas Desplegables'!A75","v":0},{"$f":"'Listas Desplegables'!B75","v":0},{"$f":"'Listas Desplegables'!C75","v":0},{"$f":"'Listas Desplegables'!D75","v":0},{"$f":"'Listas Desplegables'!E75","v":0},{"$f":"'Listas Desplegables'!F75","v":"Mis.4.2 Monitoreo y Apoyo al Saneamiento Fiscal de Entidades Territoriales"},{"$f":"'Listas Desplegables'!G75","v":"Entidades líderes de política de gestión y desempeño institucional "},{"$f":"'Listas Desplegables'!H75","v":"Mis.4.2 Monitoreo y Apoyo al Saneamiento Fiscal de Entidades Territoriales"},{"$f":"'Listas Desplegables'!I75","v":"Entidades líderes de política de gestión y desempeño institucional "},{"$f":"'Listas Desplegables'!J75","v":0},{"$f":"'Listas Desplegables'!K75","v":0},{"$f":"'Listas Desplegables'!L75","v":0},{"$f":"'Listas Desplegables'!M75","v":"SYNAPSIS"},{"$f":"'Listas Desplegables'!N75","v":0},{"$f":"'Listas Desplegables'!O75","v":0},{"$f":"'Listas Desplegables'!P75","v":0}]
[{"$f":"'Listas Desplegables'!A76","v":0},{"$f":"'Listas Desplegables'!B76","v":0},{"$f":"'Listas Desplegables'!C76","v":0},{"$f":"'Listas Desplegables'!D76","v":0},{"$f":"'Listas Desplegables'!E76","v":0},{"$f":"'Listas Desplegables'!F76","v":"Mis.4.3 Seguimiento al comportamiento financiero y fiscal del Sistema de Seguridad Social Integral"},{"$f":"'Listas Desplegables'!G76","v":"Entidades Liquidadas"},{"$f":"'Listas Desplegables'!H76","v":"Mis.4.3 Seguimiento al comportamiento financiero y fiscal del Sistema de Seguridad Social Integral"},{"$f":"'Listas Desplegables'!I76","v":"Entidades Liquidadas"},{"$f":"'Listas Desplegables'!J76","v":0},{"$f":"'Listas Desplegables'!K76","v":0},{"$f":"'Listas Desplegables'!L76","v":0},{"$f":"'Listas Desplegables'!M76","v":"Trazabilidad"},{"$f":"'Listas Desplegables'!N76","v":0},{"$f":"'Listas Desplegables'!O76","v":0},{"$f":"'Listas Desplegables'!P76","v":0}]
[{"$f":"'Listas Desplegables'!A77","v":0},{"$f":"'Listas Desplegables'!B77","v":0},{"$f":"'Listas Desplegables'!C77","v":0},{"$f":"'Listas Desplegables'!D77","v":0},{"$f":"'Listas Desplegables'!E77","v":0},{"$f":"'Listas Desplegables'!F77","v":"Mis.4.5 Coordinación de la ejecución de la estrategia de monitoreo, seguimiento y control al uso de los recursos del Sistema General de Participaciones"},{"$f":"'Listas Desplegables'!G77","v":"Entidades Territoriales"},{"$f":"'Listas Desplegables'!H77","v":"Mis.4.5 Coordinación de la ejecución de la estrategia de monitoreo, seguimiento y control al uso de los recursos del Sistema General de Participaciones"},{"$f":"'Listas Desplegables'!I77","v":"Entidades Territoriales"},{"$f":"'Listas Desplegables'!J77","v":0},{"$f":"'Listas Desplegables'!K77","v":0},{"$f":"'Listas Desplegables'!L77","v":0},{"$f":"'Listas Desplegables'!M77","v":"U.R.F."},{"$f":"'Listas Desplegables'!N77","v":0},{"$f":"'Listas Desplegables'!O77","v":0},{"$f":"'Listas Desplegables'!P77","v":0}]
[{"$f":"'Listas Desplegables'!A78","v":0},{"$f":"'Listas Desplegables'!B78","v":0},{"$f":"'Listas Desplegables'!C78","v":0},{"$f":"'Listas Desplegables'!D78","v":0},{"$f":"'Listas Desplegables'!E78","v":0},{"$f":"'Listas Desplegables'!F78","v":"Mis.4.6 Apoyo al Saneamiento Financiero Pensional de Entidades Estatales"},{"$f":"'Listas Desplegables'!G78","v":"Exfuncionarios del MHCP"},{"$f":"'Listas Desplegables'!H78","v":"Mis.4.6 Apoyo al Saneamiento Financiero Pensional de Entidades Estatales"},{"$f":"'Listas Desplegables'!I78","v":"Exfuncionarios del MHCP"},{"$f":"'Listas Desplegables'!J78","v":0},{"$f":"'Listas Desplegables'!K78","v":0},{"$f":"'Listas Desplegables'!L78","v":0},{"$f":"'Listas Desplegables'!M78","v":"Valoración de Inversiones - AVI"},{"$f":"'Listas Desplegables'!N78","v":0},{"$f":"'Listas Desplegables'!O78","v":0},{"$f":"'Listas Desplegables'!P78","v":0}]
[{"$f":"'Listas Desplegables'!A79","v":0},{"$f":"'Listas Desplegables'!B79","v":0},{"$f":"'Listas Desplegables'!C79","v":0},{"$f":"'Listas Desplegables'!D79","v":0},{"$f":"'Listas Desplegables'!E79","v":0},{"$f":"'Listas Desplegables'!F79","v":"Mis.4.8 Viabilidad, modificación, monitoreo, seguimiento y evaluación de los Programas de Saneamiento Fiscal y Financiero de las Empresas Sociales del Estado "},{"$f":"'Listas Desplegables'!G79","v":"FEDESARROLLO"},{"$f":"'Listas Desplegables'!H79","v":"Mis.4.8 Viabilidad, modificación, monitoreo, seguimiento y evaluación de los Programas de Saneamiento Fiscal y Financiero de las Empresas Sociales del Estado "},{"$f":"'Listas Desplegables'!I79","v":"FEDESARROLLO"},{"$f":"'Listas Desplegables'!J79","v":0},{"$f":"'Listas Desplegables'!K79","v":0},{"$f":"'Listas Desplegables'!L79","v":0},{"$f":"'Listas Desplegables'!M79","v":"Victimas"},{"$f":"'Listas Desplegables'!N79","v":0},{"$f":"'Listas Desplegables'!O79","v":0},{"$f":"'Listas Desplegables'!P79","v":0}]
[{"$f":"'Listas Desplegables'!A80","v":0},{"$f":"'Listas Desplegables'!B80","v":0},{"$f":"'Listas Desplegables'!C80","v":0},{"$f":"'Listas Desplegables'!D80","v":0},{"$f":"'Listas Desplegables'!E80","v":0},{"$f":"'Listas Desplegables'!F80","v":"Mis.4.9 Participación en los Órganos Colegiados de Administración y Decisión del Sistema General de Regalías"},{"$f":"'Listas Desplegables'!G80","v":"Fiduprevisora"},{"$f":"'Listas Desplegables'!H80","v":"Mis.4.9 Participación en los Órganos Colegiados de Administración y Decisión del Sistema General de Regalías"},{"$f":"'Listas Desplegables'!I80","v":"Fiduprevisora"},{"$f":"'Listas Desplegables'!J80","v":0},{"$f":"'Listas Desplegables'!K80","v":0},{"$f":"'Listas Desplegables'!L80","v":0},{"$f":"'Listas Desplegables'!M80","v":0},{"$f":"'Listas Desplegables'!N80","v":0},{"$f":"'Listas Desplegables'!O80","v":0},{"$f":"'Listas Desplegables'!P80","v":0}]
[{"$f":"'Listas Desplegables'!A81","v":0},{"$f":"'Listas Desplegables'!B81","v":0},{"$f":"'Listas Desplegables'!C81","v":0},{"$f":"'Listas Desplegables'!D81","v":0},{"$f":"'Listas Desplegables'!E81","v":0},{"$f":"'Listas Desplegables'!F81","v":"Mis.5.1 Expedición Normativa y Emisión de Conceptos"},{"$f":"'Listas Desplegables'!G81","v":"Financiera de Desarrollo Territorial  - FINDETER"},{"$f":"'Listas Desplegables'!H81","v":"Mis.5.1 Expedición Normativa y Emisión de Conceptos"},{"$f":"'Listas Desplegables'!I81","v":"Financiera de Desarrollo Territorial  - FINDETER"},{"$f":"'Listas Desplegables'!J81","v":0},{"$f":"'Listas Desplegables'!K81","v":0},{"$f":"'Listas Desplegables'!L81","v":0},{"$f":"'Listas Desplegables'!M81","v":0},{"$f":"'Listas Desplegables'!N81","v":0},{"$f":"'Listas Desplegables'!O81","v":0},{"$f":"'Listas Desplegables'!P81","v":0}]
[{"$f":"'Listas Desplegables'!A82","v":0},{"$f":"'Listas Desplegables'!B82","v":0},{"$f":"'Listas Desplegables'!C82","v":0},{"$f":"'Listas Desplegables'!D82","v":0},{"$f":"'Listas Desplegables'!E82","v":0},{"$f":"'Listas Desplegables'!F82","v":"Mis.5.2 Coordinación y Seguimiento a los Asuntos Legislativos"},{"$f":"'Listas Desplegables'!G82","v":"Fiscalía General de la Nación"},{"$f":"'Listas Desplegables'!H82","v":"Mis.5.2 Coordinación y Seguimiento a los Asuntos Legislativos"},{"$f":"'Listas Desplegables'!I82","v":"Fiscalía General de la Nación"},{"$f":"'Listas Desplegables'!J82","v":0},{"$f":"'Listas Desplegables'!K82","v":0},{"$f":"'Listas Desplegables'!L82","v":0},{"$f":"'Listas Desplegables'!M82","v":0},{"$f":"'Listas Desplegables'!N82","v":0},{"$f":"'Listas Desplegables'!O82","v":0},{"$f":"'Listas Desplegables'!P82","v":0}]
[{"$f":"'Listas Desplegables'!A83","v":0},{"$f":"'Listas Desplegables'!B83","v":0},{"$f":"'Listas Desplegables'!C83","v":0},{"$f":"'Listas Desplegables'!D83","v":0},{"$f":"'Listas Desplegables'!E83","v":0},{"$f":"'Listas Desplegables'!F83","v":"Apo.1.3 Gobierno y Gestión TIC"},{"$f":"'Listas Desplegables'!G83","v":"Fondo de Garantías de Instituciones Financieras  - FOGAFIN"},{"$f":"'Listas Desplegables'!H83","v":"Apo.1.3 Gobierno y Gestión TIC"},{"$f":"'Listas Desplegables'!I83","v":"Fondo de Garantías de Instituciones Financieras  - FOGAFIN"},{"$f":"'Listas Desplegables'!J83","v":0},{"$f":"'Listas Desplegables'!K83","v":0},{"$f":"'Listas Desplegables'!L83","v":0},{"$f":"'Listas Desplegables'!M83","v":0},{"$f":"'Listas Desplegables'!N83","v":0},{"$f":"'Listas Desplegables'!O83","v":0},{"$f":"'Listas Desplegables'!P83","v":0}]
[{"$f":"'Listas Desplegables'!A84","v":0},{"$f":"'Listas Desplegables'!B84","v":0},{"$f":"'Listas Desplegables'!C84","v":0},{"$f":"'Listas Desplegables'!D84","v":0},{"$f":"'Listas Desplegables'!E84","v":0},{"$f":"'Listas Desplegables'!F84","v":"Apo.1.4 Gestión de Información"},{"$f":"'Listas Desplegables'!G84","v":"Fondo Financiero de Proyectos de Desarrollo - FONADE"},{"$f":"'Listas Desplegables'!H84","v":"Apo.1.4 Gestión de Información"},{"$f":"'Listas Desplegables'!I84","v":"Fondo Financiero de Proyectos de Desarrollo - FONADE"},{"$f":"'Listas Desplegables'!J84","v":0},{"$f":"'Listas Desplegables'!K84","v":0},{"$f":"'Listas Desplegables'!L84","v":0},{"$f":"'Listas Desplegables'!M84","v":0},{"$f":"'Listas Desplegables'!N84","v":0},{"$f":"'Listas Desplegables'!O84","v":0},{"$f":"'Listas Desplegables'!P84","v":0}]
[{"$f":"'Listas Desplegables'!A85","v":0},{"$f":"'Listas Desplegables'!B85","v":0},{"$f":"'Listas Desplegables'!C85","v":0},{"$f":"'Listas Desplegables'!D85","v":0},{"$f":"'Listas Desplegables'!E85","v":0},{"$f":"'Listas Desplegables'!F85","v":"Apo.2.1 Administración de Personal"},{"$f":"'Listas Desplegables'!G85","v":"Fondo Nacional de Garantías - FNG"},{"$f":"'Listas Desplegables'!H85","v":"Apo.2.1 Administración de Personal"},{"$f":"'Listas Desplegables'!I85","v":"Fondo Nacional de Garantías - FNG"},{"$f":"'Listas Desplegables'!J85","v":0},{"$f":"'Listas Desplegables'!K85","v":0},{"$f":"'Listas Desplegables'!L85","v":0},{"$f":"'Listas Desplegables'!M85","v":0},{"$f":"'Listas Desplegables'!N85","v":0},{"$f":"'Listas Desplegables'!O85","v":0},{"$f":"'Listas Desplegables'!P85","v":0}]
[{"$f":"'Listas Desplegables'!A86","v":0},{"$f":"'Listas Desplegables'!B86","v":0},{"$f":"'Listas Desplegables'!C86","v":0},{"$f":"'Listas Desplegables'!D86","v":0},{"$f":"'Listas Desplegables'!E86","v":0},{"$f":"'Listas Desplegables'!F86","v":"Apo.2.2 Desarrollo de Personal"},{"$f":"'Listas Desplegables'!G86","v":"Fondo Nacional del Ahorro "},{"$f":"'Listas Desplegables'!H86","v":"Apo.2.2 Desarrollo de Personal"},{"$f":"'Listas Desplegables'!I86","v":"Fondo Nacional del Ahorro "},{"$f":"'Listas Desplegables'!J86","v":0},{"$f":"'Listas Desplegables'!K86","v":0},{"$f":"'Listas Desplegables'!L86","v":0},{"$f":"'Listas Desplegables'!M86","v":0},{"$f":"'Listas Desplegables'!N86","v":0},{"$f":"'Listas Desplegables'!O86","v":0},{"$f":"'Listas Desplegables'!P86","v":0}]
[{"$f":"'Listas Desplegables'!A87","v":0},{"$f":"'Listas Desplegables'!B87","v":0},{"$f":"'Listas Desplegables'!C87","v":0},{"$f":"'Listas Desplegables'!D87","v":0},{"$f":"'Listas Desplegables'!E87","v":0},{"$f":"'Listas Desplegables'!F87","v":"Apo.2.3 Gestión de Comisión Interior o Exterior"},{"$f":"'Listas Desplegables'!G87","v":"Fondos de Empleados"},{"$f":"'Listas Desplegables'!H87","v":"Apo.2.3 Gestión de Comisión Interior o Exterior"},{"$f":"'Listas Desplegables'!I87","v":"Fondos de Empleados"},{"$f":"'Listas Desplegables'!J87","v":0},{"$f":"'Listas Desplegables'!K87","v":0},{"$f":"'Listas Desplegables'!L87","v":0},{"$f":"'Listas Desplegables'!M87","v":0},{"$f":"'Listas Desplegables'!N87","v":0},{"$f":"'Listas Desplegables'!O87","v":0},{"$f":"'Listas Desplegables'!P87","v":0}]
[{"$f":"'Listas Desplegables'!A88","v":0},{"$f":"'Listas Desplegables'!B88","v":0},{"$f":"'Listas Desplegables'!C88","v":0},{"$f":"'Listas Desplegables'!D88","v":0},{"$f":"'Listas Desplegables'!E88","v":0},{"$f":"'Listas Desplegables'!F88","v":"Apo.3 Apoyo a la Gestión Financiera"},{"$f":"'Listas Desplegables'!G88","v":"Fondos Privados de Cesantías"},{"$f":"'Listas Desplegables'!H88","v":"Apo.3 Apoyo a la Gestión Financiera"},{"$f":"'Listas Desplegables'!I88","v":"Fondos Privados de Cesantías"},{"$f":"'Listas Desplegables'!J88","v":0},{"$f":"'Listas Desplegables'!K88","v":0},{"$f":"'Listas Desplegables'!L88","v":0},{"$f":"'Listas Desplegables'!M88","v":0},{"$f":"'Listas Desplegables'!N88","v":0},{"$f":"'Listas Desplegables'!O88","v":0},{"$f":"'Listas Desplegables'!P88","v":0}]
[{"$f":"'Listas Desplegables'!A89","v":0},{"$f":"'Listas Desplegables'!B89","v":0},{"$f":"'Listas Desplegables'!C89","v":0},{"$f":"'Listas Desplegables'!D89","v":0},{"$f":"'Listas Desplegables'!E89","v":0},{"$f":"'Listas Desplegables'!F89","v":"Apo.4.1 Adquisición de Bienes y Servicios"},{"$f":"'Listas Desplegables'!G89","v":"FONPRECON"},{"$f":"'Listas Desplegables'!H89","v":"Apo.4.1 Adquisición de Bienes y Servicios"},{"$f":"'Listas Desplegables'!I89","v":"FONPRECON"},{"$f":"'Listas Desplegables'!J89","v":0},{"$f":"'Listas Desplegables'!K89","v":0},{"$f":"'Listas Desplegables'!L89","v":0},{"$f":"'Listas Desplegables'!M89","v":0},{"$f":"'Listas Desplegables'!N89","v":0},{"$f":"'Listas Desplegables'!O89","v":0},{"$f":"'Listas Desplegables'!P89","v":0}]
[{"$f":"'Listas Desplegables'!A90","v":0},{"$f":"'Listas Desplegables'!B90","v":0},{"$f":"'Listas Desplegables'!C90","v":0},{"$f":"'Listas Desplegables'!D90","v":0},{"$f":"'Listas Desplegables'!E90","v":0},{"$f":"'Listas Desplegables'!F90","v":"Apo.4.2 Administración de Bienes y Servicios"},{"$f":"'Listas Desplegables'!G90","v":"Gremios ganaderos, agrícola, comercio, transporte, industria, construcción"},{"$f":"'Listas Desplegables'!H90","v":"Apo.4.2 Administración de Bienes y Servicios"},{"$f":"'Listas Desplegables'!I90","v":"Gremios ganaderos, agrícola, comercio, transporte, industria, construcción"},{"$f":"'Listas Desplegables'!J90","v":0},{"$f":"'Listas Desplegables'!K90","v":0},{"$f":"'Listas Desplegables'!L90","v":0},{"$f":"'Listas Desplegables'!M90","v":0},{"$f":"'Listas Desplegables'!N90","v":0},{"$f":"'Listas Desplegables'!O90","v":0},{"$f":"'Listas Desplegables'!P90","v":0}]
[{"$f":"'Listas Desplegables'!A91","v":0},{"$f":"'Listas Desplegables'!B91","v":0},{"$f":"'Listas Desplegables'!C91","v":0},{"$f":"'Listas Desplegables'!D91","v":0},{"$f":"'Listas Desplegables'!E91","v":0},{"$f":"'Listas Desplegables'!F91","v":"Apo.4.5 Gestión Ambiental "},{"$f":"'Listas Desplegables'!G91","v":"Gremios Petroleros"},{"$f":"'Listas Desplegables'!H91","v":"Apo.4.5 Gestión Ambiental "},{"$f":"'Listas Desplegables'!I91","v":"Gremios Petroleros"},{"$f":"'Listas Desplegables'!J91","v":0},{"$f":"'Listas Desplegables'!K91","v":0},{"$f":"'Listas Desplegables'!L91","v":0},{"$f":"'Listas Desplegables'!M91","v":0},{"$f":"'Listas Desplegables'!N91","v":0},{"$f":"'Listas Desplegables'!O91","v":0},{"$f":"'Listas Desplegables'!P91","v":0}]
[{"$f":"'Listas Desplegables'!A92","v":0},{"$f":"'Listas Desplegables'!B92","v":0},{"$f":"'Listas Desplegables'!C92","v":0},{"$f":"'Listas Desplegables'!D92","v":0},{"$f":"'Listas Desplegables'!E92","v":0},{"$f":"'Listas Desplegables'!F92","v":"Apo.5.1 Defensa Judicial, pago de sentencias y conciliaciones"},{"$f":"'Listas Desplegables'!G92","v":"Hospitales"},{"$f":"'Listas Desplegables'!H92","v":"Apo.5.1 Defensa Judicial, pago de sentencias y conciliaciones"},{"$f":"'Listas Desplegables'!I92","v":"Hospitales"},{"$f":"'Listas Desplegables'!J92","v":0},{"$f":"'Listas Desplegables'!K92","v":0},{"$f":"'Listas Desplegables'!L92","v":0},{"$f":"'Listas Desplegables'!M92","v":0},{"$f":"'Listas Desplegables'!N92","v":0},{"$f":"'Listas Desplegables'!O92","v":0},{"$f":"'Listas Desplegables'!P92","v":0}]
[{"$f":"'Listas Desplegables'!A93","v":0},{"$f":"'Listas Desplegables'!B93","v":0},{"$f":"'Listas Desplegables'!C93","v":0},{"$f":"'Listas Desplegables'!D93","v":0},{"$f":"'Listas Desplegables'!E93","v":0},{"$f":"'Listas Desplegables'!F93","v":"Apo.5.3 Cartera"},{"$f":"'Listas Desplegables'!G93","v":"Imprenta Nacional de la República"},{"$f":"'Listas Desplegables'!H93","v":"Apo.5.3 Cartera"},{"$f":"'Listas Desplegables'!I93","v":"Imprenta Nacional de la República"},{"$f":"'Listas Desplegables'!J93","v":0},{"$f":"'Listas Desplegables'!K93","v":0},{"$f":"'Listas Desplegables'!L93","v":0},{"$f":"'Listas Desplegables'!M93","v":0},{"$f":"'Listas Desplegables'!N93","v":0},{"$f":"'Listas Desplegables'!O93","v":0},{"$f":"'Listas Desplegables'!P93","v":0}]
[{"$f":"'Listas Desplegables'!A94","v":0},{"$f":"'Listas Desplegables'!B94","v":0},{"$f":"'Listas Desplegables'!C94","v":0},{"$f":"'Listas Desplegables'!D94","v":0},{"$f":"'Listas Desplegables'!E94","v":0},{"$f":"'Listas Desplegables'!F94","v":"Apo.6.1 Atención al ciudadano e instituciones"},{"$f":"'Listas Desplegables'!G94","v":"Instituciones Financieras Administradoras de Portafolios"},{"$f":"'Listas Desplegables'!H94","v":"Apo.6.1 Atención al ciudadano e instituciones"},{"$f":"'Listas Desplegables'!I94","v":"Instituciones Financieras Administradoras de Portafolios"},{"$f":"'Listas Desplegables'!J94","v":0},{"$f":"'Listas Desplegables'!K94","v":0},{"$f":"'Listas Desplegables'!L94","v":0},{"$f":"'Listas Desplegables'!M94","v":0},{"$f":"'Listas Desplegables'!N94","v":0},{"$f":"'Listas Desplegables'!O94","v":0},{"$f":"'Listas Desplegables'!P94","v":0}]
[{"$f":"'Listas Desplegables'!A95","v":0},{"$f":"'Listas Desplegables'!B95","v":0},{"$f":"'Listas Desplegables'!C95","v":0},{"$f":"'Listas Desplegables'!D95","v":0},{"$f":"'Listas Desplegables'!E95","v":0},{"$f":"'Listas Desplegables'!F95","v":"Apo.6.2 Atención a Derechos de Petición y Emisión de Conceptos Jurídicos"},{"$f":"'Listas Desplegables'!G95","v":"Instituciones Financieras en Liquidación"},{"$f":"'Listas Desplegables'!H95","v":"Apo.6.2 Atención a Derechos de Petición y Emisión de Conceptos Jurídicos"},{"$f":"'Listas Desplegables'!I95","v":"Instituciones Financieras en Liquidación"},{"$f":"'Listas Desplegables'!J95","v":0},{"$f":"'Listas Desplegables'!K95","v":0},{"$f":"'Listas Desplegables'!L95","v":0},{"$f":"'Listas Desplegables'!M95","v":0},{"$f":"'Listas Desplegables'!N95","v":0},{"$f":"'Listas Desplegables'!O95","v":0},{"$f":"'Listas Desplegables'!P95","v":0}]
[{"$f":"'Listas Desplegables'!A96","v":0},{"$f":"'Listas Desplegables'!B96","v":0},{"$f":"'Listas Desplegables'!C96","v":0},{"$f":"'Listas Desplegables'!D96","v":0},{"$f":"'Listas Desplegables'!E96","v":0},{"$f":"'Listas Desplegables'!F96","v":"Eva.1.1 Evaluación Independiente"},{"$f":"'Listas Desplegables'!G96","v":"Instituciones Financieras Internacionales"},{"$f":"'Listas Desplegables'!H96","v":"Eva.1.1 Evaluación Independiente"},{"$f":"'Listas Desplegables'!I96","v":"Instituciones Financieras Internacionales"},{"$f":"'Listas Desplegables'!J96","v":0},{"$f":"'Listas Desplegables'!K96","v":0},{"$f":"'Listas Desplegables'!L96","v":0},{"$f":"'Listas Desplegables'!M96","v":0},{"$f":"'Listas Desplegables'!N96","v":0},{"$f":"'Listas Desplegables'!O96","v":0},{"$f":"'Listas Desplegables'!P96","v":0}]
[{"$f":"'Listas Desplegables'!A97","v":0},{"$f":"'Listas Desplegables'!B97","v":0},{"$f":"'Listas Desplegables'!C97","v":0},{"$f":"'Listas Desplegables'!D97","v":0},{"$f":"'Listas Desplegables'!E97","v":0},{"$f":"'Listas Desplegables'!F97","v":"Eva.1.2 Control Disciplinario Interno"},{"$f":"'Listas Desplegables'!G97","v":"Instituciones Financieras Nacionales"},{"$f":"'Listas Desplegables'!H97","v":"Eva.1.2 Control Disciplinario Interno"},{"$f":"'Listas Desplegables'!I97","v":"Instituciones Financieras Nacionales"},{"$f":"'Listas Desplegables'!J97","v":0},{"$f":"'Listas Desplegables'!K97","v":0},{"$f":"'Listas Desplegables'!L97","v":0},{"$f":"'Listas Desplegables'!M97","v":0},{"$f":"'Listas Desplegables'!N97","v":0},{"$f":"'Listas Desplegables'!O97","v":0},{"$f":"'Listas Desplegables'!P97","v":0}]
[{"$f":"'Listas Desplegables'!A98","v":0},{"$f":"'Listas Desplegables'!B98","v":0},{"$f":"'Listas Desplegables'!C98","v":0},{"$f":"'Listas Desplegables'!D98","v":0},{"$f":"'Listas Desplegables'!E98","v":0},{"$f":"'Listas Desplegables'!F98","v":0},{"$f":"'Listas Desplegables'!G98","v":"Instituto Colombiano de Crédito Educativo y Estudios Técnicos en el Exterior — ICETEX"},{"$f":"'Listas Desplegables'!H98","v":0},{"$f":"'Listas Desplegables'!I98","v":"Instituto Colombiano de Crédito Educativo y Estudios Técnicos en el Exterior — ICETEX"},{"$f":"'Listas Desplegables'!J98","v":0},{"$f":"'Listas Desplegables'!K98","v":0},{"$f":"'Listas Desplegables'!L98","v":0},{"$f":"'Listas Desplegables'!M98","v":0},{"$f":"'Listas Desplegables'!N98","v":0},{"$f":"'Listas Desplegables'!O98","v":0},{"$f":"'Listas Desplegables'!P98","v":0}]
[{"$f":"'Listas Desplegables'!A99","v":0},{"$f":"'Listas Desplegables'!B99","v":0},{"$f":"'Listas Desplegables'!C99","v":0},{"$f":"'Listas Desplegables'!D99","v":0},{"$f":"'Listas Desplegables'!E99","v":0},{"$f":"'Listas Desplegables'!F99","v":0},{"$f":"'Listas Desplegables'!G99","v":"Instituto Colombiano de Desarrollo Rural - INCODER"},{"$f":"'Listas Desplegables'!H99","v":0},{"$f":"'Listas Desplegables'!I99","v":"Instituto Colombiano de Desarrollo Rural - INCODER"},{"$f":"'Listas Desplegables'!J99","v":0},{"$f":"'Listas Desplegables'!K99","v":0},{"$f":"'Listas Desplegables'!L99","v":0},{"$f":"'Listas Desplegables'!M99","v":0},{"$f":"'Listas Desplegables'!N99","v":0},{"$f":"'Listas Desplegables'!O99","v":0},{"$f":"'Listas Desplegables'!P99","v":0}]
[{"$f":"'Listas Desplegables'!A100","v":0},{"$f":"'Listas Desplegables'!B100","v":0},{"$f":"'Listas Desplegables'!C100","v":0},{"$f":"'Listas Desplegables'!D100","v":0},{"$f":"'Listas Desplegables'!E100","v":0},{"$f":"'Listas Desplegables'!F100","v":0},{"$f":"'Listas Desplegables'!G100","v":"Instituto Colombiano de Norma Técnicas y Certificación - INCONTEC"},{"$f":"'Listas Desplegables'!H100","v":0},{"$f":"'Listas Desplegables'!I100","v":"Instituto Colombiano de Norma Técnicas y Certificación - INCONTEC"},{"$f":"'Listas Desplegables'!J100","v":0},{"$f":"'Listas Desplegables'!K100","v":0},{"$f":"'Listas Desplegables'!L100","v":0},{"$f":"'Listas Desplegables'!M100","v":0},{"$f":"'Listas Desplegables'!N100","v":0},{"$f":"'Listas Desplegables'!O100","v":0},{"$f":"'Listas Desplegables'!P100","v":0}]
[{"$f":"'Listas Desplegables'!A101","v":0},{"$f":"'Listas Desplegables'!B101","v":0},{"$f":"'Listas Desplegables'!C101","v":0},{"$f":"'Listas Desplegables'!D101","v":0},{"$f":"'Listas Desplegables'!E101","v":0},{"$f":"'Listas Desplegables'!F101","v":0},{"$f":"'Listas Desplegables'!G101","v":"Instituto Colombiano para la Evaluación de la Educación - ICFES"},{"$f":"'Listas Desplegables'!H101","v":0},{"$f":"'Listas Desplegables'!I101","v":"Instituto Colombiano para la Evaluación de la Educación - ICFES"},{"$f":"'Listas Desplegables'!J101","v":0},{"$f":"'Listas Desplegables'!K101","v":0},{"$f":"'Listas Desplegables'!L101","v":0},{"$f":"'Listas Desplegables'!M101","v":0},{"$f":"'Listas Desplegables'!N101","v":0},{"$f":"'Listas Desplegables'!O101","v":0},{"$f":"'Listas Desplegables'!P101","v":0}]
[{"$f":"'Listas Desplegables'!A102","v":0},{"$f":"'Listas Desplegables'!B102","v":0},{"$f":"'Listas Desplegables'!C102","v":0},{"$f":"'Listas Desplegables'!D102","v":0},{"$f":"'Listas Desplegables'!E102","v":0},{"$f":"'Listas Desplegables'!F102","v":0},{"$f":"'Listas Desplegables'!G102","v":"Instituto Nacional de Vías - INVIAS"},{"$f":"'Listas Desplegables'!H102","v":0},{"$f":"'Listas Desplegables'!I102","v":"Instituto Nacional de Vías - INVIAS"},{"$f":"'Listas Desplegables'!J102","v":0},{"$f":"'Listas Desplegables'!K102","v":0},{"$f":"'Listas Desplegables'!L102","v":0},{"$f":"'Listas Desplegables'!M102","v":0},{"$f":"'Listas Desplegables'!N102","v":0},{"$f":"'Listas Desplegables'!O102","v":0},{"$f":"'Listas Desplegables'!P102","v":0}]
[{"$f":"'Listas Desplegables'!A103","v":0},{"$f":"'Listas Desplegables'!B103","v":0},{"$f":"'Listas Desplegables'!C103","v":0},{"$f":"'Listas Desplegables'!D103","v":0},{"$f":"'Listas Desplegables'!E103","v":0},{"$f":"'Listas Desplegables'!F103","v":0},{"$f":"'Listas Desplegables'!G103","v":"Interventor del Contrato"},{"$f":"'Listas Desplegables'!H103","v":0},{"$f":"'Listas Desplegables'!I103","v":"Interventor del Contrato"},{"$f":"'Listas Desplegables'!J103","v":0},{"$f":"'Listas Desplegables'!K103","v":0},{"$f":"'Listas Desplegables'!L103","v":0},{"$f":"'Listas Desplegables'!M103","v":0},{"$f":"'Listas Desplegables'!N103","v":0},{"$f":"'Listas Desplegables'!O103","v":0},{"$f":"'Listas Desplegables'!P103","v":0}]
[{"$f":"'Listas Desplegables'!A104","v":0},{"$f":"'Listas Desplegables'!B104","v":0},{"$f":"'Listas Desplegables'!C104","v":0},{"$f":"'Listas Desplegables'!D104","v":0},{"$f":"'Listas Desplegables'!E104","v":0},{"$f":"'Listas Desplegables'!F104","v":0},{"$f":"'Listas Desplegables'!G104","v":"Inversionistas"},{"$f":"'Listas Desplegables'!H104","v":0},{"$f":"'Listas Desplegables'!I104","v":"Inversionistas"},{"$f":"'Listas Desplegables'!J104","v":0},{"$f":"'Listas Desplegables'!K104","v":0},{"$f":"'Listas Desplegables'!L104","v":0},{"$f":"'Listas Desplegables'!M104","v":0},{"$f":"'Listas Desplegables'!N104","v":0},{"$f":"'Listas Desplegables'!O104","v":0},{"$f":"'Listas Desplegables'!P104","v":0}]
[{"$f":"'Listas Desplegables'!A105","v":0},{"$f":"'Listas Desplegables'!B105","v":0},{"$f":"'Listas Desplegables'!C105","v":0},{"$f":"'Listas Desplegables'!D105","v":0},{"$f":"'Listas Desplegables'!E105","v":0},{"$f":"'Listas Desplegables'!F105","v":0},{"$f":"'Listas Desplegables'!G105","v":"ISA"},{"$f":"'Listas Desplegables'!H105","v":0},{"$f":"'Listas Desplegables'!I105","v":"ISA"},{"$f":"'Listas Desplegables'!J105","v":0},{"$f":"'Listas Desplegables'!K105","v":0},{"$f":"'Listas Desplegables'!L105","v":0},{"$f":"'Listas Desplegables'!M105","v":0},{"$f":"'Listas Desplegables'!N105","v":0},{"$f":"'Listas Desplegables'!O105","v":0},{"$f":"'Listas Desplegables'!P105","v":0}]
[{"$f":"'Listas Desplegables'!A106","v":0},{"$f":"'Listas Desplegables'!B106","v":0},{"$f":"'Listas Desplegables'!C106","v":0},{"$f":"'Listas Desplegables'!D106","v":0},{"$f":"'Listas Desplegables'!E106","v":0},{"$f":"'Listas Desplegables'!F106","v":0},{"$f":"'Listas Desplegables'!G106","v":"Juntas de acción comunal"},{"$f":"'Listas Desplegables'!H106","v":0},{"$f":"'Listas Desplegables'!I106","v":"Juntas de acción comunal"},{"$f":"'Listas Desplegables'!J106","v":0},{"$f":"'Listas Desplegables'!K106","v":0},{"$f":"'Listas Desplegables'!L106","v":0},{"$f":"'Listas Desplegables'!M106","v":0},{"$f":"'Listas Desplegables'!N106","v":0},{"$f":"'Listas Desplegables'!O106","v":0},{"$f":"'Listas Desplegables'!P106","v":0}]
[{"$f":"'Listas Desplegables'!A107","v":0},{"$f":"'Listas Desplegables'!B107","v":0},{"$f":"'Listas Desplegables'!C107","v":0},{"$f":"'Listas Desplegables'!D107","v":0},{"$f":"'Listas Desplegables'!E107","v":0},{"$f":"'Listas Desplegables'!F107","v":0},{"$f":"'Listas Desplegables'!G107","v":"Juzgados "},{"$f":"'Listas Desplegables'!H107","v":0},{"$f":"'Listas Desplegables'!I107","v":"Juzgados "},{"$f":"'Listas Desplegables'!J107","v":0},{"$f":"'Listas Desplegables'!K107","v":0},{"$f":"'Listas Desplegables'!L107","v":0},{"$f":"'Listas Desplegables'!M107","v":0},{"$f":"'Listas Desplegables'!N107","v":0},{"$f":"'Listas Desplegables'!O107","v":0},{"$f":"'Listas Desplegables'!P107","v":0}]
[{"$f":"'Listas Desplegables'!A108","v":0},{"$f":"'Listas Desplegables'!B108","v":0},{"$f":"'Listas Desplegables'!C108","v":0},{"$f":"'Listas Desplegables'!D108","v":0},{"$f":"'Listas Desplegables'!E108","v":0},{"$f":"'Listas Desplegables'!F108","v":0},{"$f":"'Listas Desplegables'!G108","v":"Medios de comunicación"},{"$f":"'Listas Desplegables'!H108","v":0},{"$f":"'Listas Desplegables'!I108","v":"Medios de comunicación"},{"$f":"'Listas Desplegables'!J108","v":0},{"$f":"'Listas Desplegables'!K108","v":0},{"$f":"'Listas Desplegables'!L108","v":0},{"$f":"'Listas Desplegables'!M108","v":0},{"$f":"'Listas Desplegables'!N108","v":0},{"$f":"'Listas Desplegables'!O108","v":0},{"$f":"'Listas Desplegables'!P108","v":0}]
[{"$f":"'Listas Desplegables'!A109","v":0},{"$f":"'Listas Desplegables'!B109","v":0},{"$f":"'Listas Desplegables'!C109","v":0},{"$f":"'Listas Desplegables'!D109","v":0},{"$f":"'Listas Desplegables'!E109","v":0},{"$f":"'Listas Desplegables'!F109","v":0},{"$f":"'Listas Desplegables'!G109","v":"Migración Colombia"},{"$f":"'Listas Desplegables'!H109","v":0},{"$f":"'Listas Desplegables'!I109","v":"Migración Colombia"},{"$f":"'Listas Desplegables'!J109","v":0},{"$f":"'Listas Desplegables'!K109","v":0},{"$f":"'Listas Desplegables'!L109","v":0},{"$f":"'Listas Desplegables'!M109","v":0},{"$f":"'Listas Desplegables'!N109","v":0},{"$f":"'Listas Desplegables'!O109","v":0},{"$f":"'Listas Desplegables'!P109","v":0}]
[{"$f":"'Listas Desplegables'!A110","v":0},{"$f":"'Listas Desplegables'!B110","v":0},{"$f":"'Listas Desplegables'!C110","v":0},{"$f":"'Listas Desplegables'!D110","v":0},{"$f":"'Listas Desplegables'!E110","v":0},{"$f":"'Listas Desplegables'!F110","v":0},{"$f":"'Listas Desplegables'!G110","v":"Ministerio de Comercio, Industria y Turismo"},{"$f":"'Listas Desplegables'!H110","v":0},{"$f":"'Listas Desplegables'!I110","v":"Ministerio de Comercio, Industria y Turismo"},{"$f":"'Listas Desplegables'!J110","v":0},{"$f":"'Listas Desplegables'!K110","v":0},{"$f":"'Listas Desplegables'!L110","v":0},{"$f":"'Listas Desplegables'!M110","v":0},{"$f":"'Listas Desplegables'!N110","v":0},{"$f":"'Listas Desplegables'!O110","v":0},{"$f":"'Listas Desplegables'!P110","v":0}]
[{"$f":"'Listas Desplegables'!A111","v":0},{"$f":"'Listas Desplegables'!B111","v":0},{"$f":"'Listas Desplegables'!C111","v":0},{"$f":"'Listas Desplegables'!D111","v":0},{"$f":"'Listas Desplegables'!E111","v":0},{"$f":"'Listas Desplegables'!F111","v":0},{"$f":"'Listas Desplegables'!G111","v":"Ministerio de Educación Nacional"},{"$f":"'Listas Desplegables'!H111","v":0},{"$f":"'Listas Desplegables'!I111","v":"Ministerio de Educación Nacional"},{"$f":"'Listas Desplegables'!J111","v":0},{"$f":"'Listas Desplegables'!K111","v":0},{"$f":"'Listas Desplegables'!L111","v":0},{"$f":"'Listas Desplegables'!M111","v":0},{"$f":"'Listas Desplegables'!N111","v":0},{"$f":"'Listas Desplegables'!O111","v":0},{"$f":"'Listas Desplegables'!P111","v":0}]
[{"$f":"'Listas Desplegables'!A112","v":0},{"$f":"'Listas Desplegables'!B112","v":0},{"$f":"'Listas Desplegables'!C112","v":0},{"$f":"'Listas Desplegables'!D112","v":0},{"$f":"'Listas Desplegables'!E112","v":0},{"$f":"'Listas Desplegables'!F112","v":0},{"$f":"'Listas Desplegables'!G112","v":"Ministerio de Medio Ambiente y Desarrollo Sostenible"},{"$f":"'Listas Desplegables'!H112","v":0},{"$f":"'Listas Desplegables'!I112","v":"Ministerio de Medio Ambiente y Desarrollo Sostenible"},{"$f":"'Listas Desplegables'!J112","v":0},{"$f":"'Listas Desplegables'!K112","v":0},{"$f":"'Listas Desplegables'!L112","v":0},{"$f":"'Listas Desplegables'!M112","v":0},{"$f":"'Listas Desplegables'!N112","v":0},{"$f":"'Listas Desplegables'!O112","v":0},{"$f":"'Listas Desplegables'!P112","v":0}]
[{"$f":"'Listas Desplegables'!A113","v":0},{"$f":"'Listas Desplegables'!B113","v":0},{"$f":"'Listas Desplegables'!C113","v":0},{"$f":"'Listas Desplegables'!D113","v":0},{"$f":"'Listas Desplegables'!E113","v":0},{"$f":"'Listas Desplegables'!F113","v":0},{"$f":"'Listas Desplegables'!G113","v":"Ministerio de Minas y Energía"},{"$f":"'Listas Desplegables'!H113","v":0},{"$f":"'Listas Desplegables'!I113","v":"Ministerio de Minas y Energía"},{"$f":"'Listas Desplegables'!J113","v":0},{"$f":"'Listas Desplegables'!K113","v":0},{"$f":"'Listas Desplegables'!L113","v":0},{"$f":"'Listas Desplegables'!M113","v":0},{"$f":"'Listas Desplegables'!N113","v":0},{"$f":"'Listas Desplegables'!O113","v":0},{"$f":"'Listas Desplegables'!P113","v":0}]
[{"$f":"'Listas Desplegables'!A114","v":0},{"$f":"'Listas Desplegables'!B114","v":0},{"$f":"'Listas Desplegables'!C114","v":0},{"$f":"'Listas Desplegables'!D114","v":0},{"$f":"'Listas Desplegables'!E114","v":0},{"$f":"'Listas Desplegables'!F114","v":0},{"$f":"'Listas Desplegables'!G114","v":"Ministerio de Salud y Protección Social"},{"$f":"'Listas Desplegables'!H114","v":0},{"$f":"'Listas Desplegables'!I114","v":"Ministerio de Salud y Protección Social"},{"$f":"'Listas Desplegables'!J114","v":0},{"$f":"'Listas Desplegables'!K114","v":0},{"$f":"'Listas Desplegables'!L114","v":0},{"$f":"'Listas Desplegables'!M114","v":0},{"$f":"'Listas Desplegables'!N114","v":0},{"$f":"'Listas Desplegables'!O114","v":0},{"$f":"'Listas Desplegables'!P114","v":0}]
[{"$f":"'Listas Desplegables'!A115","v":0},{"$f":"'Listas Desplegables'!B115","v":0},{"$f":"'Listas Desplegables'!C115","v":0},{"$f":"'Listas Desplegables'!D115","v":0},{"$f":"'Listas Desplegables'!E115","v":0},{"$f":"'Listas Desplegables'!F115","v":0},{"$f":"'Listas Desplegables'!G115","v":"Ministerio de Tecnologías de la Información y las Comunicaciones "},{"$f":"'Listas Desplegables'!H115","v":0},{"$f":"'Listas Desplegables'!I115","v":"Ministerio de Tecnologías de la Información y las Comunicaciones "},{"$f":"'Listas Desplegables'!J115","v":0},{"$f":"'Listas Desplegables'!K115","v":0},{"$f":"'Listas Desplegables'!L115","v":0},{"$f":"'Listas Desplegables'!M115","v":0},{"$f":"'Listas Desplegables'!N115","v":0},{"$f":"'Listas Desplegables'!O115","v":0},{"$f":"'Listas Desplegables'!P115","v":0}]
[{"$f":"'Listas Desplegables'!A116","v":0},{"$f":"'Listas Desplegables'!B116","v":0},{"$f":"'Listas Desplegables'!C116","v":0},{"$f":"'Listas Desplegables'!D116","v":0},{"$f":"'Listas Desplegables'!E116","v":0},{"$f":"'Listas Desplegables'!F116","v":0},{"$f":"'Listas Desplegables'!G116","v":"Ministerio de Transporte"},{"$f":"'Listas Desplegables'!H116","v":0},{"$f":"'Listas Desplegables'!I116","v":"Ministerio de Transporte"},{"$f":"'Listas Desplegables'!J116","v":0},{"$f":"'Listas Desplegables'!K116","v":0},{"$f":"'Listas Desplegables'!L116","v":0},{"$f":"'Listas Desplegables'!M116","v":0},{"$f":"'Listas Desplegables'!N116","v":0},{"$f":"'Listas Desplegables'!O116","v":0},{"$f":"'Listas Desplegables'!P116","v":0}]
[{"$f":"'Listas Desplegables'!A117","v":0},{"$f":"'Listas Desplegables'!B117","v":0},{"$f":"'Listas Desplegables'!C117","v":0},{"$f":"'Listas Desplegables'!D117","v":0},{"$f":"'Listas Desplegables'!E117","v":0},{"$f":"'Listas Desplegables'!F117","v":0},{"$f":"'Listas Desplegables'!G117","v":"Ministerio del Trabajo"},{"$f":"'Listas Desplegables'!H117","v":0},{"$f":"'Listas Desplegables'!I117","v":"Ministerio del Trabajo"},{"$f":"'Listas Desplegables'!J117","v":0},{"$f":"'Listas Desplegables'!K117","v":0},{"$f":"'Listas Desplegables'!L117","v":0},{"$f":"'Listas Desplegables'!M117","v":0},{"$f":"'Listas Desplegables'!N117","v":0},{"$f":"'Listas Desplegables'!O117","v":0},{"$f":"'Listas Desplegables'!P117","v":0}]
[{"$f":"'Listas Desplegables'!A118","v":0},{"$f":"'Listas Desplegables'!B118","v":0},{"$f":"'Listas Desplegables'!C118","v":0},{"$f":"'Listas Desplegables'!D118","v":0},{"$f":"'Listas Desplegables'!E118","v":0},{"$f":"'Listas Desplegables'!F118","v":0},{"$f":"'Listas Desplegables'!G118","v":"Oferentes"},{"$f":"'Listas Desplegables'!H118","v":0},{"$f":"'Listas Desplegables'!I118","v":"Oferentes"},{"$f":"'Listas Desplegables'!J118","v":0},{"$f":"'Listas Desplegables'!K118","v":0},{"$f":"'Listas Desplegables'!L118","v":0},{"$f":"'Listas Desplegables'!M118","v":0},{"$f":"'Listas Desplegables'!N118","v":0},{"$f":"'Listas Desplegables'!O118","v":0},{"$f":"'Listas Desplegables'!P118","v":0}]
[{"$f":"'Listas Desplegables'!A119","v":0},{"$f":"'Listas Desplegables'!B119","v":0},{"$f":"'Listas Desplegables'!C119","v":0},{"$f":"'Listas Desplegables'!D119","v":0},{"$f":"'Listas Desplegables'!E119","v":0},{"$f":"'Listas Desplegables'!F119","v":0},{"$f":"'Listas Desplegables'!G119","v":"Organismos Internacionales"},{"$f":"'Listas Desplegables'!H119","v":0},{"$f":"'Listas Desplegables'!I119","v":"Organismos Internacionales"},{"$f":"'Listas Desplegables'!J119","v":0},{"$f":"'Listas Desplegables'!K119","v":0},{"$f":"'Listas Desplegables'!L119","v":0},{"$f":"'Listas Desplegables'!M119","v":0},{"$f":"'Listas Desplegables'!N119","v":0},{"$f":"'Listas Desplegables'!O119","v":0},{"$f":"'Listas Desplegables'!P119","v":0}]
[{"$f":"'Listas Desplegables'!A120","v":0},{"$f":"'Listas Desplegables'!B120","v":0},{"$f":"'Listas Desplegables'!C120","v":0},{"$f":"'Listas Desplegables'!D120","v":0},{"$f":"'Listas Desplegables'!E120","v":0},{"$f":"'Listas Desplegables'!F120","v":0},{"$f":"'Listas Desplegables'!G120","v":"Órganos Colegiados de Administración y Decisión –OCAD Regionales"},{"$f":"'Listas Desplegables'!H120","v":0},{"$f":"'Listas Desplegables'!I120","v":"Órganos Colegiados de Administración y Decisión –OCAD Regionales"},{"$f":"'Listas Desplegables'!J120","v":0},{"$f":"'Listas Desplegables'!K120","v":0},{"$f":"'Listas Desplegables'!L120","v":0},{"$f":"'Listas Desplegables'!M120","v":0},{"$f":"'Listas Desplegables'!N120","v":0},{"$f":"'Listas Desplegables'!O120","v":0},{"$f":"'Listas Desplegables'!P120","v":0}]
[{"$f":"'Listas Desplegables'!A121","v":0},{"$f":"'Listas Desplegables'!B121","v":0},{"$f":"'Listas Desplegables'!C121","v":0},{"$f":"'Listas Desplegables'!D121","v":0},{"$f":"'Listas Desplegables'!E121","v":0},{"$f":"'Listas Desplegables'!F121","v":0},{"$f":"'Listas Desplegables'!G121","v":"Órganos que conforman al Presupuesto General de la Nación"},{"$f":"'Listas Desplegables'!H121","v":0},{"$f":"'Listas Desplegables'!I121","v":"Órganos que conforman al Presupuesto General de la Nación"},{"$f":"'Listas Desplegables'!J121","v":0},{"$f":"'Listas Desplegables'!K121","v":0},{"$f":"'Listas Desplegables'!L121","v":0},{"$f":"'Listas Desplegables'!M121","v":0},{"$f":"'Listas Desplegables'!N121","v":0},{"$f":"'Listas Desplegables'!O121","v":0},{"$f":"'Listas Desplegables'!P121","v":0}]
[{"$f":"'Listas Desplegables'!A122","v":0},{"$f":"'Listas Desplegables'!B122","v":0},{"$f":"'Listas Desplegables'!C122","v":0},{"$f":"'Listas Desplegables'!D122","v":0},{"$f":"'Listas Desplegables'!E122","v":0},{"$f":"'Listas Desplegables'!F122","v":0},{"$f":"'Listas Desplegables'!G122","v":"Órganos que pertenecen al Presupuesto General de la Nación"},{"$f":"'Listas Desplegables'!H122","v":0},{"$f":"'Listas Desplegables'!I122","v":"Órganos que pertenecen al Presupuesto General de la Nación"},{"$f":"'Listas Desplegables'!J122","v":0},{"$f":"'Listas Desplegables'!K122","v":0},{"$f":"'Listas Desplegables'!L122","v":0},{"$f":"'Listas Desplegables'!M122","v":0},{"$f":"'Listas Desplegables'!N122","v":0},{"$f":"'Listas Desplegables'!O122","v":0},{"$f":"'Listas Desplegables'!P122","v":0}]
[{"$f":"'Listas Desplegables'!A123","v":0},{"$f":"'Listas Desplegables'!B123","v":0},{"$f":"'Listas Desplegables'!C123","v":0},{"$f":"'Listas Desplegables'!D123","v":0},{"$f":"'Listas Desplegables'!E123","v":0},{"$f":"'Listas Desplegables'!F123","v":0},{"$f":"'Listas Desplegables'!G123","v":"Participantes del Programa de Creadores de Deuda Pública Interna"},{"$f":"'Listas Desplegables'!H123","v":0},{"$f":"'Listas Desplegables'!I123","v":"Participantes del Programa de Creadores de Deuda Pública Interna"},{"$f":"'Listas Desplegables'!J123","v":0},{"$f":"'Listas Desplegables'!K123","v":0},{"$f":"'Listas Desplegables'!L123","v":0},{"$f":"'Listas Desplegables'!M123","v":0},{"$f":"'Listas Desplegables'!N123","v":0},{"$f":"'Listas Desplegables'!O123","v":0},{"$f":"'Listas Desplegables'!P123","v":0}]
[{"$f":"'Listas Desplegables'!A124","v":0},{"$f":"'Listas Desplegables'!B124","v":0},{"$f":"'Listas Desplegables'!C124","v":0},{"$f":"'Listas Desplegables'!D124","v":0},{"$f":"'Listas Desplegables'!E124","v":0},{"$f":"'Listas Desplegables'!F124","v":0},{"$f":"'Listas Desplegables'!G124","v":"Participantes del programa de creadores de mercado"},{"$f":"'Listas Desplegables'!H124","v":0},{"$f":"'Listas Desplegables'!I124","v":"Participantes del programa de creadores de mercado"},{"$f":"'Listas Desplegables'!J124","v":0},{"$f":"'Listas Desplegables'!K124","v":0},{"$f":"'Listas Desplegables'!L124","v":0},{"$f":"'Listas Desplegables'!M124","v":0},{"$f":"'Listas Desplegables'!N124","v":0},{"$f":"'Listas Desplegables'!O124","v":0},{"$f":"'Listas Desplegables'!P124","v":0}]
[{"$f":"'Listas Desplegables'!A125","v":0},{"$f":"'Listas Desplegables'!B125","v":0},{"$f":"'Listas Desplegables'!C125","v":0},{"$f":"'Listas Desplegables'!D125","v":0},{"$f":"'Listas Desplegables'!E125","v":0},{"$f":"'Listas Desplegables'!F125","v":0},{"$f":"'Listas Desplegables'!G125","v":"PASIVOCOL"},{"$f":"'Listas Desplegables'!H125","v":0},{"$f":"'Listas Desplegables'!I125","v":"PASIVOCOL"},{"$f":"'Listas Desplegables'!J125","v":0},{"$f":"'Listas Desplegables'!K125","v":0},{"$f":"'Listas Desplegables'!L125","v":0},{"$f":"'Listas Desplegables'!M125","v":0},{"$f":"'Listas Desplegables'!N125","v":0},{"$f":"'Listas Desplegables'!O125","v":0},{"$f":"'Listas Desplegables'!P125","v":0}]
[{"$f":"'Listas Desplegables'!A126","v":0},{"$f":"'Listas Desplegables'!B126","v":0},{"$f":"'Listas Desplegables'!C126","v":0},{"$f":"'Listas Desplegables'!D126","v":0},{"$f":"'Listas Desplegables'!E126","v":0},{"$f":"'Listas Desplegables'!F126","v":0},{"$f":"'Listas Desplegables'!G126","v":"PASIVONAL"},{"$f":"'Listas Desplegables'!H126","v":0},{"$f":"'Listas Desplegables'!I126","v":"PASIVONAL"},{"$f":"'Listas Desplegables'!J126","v":0},{"$f":"'Listas Desplegables'!K126","v":0},{"$f":"'Listas Desplegables'!L126","v":0},{"$f":"'Listas Desplegables'!M126","v":0},{"$f":"'Listas Desplegables'!N126","v":0},{"$f":"'Listas Desplegables'!O126","v":0},{"$f":"'Listas Desplegables'!P126","v":0}]
[{"$f":"'Listas Desplegables'!A127","v":0},{"$f":"'Listas Desplegables'!B127","v":0},{"$f":"'Listas Desplegables'!C127","v":0},{"$f":"'Listas Desplegables'!D127","v":0},{"$f":"'Listas Desplegables'!E127","v":0},{"$f":"'Listas Desplegables'!F127","v":0},{"$f":"'Listas Desplegables'!G127","v":"Personas con Discapacidad"},{"$f":"'Listas Desplegables'!H127","v":0},{"$f":"'Listas Desplegables'!I127","v":"Personas con Discapacidad"},{"$f":"'Listas Desplegables'!J127","v":0},{"$f":"'Listas Desplegables'!K127","v":0},{"$f":"'Listas Desplegables'!L127","v":0},{"$f":"'Listas Desplegables'!M127","v":0},{"$f":"'Listas Desplegables'!N127","v":0},{"$f":"'Listas Desplegables'!O127","v":0},{"$f":"'Listas Desplegables'!P127","v":0}]
[{"$f":"'Listas Desplegables'!A128","v":0},{"$f":"'Listas Desplegables'!B128","v":0},{"$f":"'Listas Desplegables'!C128","v":0},{"$f":"'Listas Desplegables'!D128","v":0},{"$f":"'Listas Desplegables'!E128","v":0},{"$f":"'Listas Desplegables'!F128","v":0},{"$f":"'Listas Desplegables'!G128","v":"Persona Jurídica"},{"$f":"'Listas Desplegables'!H128","v":0},{"$f":"'Listas Desplegables'!I128","v":"Persona Jurídica"},{"$f":"'Listas Desplegables'!J128","v":0},{"$f":"'Listas Desplegables'!K128","v":0},{"$f":"'Listas Desplegables'!L128","v":0},{"$f":"'Listas Desplegables'!M128","v":0},{"$f":"'Listas Desplegables'!N128","v":0},{"$f":"'Listas Desplegables'!O128","v":0},{"$f":"'Listas Desplegables'!P128","v":0}]
[{"$f":"'Listas Desplegables'!A129","v":0},{"$f":"'Listas Desplegables'!B129","v":0},{"$f":"'Listas Desplegables'!C129","v":0},{"$f":"'Listas Desplegables'!D129","v":0},{"$f":"'Listas Desplegables'!E129","v":0},{"$f":"'Listas Desplegables'!F129","v":0},{"$f":"'Listas Desplegables'!G129","v":"Persona Natural"},{"$f":"'Listas Desplegables'!H129","v":0},{"$f":"'Listas Desplegables'!I129","v":"Persona Natural"},{"$f":"'Listas Desplegables'!J129","v":0},{"$f":"'Listas Desplegables'!K129","v":0},{"$f":"'Listas Desplegables'!L129","v":0},{"$f":"'Listas Desplegables'!M129","v":0},{"$f":"'Listas Desplegables'!N129","v":0},{"$f":"'Listas Desplegables'!O129","v":0},{"$f":"'Listas Desplegables'!P129","v":0}]
[{"$f":"'Listas Desplegables'!A130","v":0},{"$f":"'Listas Desplegables'!B130","v":0},{"$f":"'Listas Desplegables'!C130","v":0},{"$f":"'Listas Desplegables'!D130","v":0},{"$f":"'Listas Desplegables'!E130","v":0},{"$f":"'Listas Desplegables'!F130","v":0},{"$f":"'Listas Desplegables'!G130","v":"Personerías"},{"$f":"'Listas Desplegables'!H130","v":0},{"$f":"'Listas Desplegables'!I130","v":"Personerías"},{"$f":"'Listas Desplegables'!J130","v":0},{"$f":"'Listas Desplegables'!K130","v":0},{"$f":"'Listas Desplegables'!L130","v":0},{"$f":"'Listas Desplegables'!M130","v":0},{"$f":"'Listas Desplegables'!N130","v":0},{"$f":"'Listas Desplegables'!O130","v":0},{"$f":"'Listas Desplegables'!P130","v":0}]
[{"$f":"'Listas Desplegables'!A131","v":0},{"$f":"'Listas Desplegables'!B131","v":0},{"$f":"'Listas Desplegables'!C131","v":0},{"$f":"'Listas Desplegables'!D131","v":0},{"$f":"'Listas Desplegables'!E131","v":0},{"$f":"'Listas Desplegables'!F131","v":0},{"$f":"'Listas Desplegables'!G131","v":"PRAP Fiduciarias"},{"$f":"'Listas Desplegables'!H131","v":0},{"$f":"'Listas Desplegables'!I131","v":"PRAP Fiduciarias"},{"$f":"'Listas Desplegables'!J131","v":0},{"$f":"'Listas Desplegables'!K131","v":0},{"$f":"'Listas Desplegables'!L131","v":0},{"$f":"'Listas Desplegables'!M131","v":0},{"$f":"'Listas Desplegables'!N131","v":0},{"$f":"'Listas Desplegables'!O131","v":0},{"$f":"'Listas Desplegables'!P131","v":0}]
[{"$f":"'Listas Desplegables'!A132","v":0},{"$f":"'Listas Desplegables'!B132","v":0},{"$f":"'Listas Desplegables'!C132","v":0},{"$f":"'Listas Desplegables'!D132","v":0},{"$f":"'Listas Desplegables'!E132","v":0},{"$f":"'Listas Desplegables'!F132","v":0},{"$f":"'Listas Desplegables'!G132","v":"Presidencia de la República"},{"$f":"'Listas Desplegables'!H132","v":0},{"$f":"'Listas Desplegables'!I132","v":"Presidencia de la República"},{"$f":"'Listas Desplegables'!J132","v":0},{"$f":"'Listas Desplegables'!K132","v":0},{"$f":"'Listas Desplegables'!L132","v":0},{"$f":"'Listas Desplegables'!M132","v":0},{"$f":"'Listas Desplegables'!N132","v":0},{"$f":"'Listas Desplegables'!O132","v":0},{"$f":"'Listas Desplegables'!P132","v":0}]
[{"$f":"'Listas Desplegables'!A133","v":0},{"$f":"'Listas Desplegables'!B133","v":0},{"$f":"'Listas Desplegables'!C133","v":0},{"$f":"'Listas Desplegables'!D133","v":0},{"$f":"'Listas Desplegables'!E133","v":0},{"$f":"'Listas Desplegables'!F133","v":0},{"$f":"'Listas Desplegables'!G133","v":"Prestamistas (Banca Multilateral, Gobierno, otros)"},{"$f":"'Listas Desplegables'!H133","v":0},{"$f":"'Listas Desplegables'!I133","v":"Prestamistas (Banca Multilateral, Gobierno, otros)"},{"$f":"'Listas Desplegables'!J133","v":0},{"$f":"'Listas Desplegables'!K133","v":0},{"$f":"'Listas Desplegables'!L133","v":0},{"$f":"'Listas Desplegables'!M133","v":0},{"$f":"'Listas Desplegables'!N133","v":0},{"$f":"'Listas Desplegables'!O133","v":0},{"$f":"'Listas Desplegables'!P133","v":0}]
[{"$f":"'Listas Desplegables'!A134","v":0},{"$f":"'Listas Desplegables'!B134","v":0},{"$f":"'Listas Desplegables'!C134","v":0},{"$f":"'Listas Desplegables'!D134","v":0},{"$f":"'Listas Desplegables'!E134","v":0},{"$f":"'Listas Desplegables'!F134","v":0},{"$f":"'Listas Desplegables'!G134","v":"Procuraduría General de la Nación - PGN"},{"$f":"'Listas Desplegables'!H134","v":0},{"$f":"'Listas Desplegables'!I134","v":"Procuraduría General de la Nación - PGN"},{"$f":"'Listas Desplegables'!J134","v":0},{"$f":"'Listas Desplegables'!K134","v":0},{"$f":"'Listas Desplegables'!L134","v":0},{"$f":"'Listas Desplegables'!M134","v":0},{"$f":"'Listas Desplegables'!N134","v":0},{"$f":"'Listas Desplegables'!O134","v":0},{"$f":"'Listas Desplegables'!P134","v":0}]
[{"$f":"'Listas Desplegables'!A135","v":0},{"$f":"'Listas Desplegables'!B135","v":0},{"$f":"'Listas Desplegables'!C135","v":0},{"$f":"'Listas Desplegables'!D135","v":0},{"$f":"'Listas Desplegables'!E135","v":0},{"$f":"'Listas Desplegables'!F135","v":0},{"$f":"'Listas Desplegables'!G135","v":"Productores, importadores y/o Distribuidores Mayoristas de combustibles"},{"$f":"'Listas Desplegables'!H135","v":0},{"$f":"'Listas Desplegables'!I135","v":"Productores, importadores y/o Distribuidores Mayoristas de combustibles"},{"$f":"'Listas Desplegables'!J135","v":0},{"$f":"'Listas Desplegables'!K135","v":0},{"$f":"'Listas Desplegables'!L135","v":0},{"$f":"'Listas Desplegables'!M135","v":0},{"$f":"'Listas Desplegables'!N135","v":0},{"$f":"'Listas Desplegables'!O135","v":0},{"$f":"'Listas Desplegables'!P135","v":0}]
[{"$f":"'Listas Desplegables'!A136","v":0},{"$f":"'Listas Desplegables'!B136","v":0},{"$f":"'Listas Desplegables'!C136","v":0},{"$f":"'Listas Desplegables'!D136","v":0},{"$f":"'Listas Desplegables'!E136","v":0},{"$f":"'Listas Desplegables'!F136","v":0},{"$f":"'Listas Desplegables'!G136","v":"Proveedores"},{"$f":"'Listas Desplegables'!H136","v":0},{"$f":"'Listas Desplegables'!I136","v":"Proveedores"},{"$f":"'Listas Desplegables'!J136","v":0},{"$f":"'Listas Desplegables'!K136","v":0},{"$f":"'Listas Desplegables'!L136","v":0},{"$f":"'Listas Desplegables'!M136","v":0},{"$f":"'Listas Desplegables'!N136","v":0},{"$f":"'Listas Desplegables'!O136","v":0},{"$f":"'Listas Desplegables'!P136","v":0}]
[{"$f":"'Listas Desplegables'!A137","v":0},{"$f":"'Listas Desplegables'!B137","v":0},{"$f":"'Listas Desplegables'!C137","v":0},{"$f":"'Listas Desplegables'!D137","v":0},{"$f":"'Listas Desplegables'!E137","v":0},{"$f":"'Listas Desplegables'!F137","v":0},{"$f":"'Listas Desplegables'!G137","v":"Representación de Colombia en el Organismo Multilateral"},{"$f":"'Listas Desplegables'!H137","v":0},{"$f":"'Listas Desplegables'!I137","v":"Representación de Colombia en el Organismo Multilateral"},{"$f":"'Listas Desplegables'!J137","v":0},{"$f":"'Listas Desplegables'!K137","v":0},{"$f":"'Listas Desplegables'!L137","v":0},{"$f":"'Listas Desplegables'!M137","v":0},{"$f":"'Listas Desplegables'!N137","v":0},{"$f":"'Listas Desplegables'!O137","v":0},{"$f":"'Listas Desplegables'!P137","v":0}]
[{"$f":"'Listas Desplegables'!A138","v":0},{"$f":"'Listas Desplegables'!B138","v":0},{"$f":"'Listas Desplegables'!C138","v":0},{"$f":"'Listas Desplegables'!D138","v":0},{"$f":"'Listas Desplegables'!E138","v":0},{"$f":"'Listas Desplegables'!F138","v":0},{"$f":"'Listas Desplegables'!G138","v":"Representantes de organismos, gremios y agremiaciones del sector privado e internacional "},{"$f":"'Listas Desplegables'!H138","v":0},{"$f":"'Listas Desplegables'!I138","v":"Representantes de organismos, gremios y agremiaciones del sector privado e internacional "},{"$f":"'Listas Desplegables'!J138","v":0},{"$f":"'Listas Desplegables'!K138","v":0},{"$f":"'Listas Desplegables'!L138","v":0},{"$f":"'Listas Desplegables'!M138","v":0},{"$f":"'Listas Desplegables'!N138","v":0},{"$f":"'Listas Desplegables'!O138","v":0},{"$f":"'Listas Desplegables'!P138","v":0}]
[{"$f":"'Listas Desplegables'!A139","v":0},{"$f":"'Listas Desplegables'!B139","v":0},{"$f":"'Listas Desplegables'!C139","v":0},{"$f":"'Listas Desplegables'!D139","v":0},{"$f":"'Listas Desplegables'!E139","v":0},{"$f":"'Listas Desplegables'!F139","v":0},{"$f":"'Listas Desplegables'!G139","v":"Secretaria de Hacienda Distrital"},{"$f":"'Listas Desplegables'!H139","v":0},{"$f":"'Listas Desplegables'!I139","v":"Secretaria de Hacienda Distrital"},{"$f":"'Listas Desplegables'!J139","v":0},{"$f":"'Listas Desplegables'!K139","v":0},{"$f":"'Listas Desplegables'!L139","v":0},{"$f":"'Listas Desplegables'!M139","v":0},{"$f":"'Listas Desplegables'!N139","v":0},{"$f":"'Listas Desplegables'!O139","v":0},{"$f":"'Listas Desplegables'!P139","v":0}]
[{"$f":"'Listas Desplegables'!A140","v":0},{"$f":"'Listas Desplegables'!B140","v":0},{"$f":"'Listas Desplegables'!C140","v":0},{"$f":"'Listas Desplegables'!D140","v":0},{"$f":"'Listas Desplegables'!E140","v":0},{"$f":"'Listas Desplegables'!F140","v":0},{"$f":"'Listas Desplegables'!G140","v":"Secretaria de la Comisión Interparlamentaria de Crédito Público"},{"$f":"'Listas Desplegables'!H140","v":0},{"$f":"'Listas Desplegables'!I140","v":"Secretaria de la Comisión Interparlamentaria de Crédito Público"},{"$f":"'Listas Desplegables'!J140","v":0},{"$f":"'Listas Desplegables'!K140","v":0},{"$f":"'Listas Desplegables'!L140","v":0},{"$f":"'Listas Desplegables'!M140","v":0},{"$f":"'Listas Desplegables'!N140","v":0},{"$f":"'Listas Desplegables'!O140","v":0},{"$f":"'Listas Desplegables'!P140","v":0}]
[{"$f":"'Listas Desplegables'!A141","v":0},{"$f":"'Listas Desplegables'!B141","v":0},{"$f":"'Listas Desplegables'!C141","v":0},{"$f":"'Listas Desplegables'!D141","v":0},{"$f":"'Listas Desplegables'!E141","v":0},{"$f":"'Listas Desplegables'!F141","v":0},{"$f":"'Listas Desplegables'!G141","v":"Secretaria Distrital de Ambiente"},{"$f":"'Listas Desplegables'!H141","v":0},{"$f":"'Listas Desplegables'!I141","v":"Secretaria Distrital de Ambiente"},{"$f":"'Listas Desplegables'!J141","v":0},{"$f":"'Listas Desplegables'!K141","v":0},{"$f":"'Listas Desplegables'!L141","v":0},{"$f":"'Listas Desplegables'!M141","v":0},{"$f":"'Listas Desplegables'!N141","v":0},{"$f":"'Listas Desplegables'!O141","v":0},{"$f":"'Listas Desplegables'!P141","v":0}]
[{"$f":"'Listas Desplegables'!A142","v":0},{"$f":"'Listas Desplegables'!B142","v":0},{"$f":"'Listas Desplegables'!C142","v":0},{"$f":"'Listas Desplegables'!D142","v":0},{"$f":"'Listas Desplegables'!E142","v":0},{"$f":"'Listas Desplegables'!F142","v":0},{"$f":"'Listas Desplegables'!G142","v":"Secretaria Técnica- CICP"},{"$f":"'Listas Desplegables'!H142","v":0},{"$f":"'Listas Desplegables'!I142","v":"Secretaria Técnica- CICP"},{"$f":"'Listas Desplegables'!J142","v":0},{"$f":"'Listas Desplegables'!K142","v":0},{"$f":"'Listas Desplegables'!L142","v":0},{"$f":"'Listas Desplegables'!M142","v":0},{"$f":"'Listas Desplegables'!N142","v":0},{"$f":"'Listas Desplegables'!O142","v":0},{"$f":"'Listas Desplegables'!P142","v":0}]
[{"$f":"'Listas Desplegables'!A143","v":0},{"$f":"'Listas Desplegables'!B143","v":0},{"$f":"'Listas Desplegables'!C143","v":0},{"$f":"'Listas Desplegables'!D143","v":0},{"$f":"'Listas Desplegables'!E143","v":0},{"$f":"'Listas Desplegables'!F143","v":0},{"$f":"'Listas Desplegables'!G143","v":"Sector Solidario"},{"$f":"'Listas Desplegables'!H143","v":0},{"$f":"'Listas Desplegables'!I143","v":"Sector Solidario"},{"$f":"'Listas Desplegables'!J143","v":0},{"$f":"'Listas Desplegables'!K143","v":0},{"$f":"'Listas Desplegables'!L143","v":0},{"$f":"'Listas Desplegables'!M143","v":0},{"$f":"'Listas Desplegables'!N143","v":0},{"$f":"'Listas Desplegables'!O143","v":0},{"$f":"'Listas Desplegables'!P143","v":0}]
[{"$f":"'Listas Desplegables'!A144","v":0},{"$f":"'Listas Desplegables'!B144","v":0},{"$f":"'Listas Desplegables'!C144","v":0},{"$f":"'Listas Desplegables'!D144","v":0},{"$f":"'Listas Desplegables'!E144","v":0},{"$f":"'Listas Desplegables'!F144","v":0},{"$f":"'Listas Desplegables'!G144","v":"Servicios Postales Nacionales"},{"$f":"'Listas Desplegables'!H144","v":0},{"$f":"'Listas Desplegables'!I144","v":"Servicios Postales Nacionales"},{"$f":"'Listas Desplegables'!J144","v":0},{"$f":"'Listas Desplegables'!K144","v":0},{"$f":"'Listas Desplegables'!L144","v":0},{"$f":"'Listas Desplegables'!M144","v":0},{"$f":"'Listas Desplegables'!N144","v":0},{"$f":"'Listas Desplegables'!O144","v":0},{"$f":"'Listas Desplegables'!P144","v":0}]
[{"$f":"'Listas Desplegables'!A145","v":0},{"$f":"'Listas Desplegables'!B145","v":0},{"$f":"'Listas Desplegables'!C145","v":0},{"$f":"'Listas Desplegables'!D145","v":0},{"$f":"'Listas Desplegables'!E145","v":0},{"$f":"'Listas Desplegables'!F145","v":0},{"$f":"'Listas Desplegables'!G145","v":"Sistema Financiero"},{"$f":"'Listas Desplegables'!H145","v":0},{"$f":"'Listas Desplegables'!I145","v":"Sistema Financiero"},{"$f":"'Listas Desplegables'!J145","v":0},{"$f":"'Listas Desplegables'!K145","v":0},{"$f":"'Listas Desplegables'!L145","v":0},{"$f":"'Listas Desplegables'!M145","v":0},{"$f":"'Listas Desplegables'!N145","v":0},{"$f":"'Listas Desplegables'!O145","v":0},{"$f":"'Listas Desplegables'!P145","v":0}]
[{"$f":"'Listas Desplegables'!A146","v":0},{"$f":"'Listas Desplegables'!B146","v":0},{"$f":"'Listas Desplegables'!C146","v":0},{"$f":"'Listas Desplegables'!D146","v":0},{"$f":"'Listas Desplegables'!E146","v":0},{"$f":"'Listas Desplegables'!F146","v":0},{"$f":"'Listas Desplegables'!G146","v":"Sociedades de Economía Mixta"},{"$f":"'Listas Desplegables'!H146","v":0},{"$f":"'Listas Desplegables'!I146","v":"Sociedades de Economía Mixta"},{"$f":"'Listas Desplegables'!J146","v":0},{"$f":"'Listas Desplegables'!K146","v":0},{"$f":"'Listas Desplegables'!L146","v":0},{"$f":"'Listas Desplegables'!M146","v":0},{"$f":"'Listas Desplegables'!N146","v":0},{"$f":"'Listas Desplegables'!O146","v":0},{"$f":"'Listas Desplegables'!P146","v":0}]
[{"$f":"'Listas Desplegables'!A147","v":0},{"$f":"'Listas Desplegables'!B147","v":0},{"$f":"'Listas Desplegables'!C147","v":0},{"$f":"'Listas Desplegables'!D147","v":0},{"$f":"'Listas Desplegables'!E147","v":0},{"$f":"'Listas Desplegables'!F147","v":0},{"$f":"'Listas Desplegables'!G147","v":"Superintendencia de Economía Solidaria"},{"$f":"'Listas Desplegables'!H147","v":0},{"$f":"'Listas Desplegables'!I147","v":"Superintendencia de Economía Solidaria"},{"$f":"'Listas Desplegables'!J147","v":0},{"$f":"'Listas Desplegables'!K147","v":0},{"$f":"'Listas Desplegables'!L147","v":0},{"$f":"'Listas Desplegables'!M147","v":0},{"$f":"'Listas Desplegables'!N147","v":0},{"$f":"'Listas Desplegables'!O147","v":0},{"$f":"'Listas Desplegables'!P147","v":0}]
[{"$f":"'Listas Desplegables'!A148","v":0},{"$f":"'Listas Desplegables'!B148","v":0},{"$f":"'Listas Desplegables'!C148","v":0},{"$f":"'Listas Desplegables'!D148","v":0},{"$f":"'Listas Desplegables'!E148","v":0},{"$f":"'Listas Desplegables'!F148","v":0},{"$f":"'Listas Desplegables'!G148","v":"Superintendencia Financiera"},{"$f":"'Listas Desplegables'!H148","v":0},{"$f":"'Listas Desplegables'!I148","v":"Superintendencia Financiera"},{"$f":"'Listas Desplegables'!J148","v":0},{"$f":"'Listas Desplegables'!K148","v":0},{"$f":"'Listas Desplegables'!L148","v":0},{"$f":"'Listas Desplegables'!M148","v":0},{"$f":"'Listas Desplegables'!N148","v":0},{"$f":"'Listas Desplegables'!O148","v":0},{"$f":"'Listas Desplegables'!P148","v":0}]
[{"$f":"'Listas Desplegables'!A149","v":0},{"$f":"'Listas Desplegables'!B149","v":0},{"$f":"'Listas Desplegables'!C149","v":" "},{"$f":"'Listas Desplegables'!D149","v":0},{"$f":"'Listas Desplegables'!E149","v":0},{"$f":"'Listas Desplegables'!F149","v":0},{"$f":"'Listas Desplegables'!G149","v":"Transparencia por Colombia"},{"$f":"'Listas Desplegables'!H149","v":0},{"$f":"'Listas Desplegables'!I149","v":"Transparencia por Colombia"},{"$f":"'Listas Desplegables'!J149","v":0},{"$f":"'Listas Desplegables'!K149","v":0},{"$f":"'Listas Desplegables'!L149","v":0},{"$f":"'Listas Desplegables'!M149","v":0},{"$f":"'Listas Desplegables'!N149","v":0},{"$f":"'Listas Desplegables'!O149","v":0},{"$f":"'Listas Desplegables'!P149","v":0}]
[{"$f":"'Listas Desplegables'!A150","v":0},{"$f":"'Listas Desplegables'!B150","v":0},{"$f":"'Listas Desplegables'!C150","v":0},{"$f":"'Listas Desplegables'!D150","v":0},{"$f":"'Listas Desplegables'!E150","v":0},{"$f":"'Listas Desplegables'!F150","v":0},{"$f":"'Listas Desplegables'!G150","v":"Unidad para la Atención y Reparación Integral a las víctimas"},{"$f":"'Listas Desplegables'!H150","v":0},{"$f":"'Listas Desplegables'!I150","v":"Unidad para la Atención y Reparación Integral a las víctimas"},{"$f":"'Listas Desplegables'!J150","v":0},{"$f":"'Listas Desplegables'!K150","v":0},{"$f":"'Listas Desplegables'!L150","v":0},{"$f":"'Listas Desplegables'!M150","v":0},{"$f":"'Listas Desplegables'!N150","v":0},{"$f":"'Listas Desplegables'!O150","v":0},{"$f":"'Listas Desplegables'!P150","v":0}]
[{"$f":"'Listas Desplegables'!A151","v":0},{"$f":"'Listas Desplegables'!B151","v":0},{"$f":"'Listas Desplegables'!C151","v":0},{"$f":"'Listas Desplegables'!D151","v":0},{"$f":"'Listas Desplegables'!E151","v":0},{"$f":"'Listas Desplegables'!F151","v":0},{"$f":"'Listas Desplegables'!G151","v":"Unidades Ejecutoras"},{"$f":"'Listas Desplegables'!H151","v":0},{"$f":"'Listas Desplegables'!I151","v":"Unidades Ejecutoras"},{"$f":"'Listas Desplegables'!J151","v":0},{"$f":"'Listas Desplegables'!K151","v":0},{"$f":"'Listas Desplegables'!L151","v":0},{"$f":"'Listas Desplegables'!M151","v":0},{"$f":"'Listas Desplegables'!N151","v":0},{"$f":"'Listas Desplegables'!O151","v":0},{"$f":"'Listas Desplegables'!P151","v":0}]
[{"$f":"'Listas Desplegables'!A152","v":0},{"$f":"'Listas Desplegables'!B152","v":0},{"$f":"'Listas Desplegables'!C152","v":0},{"$f":"'Listas Desplegables'!D152","v":0},{"$f":"'Listas Desplegables'!E152","v":0},{"$f":"'Listas Desplegables'!F152","v":0},{"$f":"'Listas Desplegables'!G152","v":"Universidades Territoriales"},{"$f":"'Listas Desplegables'!H152","v":0},{"$f":"'Listas Desplegables'!I152","v":"Universidades Territoriales"},{"$f":"'Listas Desplegables'!J152","v":0},{"$f":"'Listas Desplegables'!K152","v":0},{"$f":"'Listas Desplegables'!L152","v":0},{"$f":"'Listas Desplegables'!M152","v":0},{"$f":"'Listas Desplegables'!N152","v":0},{"$f":"'Listas Desplegables'!O152","v":0},{"$f":"'Listas Desplegables'!P152","v":0}]
[{"$f":"'Listas Desplegables'!A153","v":0},{"$f":"'Listas Desplegables'!B153","v":0},{"$f":"'Listas Desplegables'!C153","v":0},{"$f":"'Listas Desplegables'!D153","v":0},{"$f":"'Listas Desplegables'!E153","v":0},{"$f":"'Listas Desplegables'!F153","v":0},{"$f":"'Listas Desplegables'!G153","v":"Usuarios de la Información Contable Pública"},{"$f":"'Listas Desplegables'!H153","v":0},{"$f":"'Listas Desplegables'!I153","v":"Usuarios de la Información Contable Pública"},{"$f":"'Listas Desplegables'!J153","v":0},{"$f":"'Listas Desplegables'!K153","v":0},{"$f":"'Listas Desplegables'!L153","v":0},{"$f":"'Listas Desplegables'!M153","v":0},{"$f":"'Listas Desplegables'!N153","v":0},{"$f":"'Listas Desplegables'!O153","v":0},{"$f":"'Listas Desplegables'!P153","v":0}]
[{"$f":"'Listas Desplegables'!A154","v":0},{"$f":"'Listas Desplegables'!B154","v":0},{"$f":"'Listas Desplegables'!C154","v":0},{"$f":"'Listas Desplegables'!D154","v":0},{"$f":"'Listas Desplegables'!E154","v":0},{"$f":"'Listas Desplegables'!F154","v":0},{"$f":"'Listas Desplegables'!G154","v":"Usuarios de Servicios TIC"},{"$f":"'Listas Desplegables'!H154","v":0},{"$f":"'Listas Desplegables'!I154","v":"Usuarios de Servicios TIC"},{"$f":"'Listas Desplegables'!J154","v":0},{"$f":"'Listas Desplegables'!K154","v":0},{"$f":"'Listas Desplegables'!L154","v":0},{"$f":"'Listas Desplegables'!M154","v":0},{"$f":"'Listas Desplegables'!N154","v":0},{"$f":"'Listas Desplegables'!O154","v":0},{"$f":"'Listas Desplegables'!P154","v":0}]
[{"$f":"'Listas Desplegables'!A155","v":0},{"$f":"'Listas Desplegables'!B155","v":0},{"$f":"'Listas Desplegables'!C155","v":0},{"$f":"'Listas Desplegables'!D155","v":0},{"$f":"'Listas Desplegables'!E155","v":0},{"$f":"'Listas Desplegables'!F155","v":0},{"$f":"'Listas Desplegables'!G155","v":"Usuarios San Juan de Dios"},{"$f":"'Listas Desplegables'!H155","v":0},{"$f":"'Listas Desplegables'!I155","v":"Usuarios San Juan de Dios"},{"$f":"'Listas Desplegables'!J155","v":0},{"$f":"'Listas Desplegables'!K155","v":0},{"$f":"'Listas Desplegables'!L155","v":0},{"$f":"'Listas Desplegables'!M155","v":0},{"$f":"'Listas Desplegables'!N155","v":0},{"$f":"'Listas Desplegables'!O155","v":0},{"$f":"'Listas Desplegables'!P155","v":0}]
[{"$f":"'Listas Desplegables'!A156","v":0},{"$f":"'Listas Desplegables'!B156","v":0},{"$f":"'Listas Desplegables'!C156","v":0},{"$f":"'Listas Desplegables'!D156","v":0},{"$f":"'Listas Desplegables'!E156","v":0},{"$f":"'Listas Desplegables'!F156","v":0},{"$f":"'Listas Desplegables'!G156","v":"Victimas"},{"$f":"'Listas Desplegables'!H156","v":0},{"$f":"'Listas Desplegables'!I156","v":"Victimas"},{"$f":"'Listas Desplegables'!J156","v":0},{"$f":"'Listas Desplegables'!K156","v":0},{"$f":"'Listas Desplegables'!L156","v":0},{"$f":"'Listas Desplegables'!M156","v":0},{"$f":"'Listas Desplegables'!N156","v":0},{"$f":"'Listas Desplegables'!O156","v":0},{"$f":"'Listas Desplegables'!P156","v":0}]
[{"$f":"'Listas Desplegables'!A157","v":0},{"$f":"'Listas Desplegables'!B157","v":0},{"$f":"'Listas Desplegables'!C157","v":0},{"$f":"'Listas Desplegables'!D157","v":0},{"$f":"'Listas Desplegables'!E157","v":0},{"$f":"'Listas Desplegables'!F157","v":0},{"$f":"'Listas Desplegables'!G157","v":"Vocales de control social"},{"$f":"'Listas Desplegables'!H157","v":0},{"$f":"'Listas Desplegables'!I157","v":"Vocales de control social"},{"$f":"'Listas Desplegables'!J157","v":0},{"$f":"'Listas Desplegables'!K157","v":0},{"$f":"'Listas Desplegables'!L157","v":0},{"$f":"'Listas Desplegables'!M157","v":0},{"$f":"'Listas Desplegables'!N157","v":0},{"$f":"'Listas Desplegables'!O157","v":0},{"$f":"'Listas Desplegables'!P157","v":0}]
[{"$f":"'Listas Desplegables'!A158","v":0},{"$f":"'Listas Desplegables'!B158","v":0},{"$f":"'Listas Desplegables'!C158","v":0},{"$f":"'Listas Desplegables'!D158","v":0},{"$f":"'Listas Desplegables'!E158","v":0},{"$f":"'Listas Desplegables'!F158","v":0},{"$f":"'Listas Desplegables'!G158","v":0},{"$f":"'Listas Desplegables'!H158","v":0},{"$f":"'Listas Desplegables'!I158","v":0},{"$f":"'Listas Desplegables'!J158","v":0},{"$f":"'Listas Desplegables'!K158","v":0},{"$f":"'Listas Desplegables'!L158","v":0},{"$f":"'Listas Desplegables'!M158","v":0},{"$f":"'Listas Desplegables'!N158","v":0},{"$f":"'Listas Desplegables'!O158","v":0},{"$f":"'Listas Desplegables'!P158","v":0}]
[{"$f":"'Listas Desplegables'!A159","v":0},{"$f":"'Listas Desplegables'!B159","v":0},{"$f":"'Listas Desplegables'!C159","v":0},{"$f":"'Listas Desplegables'!D159","v":0},{"$f":"'Listas Desplegables'!E159","v":0},{"$f":"'Listas Desplegables'!F159","v":0},{"$f":"'Listas Desplegables'!G159","v":0},{"$f":"'Listas Desplegables'!H159","v":0},{"$f":"'Listas Desplegables'!I159","v":0},{"$f":"'Listas Desplegables'!J159","v":0},{"$f":"'Listas Desplegables'!K159","v":0},{"$f":"'Listas Desplegables'!L159","v":0},{"$f":"'Listas Desplegables'!M159","v":0},{"$f":"'Listas Desplegables'!N159","v":0},{"$f":"'Listas Desplegables'!O159","v":0},{"$f":"'Listas Desplegables'!P159","v":0}]
[{"$f":"'Listas Desplegables'!A160","v":0},{"$f":"'Listas Desplegables'!B160","v":0},{"$f":"'Listas Desplegables'!C160","v":0},{"$f":"'Listas Desplegables'!D160","v":0},{"$f":"'Listas Desplegables'!E160","v":0},{"$f":"'Listas Desplegables'!F160","v":0},{"$f":"'Listas Desplegables'!G160","v":0},{"$f":"'Listas Desplegables'!H160","v":0},{"$f":"'Listas Desplegables'!I160","v":0},{"$f":"'Listas Desplegables'!J160","v":0},{"$f":"'Listas Desplegables'!K160","v":0},{"$f":"'Listas Desplegables'!L160","v":0},{"$f":"'Listas Desplegables'!M160","v":0},{"$f":"'Listas Desplegables'!N160","v":0},{"$f":"'Listas Desplegables'!O160","v":0},{"$f":"'Listas Desplegables'!P160","v":0}]
[{"$f":"'Listas Desplegables'!A161","v":0},{"$f":"'Listas Desplegables'!B161","v":0},{"$f":"'Listas Desplegables'!C161","v":0},{"$f":"'Listas Desplegables'!D161","v":0},{"$f":"'Listas Desplegables'!E161","v":0},{"$f":"'Listas Desplegables'!F161","v":0},{"$f":"'Listas Desplegables'!G161","v":0},{"$f":"'Listas Desplegables'!H161","v":0},{"$f":"'Listas Desplegables'!I161","v":0},{"$f":"'Listas Desplegables'!J161","v":0},{"$f":"'Listas Desplegables'!K161","v":0},{"$f":"'Listas Desplegables'!L161","v":0},{"$f":"'Listas Desplegables'!M161","v":0},{"$f":"'Listas Desplegables'!N161","v":0},{"$f":"'Listas Desplegables'!O161","v":0},{"$f":"'Listas Desplegables'!P161","v":0}]
[{"$f":"'Listas Desplegables'!A162","v":0},{"$f":"'Listas Desplegables'!B162","v":0},{"$f":"'Listas Desplegables'!C162","v":0},{"$f":"'Listas Desplegables'!D162","v":0},{"$f":"'Listas Desplegables'!E162","v":0},{"$f":"'Listas Desplegables'!F162","v":0},{"$f":"'Listas Desplegables'!G162","v":0},{"$f":"'Listas Desplegables'!H162","v":0},{"$f":"'Listas Desplegables'!I162","v":0},{"$f":"'Listas Desplegables'!J162","v":0},{"$f":"'Listas Desplegables'!K162","v":0},{"$f":"'Listas Desplegables'!L162","v":0},{"$f":"'Listas Desplegables'!M162","v":0},{"$f":"'Listas Desplegables'!N162","v":0},{"$f":"'Listas Desplegables'!O162","v":0},{"$f":"'Listas Desplegables'!P162","v":0}]
[{"$f":"'Listas Desplegables'!A163","v":0},{"$f":"'Listas Desplegables'!B163","v":0},{"$f":"'Listas Desplegables'!C163","v":0},{"$f":"'Listas Desplegables'!D163","v":0},{"$f":"'Listas Desplegables'!E163","v":0},{"$f":"'Listas Desplegables'!F163","v":0},{"$f":"'Listas Desplegables'!G163","v":0},{"$f":"'Listas Desplegables'!H163","v":0},{"$f":"'Listas Desplegables'!I163","v":0},{"$f":"'Listas Desplegables'!J163","v":0},{"$f":"'Listas Desplegables'!K163","v":0},{"$f":"'Listas Desplegables'!L163","v":0},{"$f":"'Listas Desplegables'!M163","v":0},{"$f":"'Listas Desplegables'!N163","v":0},{"$f":"'Listas Desplegables'!O163","v":0},{"$f":"'Listas Desplegables'!P163","v":0}]
[{"$f":"'Listas Desplegables'!A164","v":0},{"$f":"'Listas Desplegables'!B164","v":0},{"$f":"'Listas Desplegables'!C164","v":0},{"$f":"'Listas Desplegables'!D164","v":0},{"$f":"'Listas Desplegables'!E164","v":0},{"$f":"'Listas Desplegables'!F164","v":0},{"$f":"'Listas Desplegables'!G164","v":0},{"$f":"'Listas Desplegables'!H164","v":0},{"$f":"'Listas Desplegables'!I164","v":0},{"$f":"'Listas Desplegables'!J164","v":0},{"$f":"'Listas Desplegables'!K164","v":0},{"$f":"'Listas Desplegables'!L164","v":0},{"$f":"'Listas Desplegables'!M164","v":0},{"$f":"'Listas Desplegables'!N164","v":0},{"$f":"'Listas Desplegables'!O164","v":0},{"$f":"'Listas Desplegables'!P164","v":0}]
[{"$f":"'Listas Desplegables'!A165","v":0},{"$f":"'Listas Desplegables'!B165","v":0},{"$f":"'Listas Desplegables'!C165","v":0},{"$f":"'Listas Desplegables'!D165","v":0},{"$f":"'Listas Desplegables'!E165","v":0},{"$f":"'Listas Desplegables'!F165","v":0},{"$f":"'Listas Desplegables'!G165","v":0},{"$f":"'Listas Desplegables'!H165","v":0},{"$f":"'Listas Desplegables'!I165","v":0},{"$f":"'Listas Desplegables'!J165","v":0},{"$f":"'Listas Desplegables'!K165","v":0},{"$f":"'Listas Desplegables'!L165","v":0},{"$f":"'Listas Desplegables'!M165","v":0},{"$f":"'Listas Desplegables'!N165","v":0},{"$f":"'Listas Desplegables'!O165","v":0},{"$f":"'Listas Desplegables'!P165","v":0}]
[{"$f":"'Listas Desplegables'!A166","v":0},{"$f":"'Listas Desplegables'!B166","v":0},{"$f":"'Listas Desplegables'!C166","v":0},{"$f":"'Listas Desplegables'!D166","v":0},{"$f":"'Listas Desplegables'!E166","v":0},{"$f":"'Listas Desplegables'!F166","v":0},{"$f":"'Listas Desplegables'!G166","v":0},{"$f":"'Listas Desplegables'!H166","v":0},{"$f":"'Listas Desplegables'!I166","v":0},{"$f":"'Listas Desplegables'!J166","v":0},{"$f":"'Listas Desplegables'!K166","v":0},{"$f":"'Listas Desplegables'!L166","v":0},{"$f":"'Listas Desplegables'!M166","v":0},{"$f":"'Listas Desplegables'!N166","v":0},{"$f":"'Listas Desplegables'!O166","v":0},{"$f":"'Listas Desplegables'!P166","v":0}]